Transaction Date,Local Authority Department,BENEFICIARY,Purpose,Amount,Non Recoverable,Merchant Category
01/05/2022,oneSource - Non Shared,Juniper Ventures Ltd,Cleaning Services,828,0,COMMERCIAL SUPPLIER
01/05/2022,Inclusive Economy & Housing,Juniper Ventures Ltd,Cleaning Services,4792.88,0,COMMERCIAL SUPPLIER
01/05/2022,Inclusive Economy & Housing,Juniper Ventures Ltd,Cleaning Services,2614.3,0,COMMERCIAL SUPPLIER
01/05/2022,Housing Revenue Account,Juniper Ventures Ltd,Cleaning Services,8540.05,0,COMMERCIAL SUPPLIER
01/05/2022,Brighter Futures Director,Juniper Ventures Ltd,Cleaning Services,871.43,0,COMMERCIAL SUPPLIER
01/05/2022,Children and Young People,Juniper Ventures Ltd,Cleaning Services,871.43,0,COMMERCIAL SUPPLIER
01/05/2022,Environment and Sustainable Transport,Juniper Ventures Ltd,Cleaning Services,10777.56,0,COMMERCIAL SUPPLIER
01/05/2022,oneSource,Daisy Corporate Services Trading Ltd,Land Line Telephone Costs,4719.99,0,COMMERCIAL SUPPLIER
01/05/2022,oneSource,Daisy Corporate Services Trading Ltd,Land Line Telephone Costs,2340.61,0,COMMERCIAL SUPPLIER
01/05/2022,Housing Revenue Account,Daisy Corporate Services Trading Ltd,Cyclical/Planned Maintenance - Mechanical And Electrical,320.67,0,COMMERCIAL SUPPLIER
01/05/2022,oneSource,Daisy Corporate Services Trading Ltd,Land Line Telephone Costs,15074.44,0,COMMERCIAL SUPPLIER
01/05/2022,Housing Revenue Account,Daisy Corporate Services Trading Ltd,Land Line Telephone Costs,309.67,0,COMMERCIAL SUPPLIER
01/05/2022,Housing Revenue Account,Daisy Corporate Services Trading Ltd,Land Line Telephone Costs,2639.81,0,COMMERCIAL SUPPLIER
01/05/2022,Environment and Sustainable Transport,DD Mobile Auto Electrical,"Purchase - Equipment, Furniture And Materials",218.5,0,COMMERCIAL SUPPLIER
01/05/2022,oneSource,Bdi Securities,Security Services (Excluding Premises),1093.5,0,COMMERCIAL SUPPLIER
01/05/2022,oneSource,Bdi Securities,Security Services (Excluding Premises),256.5,0,COMMERCIAL SUPPLIER
01/05/2022,Environment and Sustainable Transport,Portakabin Ltd,Premises Hire - Facilities,2373.33,0,COMMERCIAL SUPPLIER
01/05/2022,Children and Young People,Early Start Group Ltd,Private Contractors Payment - Other,52290,0,COMMERCIAL SUPPLIER
01/05/2022,Dedicated Schools Budget,Personal Information - Redacted,Professional Services - General,185380,0,NON COMMERCIAL SUPPLIER
01/05/2022,Dedicated Schools Budget,Personal Information - Redacted,Professional Services - General,206960,0,NON COMMERCIAL SUPPLIER
01/05/2022,Inclusive Economy & Housing,Personal Information - Redacted,Land Line Telephone Costs,10,0,Employee
01/05/2022,Inclusive Economy & Housing,Personal Information - Redacted,Land Line Telephone Costs,10,0,Employee
01/05/2022,Inclusive Economy & Housing,Personal Information - Redacted,Ict Software,5328,0,Employee
01/05/2022,Inclusive Economy & Housing,Hungerburger Ltd T/a Barking Hotel,Rents Payable,5583,0,COMMERCIAL SUPPLIER
02/05/2022,Environment and Sustainable Transport,Danfo (Uk) Limited,"Maintenance - Equipment, Furniture And Materials",2482.41,0,VENDOR
02/05/2022,Environment and Sustainable Transport,R.A.M Fleet Solutions Ltd,"Purchase - Equipment, Furniture And Materials",2758,0,COMMERCIAL SUPPLIER
02/05/2022,"People, Policy and Performance",Askews and Holts Library Services Ltd,"Books, Publications And Resources",1441.88,0,COMMERCIAL SUPPLIER
02/05/2022,"People, Policy and Performance",Askews and Holts Library Services Ltd,"Books, Publications And Resources",1770.8,0,COMMERCIAL SUPPLIER
02/05/2022,"People, Policy and Performance",Askews and Holts Library Services Ltd,"Books, Publications And Resources",1635.33,0,COMMERCIAL SUPPLIER
02/05/2022,"People, Policy and Performance",Askews and Holts Library Services Ltd,"Books, Publications And Resources",562.88,0,COMMERCIAL SUPPLIER
02/05/2022,oneSource,Proquest Consulting Limited,Consultancy Fees,9350,0,COMMERCIAL SUPPLIER
02/05/2022,oneSource,Royal Mail Group Plc,Postage And Courier Services,6040.26,0,COMMERCIAL SUPPLIER
02/05/2022,oneSource,Royal Mail Group Plc,Postage And Courier Services,253.44,0,COMMERCIAL SUPPLIER
02/05/2022,oneSource,Royal Mail Group Plc,Postage And Courier Services,21000.33,0,COMMERCIAL SUPPLIER
02/05/2022,Resources,Stockford Anderson,Consultancy Fees,300700,0,
02/05/2022,Children and Young People,Ebony Healthcare Services Limited,Supported Other Accommodation - Private Contractors Payment,4218.24,0,NON COMMERCIAL SUPPLIER
02/05/2022,Inclusive Economy & Housing,Ronin Ltd,Staff Recruitment Costs,2875,0,COMMERCIAL SUPPLIER
02/05/2022,Children and Young People,Personal Information - Redacted,Legal Fees,1060,0,LEGAL SERVICES
02/05/2022,Environment and Sustainable Transport,Personal Information - Redacted,"Purchase - Equipment, Furniture And Materials",13.45,0,Employee
03/05/2022,Children and Young People,L B Of Barking & Dagenham,Client Expenses - Third Party,746.62,0,VENDOR
03/05/2022,Adults & Health,Hinds Care And Support Services,Daycare - Private Contractors Payment,204,0,FOSTER CARERS
03/05/2022,Adults & Health,Hinds Care And Support Services,Daycare - Private Contractors Payment,204,0,FOSTER CARERS
03/05/2022,Adults & Health,Hinds Care And Support Services,Daycare - Private Contractors Payment,204,0,FOSTER CARERS
03/05/2022,Adults & Health,Hinds Care And Support Services,Daycare - Private Contractors Payment,140.25,0,FOSTER CARERS
03/05/2022,Adults & Health,Hinds Care And Support Services,Daycare - Private Contractors Payment,204,0,FOSTER CARERS
03/05/2022,Adults & Health,Paul Policy Practice Ltd,Consultancy Fees,2625,0,COMMERCIAL SUPPLIER
03/05/2022,oneSource,Law Morgan Ltd,Agency Staff,2631.04,0,COMMERCIAL SUPPLIER
03/05/2022,Children and Young People,Law Morgan Ltd,Agency Staff,3143.25,0,COMMERCIAL SUPPLIER
03/05/2022,Adults & Health,London Care Plc,Home Care - Private Contractors Payment,28.08,0,COMMERCIAL SUPPLIER
03/05/2022,Adults & Health,London Care Plc,Home Care - Private Contractors Payment,132.91,0,COMMERCIAL SUPPLIER
03/05/2022,Adults & Health,London Care Plc,Home Care - Private Contractors Payment,74.88,0,COMMERCIAL SUPPLIER
03/05/2022,Adults & Health,London Care Plc,Home Care - Private Contractors Payment,244.32,0,COMMERCIAL SUPPLIER
03/05/2022,Adults & Health,London Care Plc,Home Care - Private Contractors Payment,178.8,0,COMMERCIAL SUPPLIER
03/05/2022,Adults & Health,London Care Plc,Home Care - Private Contractors Payment,18.72,0,COMMERCIAL SUPPLIER
03/05/2022,Adults & Health,London Care Plc,Home Care - Private Contractors Payment,70.2,0,COMMERCIAL SUPPLIER
03/05/2022,Adults & Health,London Care Plc,Respite Care - Private Contractors Payment,37.44,0,COMMERCIAL SUPPLIER
03/05/2022,Adults & Health,London Care Plc,Home Care - Private Contractors Payment,39.94,0,COMMERCIAL SUPPLIER
03/05/2022,Adults & Health,London Care Plc,Home Care - Private Contractors Payment,41.19,0,COMMERCIAL SUPPLIER
03/05/2022,Adults & Health,London Care Plc,Daycare - Private Contractors Payment,131.04,0,COMMERCIAL SUPPLIER
03/05/2022,Adults & Health,London Care Plc,Daycare - Private Contractors Payment,56.16,0,COMMERCIAL SUPPLIER
03/05/2022,Adults & Health,London Care Plc,Daycare - Private Contractors Payment,262.08,0,COMMERCIAL SUPPLIER
03/05/2022,Adults & Health,London Care Plc,Home Care - Private Contractors Payment,163.8,0,COMMERCIAL SUPPLIER
03/05/2022,Adults & Health,London Care Plc,Home Care - Private Contractors Payment,18.72,0,COMMERCIAL SUPPLIER
03/05/2022,Adults & Health,London Care Plc,Home Care - Private Contractors Payment,262.08,0,COMMERCIAL SUPPLIER
03/05/2022,Adults & Health,London Care Plc,Home Care - Private Contractors Payment,229.32,0,COMMERCIAL SUPPLIER
03/05/2022,Adults & Health,London Care Plc,Home Care - Private Contractors Payment,46.8,0,COMMERCIAL SUPPLIER
03/05/2022,Adults & Health,London Care Plc,Home Care - Private Contractors Payment,28.08,0,COMMERCIAL SUPPLIER
03/05/2022,Adults & Health,London Care Plc,Daycare - Private Contractors Payment,37.44,0,COMMERCIAL SUPPLIER
03/05/2022,Adults & Health,London Care Plc,Home Care - Private Contractors Payment,196.56,0,COMMERCIAL SUPPLIER
03/05/2022,Adults & Health,London Care Plc,Home Care - Private Contractors Payment,196.56,0,COMMERCIAL SUPPLIER
03/05/2022,Adults & Health,London Care Plc,Home Care - Private Contractors Payment,327.6,0,COMMERCIAL SUPPLIER
03/05/2022,Adults & Health,London Care Plc,Daycare - Private Contractors Payment,56.16,0,COMMERCIAL SUPPLIER
03/05/2022,Adults & Health,London Care Plc,Home Care - Private Contractors Payment,229.32,0,COMMERCIAL SUPPLIER
03/05/2022,Adults & Health,London Care Plc,Home Care - Private Contractors Payment,290.16,0,COMMERCIAL SUPPLIER
03/05/2022,Adults & Health,London Care Plc,Home Care - Private Contractors Payment,421.2,0,COMMERCIAL SUPPLIER
03/05/2022,Adults & Health,London Care Plc,Daycare - Private Contractors Payment,37.44,0,COMMERCIAL SUPPLIER
03/05/2022,Adults & Health,London Care Plc,Daycare - Private Contractors Payment,74.88,0,COMMERCIAL SUPPLIER
03/05/2022,Adults & Health,London Care Plc,Daycare - Private Contractors Payment,37.44,0,COMMERCIAL SUPPLIER
03/05/2022,Adults & Health,London Care Plc,Home Care - Private Contractors Payment,294.84,0,COMMERCIAL SUPPLIER
03/05/2022,Adults & Health,London Care Plc,Home Care - Private Contractors Payment,42.12,0,COMMERCIAL SUPPLIER
03/05/2022,Adults & Health,London Care Plc,Daycare - Private Contractors Payment,37.44,0,COMMERCIAL SUPPLIER
03/05/2022,Adults & Health,London Care Plc,Home Care - Private Contractors Payment,18.72,0,COMMERCIAL SUPPLIER
03/05/2022,Adults & Health,London Care Plc,Home Care - Private Contractors Payment,229.32,0,COMMERCIAL SUPPLIER
03/05/2022,Adults & Health,London Care Plc,Home Care - Private Contractors Payment,224.58,0,COMMERCIAL SUPPLIER
03/05/2022,Adults & Health,London Care Plc,Daycare - Private Contractors Payment,37.44,0,COMMERCIAL SUPPLIER
03/05/2022,Adults & Health,London Care Plc,Home Care - Private Contractors Payment,168.48,0,COMMERCIAL SUPPLIER
03/05/2022,Adults & Health,London Care Plc,Home Care - Private Contractors Payment,424.01,0,COMMERCIAL SUPPLIER
03/05/2022,Adults & Health,London Care Plc,Home Care - Private Contractors Payment,18.72,0,COMMERCIAL SUPPLIER
03/05/2022,Adults & Health,London Care Plc,Home Care - Private Contractors Payment,18.72,0,COMMERCIAL SUPPLIER
03/05/2022,Adults & Health,London Care Plc,Home Care - Private Contractors Payment,28.08,0,COMMERCIAL SUPPLIER
03/05/2022,Adults & Health,London Care Plc,Home Care - Private Contractors Payment,163.8,0,COMMERCIAL SUPPLIER
03/05/2022,Adults & Health,London Care Plc,Daycare - Private Contractors Payment,131.04,0,COMMERCIAL SUPPLIER
03/05/2022,Adults & Health,London Care Plc,Home Care - Private Contractors Payment,702.96,0,COMMERCIAL SUPPLIER
03/05/2022,Adults & Health,London Care Plc,Home Care - Private Contractors Payment,98.28,0,COMMERCIAL SUPPLIER
03/05/2022,Adults & Health,London Care Plc,Daycare - Private Contractors Payment,93.6,0,COMMERCIAL SUPPLIER
03/05/2022,Adults & Health,London Care Plc,Home Care - Private Contractors Payment,163.8,0,COMMERCIAL SUPPLIER
03/05/2022,Adults & Health,London Care Plc,Daycare - Private Contractors Payment,28.08,0,COMMERCIAL SUPPLIER
03/05/2022,Adults & Health,London Care Plc,Home Care - Private Contractors Payment,196.56,0,COMMERCIAL SUPPLIER
03/05/2022,Adults & Health,London Care Plc,Home Care - Private Contractors Payment,18.72,0,COMMERCIAL SUPPLIER
03/05/2022,Adults & Health,London Care Plc,Daycare - Private Contractors Payment,74.88,0,COMMERCIAL SUPPLIER
03/05/2022,Adults & Health,London Care Plc,Home Care - Private Contractors Payment,18.72,0,COMMERCIAL SUPPLIER
03/05/2022,Adults & Health,London Care Plc,Home Care - Private Contractors Payment,238.68,0,COMMERCIAL SUPPLIER
03/05/2022,Adults & Health,London Care Plc,Home Care - Private Contractors Payment,408.12,0,COMMERCIAL SUPPLIER
03/05/2022,Adults & Health,London Care Plc,Home Care - Private Contractors Payment,163.8,0,COMMERCIAL SUPPLIER
03/05/2022,Adults & Health,London Care Plc,Home Care - Private Contractors Payment,65.52,0,COMMERCIAL SUPPLIER
03/05/2022,Adults & Health,London Care Plc,Home Care - Private Contractors Payment,65.52,0,COMMERCIAL SUPPLIER
03/05/2022,Adults & Health,London Care Plc,Home Care - Private Contractors Payment,290.16,0,COMMERCIAL SUPPLIER
03/05/2022,Adults & Health,London Care Plc,Home Care - Private Contractors Payment,28.08,0,COMMERCIAL SUPPLIER
03/05/2022,Adults & Health,London Care Plc,Home Care - Private Contractors Payment,393.12,0,COMMERCIAL SUPPLIER
03/05/2022,Adults & Health,London Care Plc,Home Care - Private Contractors Payment,177.84,0,COMMERCIAL SUPPLIER
03/05/2022,Adults & Health,London Care Plc,Home Care - Private Contractors Payment,18.72,0,COMMERCIAL SUPPLIER
03/05/2022,Adults & Health,London Care Plc,Home Care - Private Contractors Payment,42.12,0,COMMERCIAL SUPPLIER
03/05/2022,Adults & Health,London Care Plc,Home Care - Private Contractors Payment,140.4,0,COMMERCIAL SUPPLIER
03/05/2022,Adults & Health,London Care Plc,Home Care - Private Contractors Payment,112.32,0,COMMERCIAL SUPPLIER
03/05/2022,Adults & Health,London Care Plc,Home Care - Private Contractors Payment,327.6,0,COMMERCIAL SUPPLIER
03/05/2022,Adults & Health,London Care Plc,Home Care - Private Contractors Payment,131.04,0,COMMERCIAL SUPPLIER
03/05/2022,Adults & Health,London Care Plc,Home Care - Private Contractors Payment,18.72,0,COMMERCIAL SUPPLIER
03/05/2022,Adults & Health,London Care Plc,Home Care - Private Contractors Payment,65.52,0,COMMERCIAL SUPPLIER
03/05/2022,Adults & Health,London Care Plc,Home Care - Private Contractors Payment,524.16,0,COMMERCIAL SUPPLIER
03/05/2022,Adults & Health,London Care Plc,Home Care - Private Contractors Payment,131.04,0,COMMERCIAL SUPPLIER
03/05/2022,Adults & Health,London Care Plc,Daycare - Private Contractors Payment,56.16,0,COMMERCIAL SUPPLIER
03/05/2022,Adults & Health,London Care Plc,Home Care - Private Contractors Payment,243.36,0,COMMERCIAL SUPPLIER
03/05/2022,Adults & Health,London Care Plc,Home Care - Private Contractors Payment,491.4,0,COMMERCIAL SUPPLIER
03/05/2022,Adults & Health,London Care Plc,Home Care - Private Contractors Payment,294.84,0,COMMERCIAL SUPPLIER
03/05/2022,Adults & Health,London Care Plc,Home Care - Private Contractors Payment,243.36,0,COMMERCIAL SUPPLIER
03/05/2022,Adults & Health,London Care Plc,Daycare - Private Contractors Payment,131.04,0,COMMERCIAL SUPPLIER
03/05/2022,Adults & Health,London Care Plc,Home Care - Private Contractors Payment,393.12,0,COMMERCIAL SUPPLIER
03/05/2022,Adults & Health,London Care Plc,Home Care - Private Contractors Payment,196.56,0,COMMERCIAL SUPPLIER
03/05/2022,Adults & Health,London Care Plc,Daycare - Private Contractors Payment,74.88,0,COMMERCIAL SUPPLIER
03/05/2022,Adults & Health,London Care Plc,Home Care - Private Contractors Payment,28.08,0,COMMERCIAL SUPPLIER
03/05/2022,Adults & Health,London Care Plc,Daycare - Private Contractors Payment,74.88,0,COMMERCIAL SUPPLIER
03/05/2022,Adults & Health,London Care Plc,Home Care - Private Contractors Payment,28.08,0,COMMERCIAL SUPPLIER
03/05/2022,Adults & Health,London Care Plc,Home Care - Private Contractors Payment,18.72,0,COMMERCIAL SUPPLIER
03/05/2022,Adults & Health,London Care Plc,Home Care - Private Contractors Payment,56.16,0,COMMERCIAL SUPPLIER
03/05/2022,Adults & Health,London Care Plc,Home Care - Private Contractors Payment,28.08,0,COMMERCIAL SUPPLIER
03/05/2022,Adults & Health,London Care Plc,Home Care - Private Contractors Payment,98.28,0,COMMERCIAL SUPPLIER
03/05/2022,Adults & Health,London Care Plc,Home Care - Private Contractors Payment,28.08,0,COMMERCIAL SUPPLIER
03/05/2022,Adults & Health,London Care Plc,Respite Care - Private Contractors Payment,37.44,0,COMMERCIAL SUPPLIER
03/05/2022,Adults & Health,London Care Plc,Daycare - Private Contractors Payment,74.88,0,COMMERCIAL SUPPLIER
03/05/2022,Adults & Health,London Care Plc,Home Care - Private Contractors Payment,18.72,0,COMMERCIAL SUPPLIER
03/05/2022,Adults & Health,London Care Plc,Home Care - Private Contractors Payment,327.6,0,COMMERCIAL SUPPLIER
03/05/2022,Adults & Health,London Care Plc,Daycare - Private Contractors Payment,18.72,0,COMMERCIAL SUPPLIER
03/05/2022,Adults & Health,London Care Plc,Home Care - Private Contractors Payment,131.04,0,COMMERCIAL SUPPLIER
03/05/2022,Adults & Health,London Care Plc,Daycare - Private Contractors Payment,37.44,0,COMMERCIAL SUPPLIER
03/05/2022,Adults & Health,London Care Plc,Home Care - Private Contractors Payment,37.44,0,COMMERCIAL SUPPLIER
03/05/2022,Adults & Health,London Care Plc,Home Care - Private Contractors Payment,196.56,0,COMMERCIAL SUPPLIER
03/05/2022,Adults & Health,London Care Plc,Home Care - Private Contractors Payment,262.08,0,COMMERCIAL SUPPLIER
03/05/2022,Adults & Health,London Care Plc,Home Care - Private Contractors Payment,98.28,0,COMMERCIAL SUPPLIER
03/05/2022,Adults & Health,London Care Plc,Home Care - Private Contractors Payment,121.68,0,COMMERCIAL SUPPLIER
03/05/2022,Adults & Health,London Care Plc,Home Care - Private Contractors Payment,18.72,0,COMMERCIAL SUPPLIER
03/05/2022,Adults & Health,London Care Plc,Home Care - Private Contractors Payment,131.04,0,COMMERCIAL SUPPLIER
03/05/2022,Adults & Health,London Care Plc,Home Care - Private Contractors Payment,196.56,0,COMMERCIAL SUPPLIER
03/05/2022,Adults & Health,London Care Plc,Daycare - Private Contractors Payment,37.44,0,COMMERCIAL SUPPLIER
03/05/2022,Adults & Health,London Care Plc,Home Care - Private Contractors Payment,262.08,0,COMMERCIAL SUPPLIER
03/05/2022,Adults & Health,London Care Plc,Home Care - Private Contractors Payment,201.24,0,COMMERCIAL SUPPLIER
03/05/2022,Adults & Health,London Care Plc,Home Care - Private Contractors Payment,37.44,0,COMMERCIAL SUPPLIER
03/05/2022,Adults & Health,London Care Plc,Home Care - Private Contractors Payment,37.44,0,COMMERCIAL SUPPLIER
03/05/2022,Adults & Health,London Care Plc,Home Care - Private Contractors Payment,98.28,0,COMMERCIAL SUPPLIER
03/05/2022,Adults & Health,London Care Plc,Home Care - Private Contractors Payment,196.56,0,COMMERCIAL SUPPLIER
03/05/2022,Adults & Health,London Care Plc,Home Care - Private Contractors Payment,18.72,0,COMMERCIAL SUPPLIER
03/05/2022,Adults & Health,London Care Plc,Home Care - Private Contractors Payment,131.04,0,COMMERCIAL SUPPLIER
03/05/2022,Adults & Health,London Care Plc,Home Care - Private Contractors Payment,163.8,0,COMMERCIAL SUPPLIER
03/05/2022,Adults & Health,London Care Plc,Daycare - Private Contractors Payment,187.2,0,COMMERCIAL SUPPLIER
03/05/2022,Adults & Health,London Care Plc,Home Care - Private Contractors Payment,23.4,0,COMMERCIAL SUPPLIER
03/05/2022,Adults & Health,London Care Plc,Home Care - Private Contractors Payment,131.04,0,COMMERCIAL SUPPLIER
03/05/2022,Adults & Health,London Care Plc,Daycare - Private Contractors Payment,37.44,0,COMMERCIAL SUPPLIER
03/05/2022,Adults & Health,London Care Plc,Daycare - Private Contractors Payment,74.88,0,COMMERCIAL SUPPLIER
03/05/2022,Adults & Health,London Care Plc,Home Care - Private Contractors Payment,430.56,0,COMMERCIAL SUPPLIER
03/05/2022,Adults & Health,London Care Plc,Reablement,163.8,0,COMMERCIAL SUPPLIER
03/05/2022,Adults & Health,London Care Plc,Home Care - Private Contractors Payment,327.6,0,COMMERCIAL SUPPLIER
03/05/2022,Adults & Health,London Care Plc,Home Care - Private Contractors Payment,163.8,0,COMMERCIAL SUPPLIER
03/05/2022,Adults & Health,London Care Plc,Home Care - Private Contractors Payment,74.88,0,COMMERCIAL SUPPLIER
03/05/2022,Adults & Health,London Care Plc,Daycare - Private Contractors Payment,56.16,0,COMMERCIAL SUPPLIER
03/05/2022,Adults & Health,London Care Plc,Home Care - Private Contractors Payment,163.8,0,COMMERCIAL SUPPLIER
03/05/2022,Adults & Health,London Care Plc,Home Care - Private Contractors Payment,163.8,0,COMMERCIAL SUPPLIER
03/05/2022,Adults & Health,London Care Plc,Daycare - Private Contractors Payment,28.08,0,COMMERCIAL SUPPLIER
03/05/2022,Adults & Health,London Care Plc,Daycare - Private Contractors Payment,37.44,0,COMMERCIAL SUPPLIER
03/05/2022,Adults & Health,London Care Plc,Home Care - Private Contractors Payment,130.2,0,COMMERCIAL SUPPLIER
03/05/2022,Adults & Health,London Care Plc,Home Care - Private Contractors Payment,28.08,0,COMMERCIAL SUPPLIER
03/05/2022,Adults & Health,London Care Plc,Home Care - Private Contractors Payment,18.72,0,COMMERCIAL SUPPLIER
03/05/2022,Adults & Health,London Care Plc,Home Care - Private Contractors Payment,74.88,0,COMMERCIAL SUPPLIER
03/05/2022,Adults & Health,London Care Plc,Home Care - Private Contractors Payment,360.36,0,COMMERCIAL SUPPLIER
03/05/2022,Adults & Health,London Care Plc,Home Care - Private Contractors Payment,98.28,0,COMMERCIAL SUPPLIER
03/05/2022,Adults & Health,London Care Plc,Home Care - Private Contractors Payment,229.32,0,COMMERCIAL SUPPLIER
03/05/2022,Adults & Health,London Care Plc,Daycare - Private Contractors Payment,46.8,0,COMMERCIAL SUPPLIER
03/05/2022,Adults & Health,London Care Plc,Home Care - Private Contractors Payment,262.08,0,COMMERCIAL SUPPLIER
03/05/2022,Adults & Health,London Care Plc,Home Care - Private Contractors Payment,163.8,0,COMMERCIAL SUPPLIER
03/05/2022,Adults & Health,London Care Plc,Home Care - Private Contractors Payment,28.08,0,COMMERCIAL SUPPLIER
03/05/2022,Adults & Health,London Care Plc,Home Care - Private Contractors Payment,327.6,0,COMMERCIAL SUPPLIER
03/05/2022,Adults & Health,London Care Plc,Home Care - Private Contractors Payment,93.6,0,COMMERCIAL SUPPLIER
03/05/2022,Adults & Health,London Care Plc,Home Care - Private Contractors Payment,294.84,0,COMMERCIAL SUPPLIER
03/05/2022,Adults & Health,London Care Plc,Home Care - Private Contractors Payment,262.08,0,COMMERCIAL SUPPLIER
03/05/2022,Adults & Health,London Care Plc,Home Care - Private Contractors Payment,131.04,0,COMMERCIAL SUPPLIER
03/05/2022,Adults & Health,London Care Plc,Daycare - Private Contractors Payment,56.16,0,COMMERCIAL SUPPLIER
03/05/2022,Adults & Health,London Care Plc,Home Care - Private Contractors Payment,177.84,0,COMMERCIAL SUPPLIER
03/05/2022,Adults & Health,London Care Plc,Home Care - Private Contractors Payment,46.8,0,COMMERCIAL SUPPLIER
03/05/2022,Adults & Health,London Care Plc,Home Care - Private Contractors Payment,327.6,0,COMMERCIAL SUPPLIER
03/05/2022,Adults & Health,London Care Plc,Home Care - Private Contractors Payment,28.08,0,COMMERCIAL SUPPLIER
03/05/2022,Adults & Health,London Care Plc,Home Care - Private Contractors Payment,37.44,0,COMMERCIAL SUPPLIER
03/05/2022,Adults & Health,London Care Plc,Daycare - Private Contractors Payment,56.16,0,COMMERCIAL SUPPLIER
03/05/2022,Adults & Health,London Care Plc,Home Care - Private Contractors Payment,140.4,0,COMMERCIAL SUPPLIER
03/05/2022,Adults & Health,London Care Plc,Daycare - Private Contractors Payment,74.88,0,COMMERCIAL SUPPLIER
03/05/2022,Adults & Health,London Care Plc,Home Care - Private Contractors Payment,18.72,0,COMMERCIAL SUPPLIER
03/05/2022,Adults & Health,London Care Plc,Home Care - Private Contractors Payment,37.44,0,COMMERCIAL SUPPLIER
03/05/2022,Adults & Health,London Care Plc,Home Care - Private Contractors Payment,18.72,0,COMMERCIAL SUPPLIER
03/05/2022,Adults & Health,London Care Plc,Home Care - Private Contractors Payment,196.56,0,COMMERCIAL SUPPLIER
03/05/2022,Adults & Health,London Care Plc,Home Care - Private Contractors Payment,112.32,0,COMMERCIAL SUPPLIER
03/05/2022,Adults & Health,London Care Plc,Home Care - Private Contractors Payment,98.28,0,COMMERCIAL SUPPLIER
03/05/2022,Adults & Health,London Care Plc,Home Care - Private Contractors Payment,18.72,0,COMMERCIAL SUPPLIER
03/05/2022,Adults & Health,London Care Plc,Home Care - Private Contractors Payment,277.08,0,COMMERCIAL SUPPLIER
03/05/2022,Adults & Health,London Care Plc,Home Care - Private Contractors Payment,37.44,0,COMMERCIAL SUPPLIER
03/05/2022,Adults & Health,London Care Plc,Home Care - Private Contractors Payment,94.54,0,COMMERCIAL SUPPLIER
03/05/2022,Adults & Health,London Care Plc,Home Care - Private Contractors Payment,37.44,0,COMMERCIAL SUPPLIER
03/05/2022,Adults & Health,London Care Plc,Home Care - Private Contractors Payment,65.52,0,COMMERCIAL SUPPLIER
03/05/2022,Adults & Health,London Care Plc,Home Care - Private Contractors Payment,28.08,0,COMMERCIAL SUPPLIER
03/05/2022,Adults & Health,London Care Plc,Home Care - Private Contractors Payment,56.16,0,COMMERCIAL SUPPLIER
03/05/2022,Adults & Health,London Care Plc,Home Care - Private Contractors Payment,28.08,0,COMMERCIAL SUPPLIER
03/05/2022,Adults & Health,London Care Plc,Home Care - Private Contractors Payment,14.04,0,COMMERCIAL SUPPLIER
03/05/2022,Adults & Health,London Care Plc,Home Care - Private Contractors Payment,18.72,0,COMMERCIAL SUPPLIER
03/05/2022,Adults & Health,London Care Plc,Home Care - Private Contractors Payment,163.8,0,COMMERCIAL SUPPLIER
03/05/2022,Adults & Health,London Care Plc,Home Care - Private Contractors Payment,262.08,0,COMMERCIAL SUPPLIER
03/05/2022,Adults & Health,London Care Plc,Home Care - Private Contractors Payment,65.52,0,COMMERCIAL SUPPLIER
03/05/2022,Adults & Health,London Care Plc,Home Care - Private Contractors Payment,126.36,0,COMMERCIAL SUPPLIER
03/05/2022,Adults & Health,London Care Plc,Home Care - Private Contractors Payment,229.32,0,COMMERCIAL SUPPLIER
03/05/2022,Adults & Health,London Care Plc,Home Care - Private Contractors Payment,177.84,0,COMMERCIAL SUPPLIER
03/05/2022,Adults & Health,London Care Plc,Daycare - Private Contractors Payment,18.72,0,COMMERCIAL SUPPLIER
03/05/2022,Adults & Health,London Care Plc,Home Care - Private Contractors Payment,37.44,0,COMMERCIAL SUPPLIER
03/05/2022,Adults & Health,London Care Plc,Home Care - Private Contractors Payment,28.08,0,COMMERCIAL SUPPLIER
03/05/2022,Adults & Health,London Care Plc,Respite Care - Private Contractors Payment,37.44,0,COMMERCIAL SUPPLIER
03/05/2022,Adults & Health,London Care Plc,Home Care - Private Contractors Payment,98.28,0,COMMERCIAL SUPPLIER
03/05/2022,Adults & Health,London Care Plc,Home Care - Private Contractors Payment,88.92,0,COMMERCIAL SUPPLIER
03/05/2022,Adults & Health,London Care Plc,Home Care - Private Contractors Payment,98.28,0,COMMERCIAL SUPPLIER
03/05/2022,Adults & Health,London Care Plc,Daycare - Private Contractors Payment,46.8,0,COMMERCIAL SUPPLIER
03/05/2022,Adults & Health,London Care Plc,Home Care - Private Contractors Payment,65.52,0,COMMERCIAL SUPPLIER
03/05/2022,Adults & Health,London Care Plc,Daycare - Private Contractors Payment,18.72,0,COMMERCIAL SUPPLIER
03/05/2022,Adults & Health,London Care Plc,Reablement,163.8,0,COMMERCIAL SUPPLIER
03/05/2022,Adults & Health,London Care Plc,Daycare - Private Contractors Payment,264.9,0,COMMERCIAL SUPPLIER
03/05/2022,Adults & Health,London Care Plc,Home Care - Private Contractors Payment,74.88,0,COMMERCIAL SUPPLIER
03/05/2022,Adults & Health,London Care Plc,Home Care - Private Contractors Payment,229.32,0,COMMERCIAL SUPPLIER
03/05/2022,Adults & Health,London Care Plc,Home Care - Private Contractors Payment,74.88,0,COMMERCIAL SUPPLIER
03/05/2022,Adults & Health,London Care Plc,Daycare - Private Contractors Payment,56.16,0,COMMERCIAL SUPPLIER
03/05/2022,Adults & Health,London Care Plc,Home Care - Private Contractors Payment,128.88,0,COMMERCIAL SUPPLIER
03/05/2022,Adults & Health,London Care Plc,Home Care - Private Contractors Payment,229.32,0,COMMERCIAL SUPPLIER
03/05/2022,Adults & Health,London Care Plc,Home Care - Private Contractors Payment,79.56,0,COMMERCIAL SUPPLIER
03/05/2022,Adults & Health,London Care Plc,Home Care - Private Contractors Payment,277.08,0,COMMERCIAL SUPPLIER
03/05/2022,Adults & Health,London Care Plc,Home Care - Private Contractors Payment,18.72,0,COMMERCIAL SUPPLIER
03/05/2022,Adults & Health,London Care Plc,Home Care - Private Contractors Payment,146.04,0,COMMERCIAL SUPPLIER
03/05/2022,Adults & Health,London Care Plc,Home Care - Private Contractors Payment,56.16,0,COMMERCIAL SUPPLIER
03/05/2022,Adults & Health,London Care Plc,Home Care - Private Contractors Payment,57.71,0,COMMERCIAL SUPPLIER
03/05/2022,Adults & Health,London Care Plc,Home Care - Private Contractors Payment,45.24,0,COMMERCIAL SUPPLIER
03/05/2022,Adults & Health,London Care Plc,Home Care - Private Contractors Payment,430.56,0,COMMERCIAL SUPPLIER
03/05/2022,Adults & Health,London Care Plc,Respite Care - Private Contractors Payment,74.88,0,COMMERCIAL SUPPLIER
03/05/2022,Adults & Health,London Care Plc,Home Care - Private Contractors Payment,65.52,0,COMMERCIAL SUPPLIER
03/05/2022,Adults & Health,London Care Plc,Home Care - Private Contractors Payment,65.52,0,COMMERCIAL SUPPLIER
03/05/2022,Adults & Health,London Care Plc,Home Care - Private Contractors Payment,56.16,0,COMMERCIAL SUPPLIER
03/05/2022,Adults & Health,London Care Plc,Home Care - Private Contractors Payment,149.76,0,COMMERCIAL SUPPLIER
03/05/2022,Adults & Health,London Care Plc,Home Care - Private Contractors Payment,687.96,0,COMMERCIAL SUPPLIER
03/05/2022,Adults & Health,London Care Plc,Home Care - Private Contractors Payment,131.04,0,COMMERCIAL SUPPLIER
03/05/2022,Adults & Health,London Care Plc,Home Care - Private Contractors Payment,449.28,0,COMMERCIAL SUPPLIER
03/05/2022,Adults & Health,London Care Plc,Home Care - Private Contractors Payment,163.8,0,COMMERCIAL SUPPLIER
03/05/2022,Adults & Health,London Care Plc,Home Care - Private Contractors Payment,720.72,0,COMMERCIAL SUPPLIER
03/05/2022,Adults & Health,London Care Plc,Home Care - Private Contractors Payment,294.84,0,COMMERCIAL SUPPLIER
03/05/2022,Adults & Health,London Care Plc,Daycare - Private Contractors Payment,112.32,0,COMMERCIAL SUPPLIER
03/05/2022,Adults & Health,London Care Plc,Reablement,98.28,0,COMMERCIAL SUPPLIER
03/05/2022,Adults & Health,London Care Plc,Home Care - Private Contractors Payment,131.04,0,COMMERCIAL SUPPLIER
03/05/2022,Adults & Health,London Care Plc,Home Care - Private Contractors Payment,37.44,0,COMMERCIAL SUPPLIER
03/05/2022,Adults & Health,London Care Plc,Home Care - Private Contractors Payment,112.32,0,COMMERCIAL SUPPLIER
03/05/2022,Adults & Health,London Care Plc,Home Care - Private Contractors Payment,28.08,0,COMMERCIAL SUPPLIER
03/05/2022,Adults & Health,London Care Plc,Home Care - Private Contractors Payment,131.04,0,COMMERCIAL SUPPLIER
03/05/2022,Adults & Health,London Care Plc,Home Care - Private Contractors Payment,131.04,0,COMMERCIAL SUPPLIER
03/05/2022,Adults & Health,London Care Plc,Home Care - Private Contractors Payment,37.44,0,COMMERCIAL SUPPLIER
03/05/2022,Adults & Health,London Care Plc,Home Care - Private Contractors Payment,18.72,0,COMMERCIAL SUPPLIER
03/05/2022,Adults & Health,London Care Plc,Home Care - Private Contractors Payment,163.8,0,COMMERCIAL SUPPLIER
03/05/2022,Adults & Health,London Care Plc,Daycare - Private Contractors Payment,74.88,0,COMMERCIAL SUPPLIER
03/05/2022,Adults & Health,London Care Plc,Home Care - Private Contractors Payment,65.52,0,COMMERCIAL SUPPLIER
03/05/2022,Adults & Health,London Care Plc,Home Care - Private Contractors Payment,28.08,0,COMMERCIAL SUPPLIER
03/05/2022,Adults & Health,London Care Plc,Home Care - Private Contractors Payment,93.6,0,COMMERCIAL SUPPLIER
03/05/2022,Adults & Health,London Care Plc,Daycare - Private Contractors Payment,56.16,0,COMMERCIAL SUPPLIER
03/05/2022,Adults & Health,London Care Plc,Home Care - Private Contractors Payment,28.08,0,COMMERCIAL SUPPLIER
03/05/2022,Adults & Health,London Care Plc,Home Care - Private Contractors Payment,327.6,0,COMMERCIAL SUPPLIER
03/05/2022,Adults & Health,London Care Plc,Daycare - Private Contractors Payment,262.08,0,COMMERCIAL SUPPLIER
03/05/2022,Adults & Health,London Care Plc,Home Care - Private Contractors Payment,65.52,0,COMMERCIAL SUPPLIER
03/05/2022,Adults & Health,London Care Plc,Daycare - Private Contractors Payment,93.6,0,COMMERCIAL SUPPLIER
03/05/2022,Adults & Health,London Care Plc,Home Care - Private Contractors Payment,56.16,0,COMMERCIAL SUPPLIER
03/05/2022,Adults & Health,London Care Plc,Home Care - Private Contractors Payment,37.44,0,COMMERCIAL SUPPLIER
03/05/2022,Adults & Health,London Care Plc,Daycare - Private Contractors Payment,37.44,0,COMMERCIAL SUPPLIER
03/05/2022,Adults & Health,London Care Plc,Daycare - Private Contractors Payment,18.72,0,COMMERCIAL SUPPLIER
03/05/2022,Adults & Health,London Care Plc,Reablement,98.28,0,COMMERCIAL SUPPLIER
03/05/2022,Adults & Health,London Care Plc,Home Care - Private Contractors Payment,56.16,0,COMMERCIAL SUPPLIER
03/05/2022,Adults & Health,London Care Plc,Daycare - Private Contractors Payment,252.72,0,COMMERCIAL SUPPLIER
03/05/2022,Adults & Health,London Care Plc,Home Care - Private Contractors Payment,262.08,0,COMMERCIAL SUPPLIER
03/05/2022,Adults & Health,London Care Plc,Home Care - Private Contractors Payment,56.16,0,COMMERCIAL SUPPLIER
03/05/2022,Adults & Health,London Care Plc,Home Care - Private Contractors Payment,163.8,0,COMMERCIAL SUPPLIER
03/05/2022,Adults & Health,London Care Plc,Home Care - Private Contractors Payment,98.28,0,COMMERCIAL SUPPLIER
03/05/2022,Adults & Health,London Care Plc,Daycare - Private Contractors Payment,187.2,0,COMMERCIAL SUPPLIER
03/05/2022,Adults & Health,London Care Plc,Home Care - Private Contractors Payment,196.56,0,COMMERCIAL SUPPLIER
03/05/2022,Adults & Health,London Care Plc,Home Care - Private Contractors Payment,126.36,0,COMMERCIAL SUPPLIER
03/05/2022,Adults & Health,London Care Plc,Home Care - Private Contractors Payment,163.8,0,COMMERCIAL SUPPLIER
03/05/2022,Adults & Health,London Care Plc,Home Care - Private Contractors Payment,229.32,0,COMMERCIAL SUPPLIER
03/05/2022,Adults & Health,London Care Plc,Daycare - Private Contractors Payment,37.44,0,COMMERCIAL SUPPLIER
03/05/2022,Adults & Health,London Care Plc,Home Care - Private Contractors Payment,88.92,0,COMMERCIAL SUPPLIER
03/05/2022,Adults & Health,London Care Plc,Home Care - Private Contractors Payment,142.26,0,COMMERCIAL SUPPLIER
03/05/2022,Adults & Health,London Care Plc,Home Care - Private Contractors Payment,65.52,0,COMMERCIAL SUPPLIER
03/05/2022,Adults & Health,London Care Plc,Home Care - Private Contractors Payment,37.44,0,COMMERCIAL SUPPLIER
03/05/2022,Adults & Health,London Care Plc,Home Care - Private Contractors Payment,18.72,0,COMMERCIAL SUPPLIER
03/05/2022,Adults & Health,London Care Plc,Respite Care - Private Contractors Payment,74.88,0,COMMERCIAL SUPPLIER
03/05/2022,Adults & Health,London Care Plc,Daycare - Private Contractors Payment,14.97,0,COMMERCIAL SUPPLIER
03/05/2022,Adults & Health,London Care Plc,Home Care - Private Contractors Payment,28.08,0,COMMERCIAL SUPPLIER
03/05/2022,Adults & Health,London Care Plc,Home Care - Private Contractors Payment,65.52,0,COMMERCIAL SUPPLIER
03/05/2022,Adults & Health,London Care Plc,Home Care - Private Contractors Payment,28.08,0,COMMERCIAL SUPPLIER
03/05/2022,Adults & Health,London Care Plc,Home Care - Private Contractors Payment,46.8,0,COMMERCIAL SUPPLIER
03/05/2022,Adults & Health,London Care Plc,Home Care - Private Contractors Payment,196.56,0,COMMERCIAL SUPPLIER
03/05/2022,Adults & Health,London Care Plc,Home Care - Private Contractors Payment,56.16,0,COMMERCIAL SUPPLIER
03/05/2022,Adults & Health,London Care Plc,Home Care - Private Contractors Payment,244.32,0,COMMERCIAL SUPPLIER
03/05/2022,Adults & Health,London Care Plc,Home Care - Private Contractors Payment,229.32,0,COMMERCIAL SUPPLIER
03/05/2022,Adults & Health,London Care Plc,Home Care - Private Contractors Payment,107.64,0,COMMERCIAL SUPPLIER
03/05/2022,Adults & Health,London Care Plc,Daycare - Private Contractors Payment,4.68,0,COMMERCIAL SUPPLIER
03/05/2022,Adults & Health,London Care Plc,Home Care - Private Contractors Payment,149.76,0,COMMERCIAL SUPPLIER
03/05/2022,Adults & Health,London Care Plc,Daycare - Private Contractors Payment,56.16,0,COMMERCIAL SUPPLIER
03/05/2022,Adults & Health,London Care Plc,Home Care - Private Contractors Payment,294.84,0,COMMERCIAL SUPPLIER
03/05/2022,Adults & Health,London Care Plc,Home Care - Private Contractors Payment,42.12,0,COMMERCIAL SUPPLIER
03/05/2022,Adults & Health,London Care Plc,Daycare - Private Contractors Payment,187.2,0,COMMERCIAL SUPPLIER
03/05/2022,Adults & Health,London Care Plc,Home Care - Private Contractors Payment,130.2,0,COMMERCIAL SUPPLIER
03/05/2022,Adults & Health,London Care Plc,Home Care - Private Contractors Payment,79.56,0,COMMERCIAL SUPPLIER
03/05/2022,Adults & Health,London Care Plc,Home Care - Private Contractors Payment,74.88,0,COMMERCIAL SUPPLIER
03/05/2022,Adults & Health,London Care Plc,Home Care - Private Contractors Payment,74.88,0,COMMERCIAL SUPPLIER
03/05/2022,Adults & Health,London Care Plc,Home Care - Private Contractors Payment,98.28,0,COMMERCIAL SUPPLIER
03/05/2022,Adults & Health,London Care Plc,Home Care - Private Contractors Payment,219.96,0,COMMERCIAL SUPPLIER
03/05/2022,Adults & Health,London Care Plc,Home Care - Private Contractors Payment,18.72,0,COMMERCIAL SUPPLIER
03/05/2022,Adults & Health,London Care Plc,Home Care - Private Contractors Payment,687.96,0,COMMERCIAL SUPPLIER
03/05/2022,Adults & Health,London Care Plc,Home Care - Private Contractors Payment,37.44,0,COMMERCIAL SUPPLIER
03/05/2022,Adults & Health,London Care Plc,Home Care - Private Contractors Payment,98.28,0,COMMERCIAL SUPPLIER
03/05/2022,Adults & Health,London Care Plc,Home Care - Private Contractors Payment,163.8,0,COMMERCIAL SUPPLIER
03/05/2022,Adults & Health,London Care Plc,Home Care - Private Contractors Payment,262.08,0,COMMERCIAL SUPPLIER
03/05/2022,Adults & Health,London Care Plc,Respite Care - Private Contractors Payment,74.88,0,COMMERCIAL SUPPLIER
03/05/2022,Adults & Health,London Care Plc,Home Care - Private Contractors Payment,28.08,0,COMMERCIAL SUPPLIER
03/05/2022,Adults & Health,London Care Plc,Home Care - Private Contractors Payment,131.04,0,COMMERCIAL SUPPLIER
03/05/2022,Adults & Health,London Care Plc,Home Care - Private Contractors Payment,491.4,0,COMMERCIAL SUPPLIER
03/05/2022,Adults & Health,London Care Plc,Home Care - Private Contractors Payment,163.8,0,COMMERCIAL SUPPLIER
03/05/2022,Adults & Health,London Care Plc,Home Care - Private Contractors Payment,18.72,0,COMMERCIAL SUPPLIER
03/05/2022,Adults & Health,London Care Plc,Home Care - Private Contractors Payment,187.2,0,COMMERCIAL SUPPLIER
03/05/2022,Adults & Health,London Care Plc,Daycare - Private Contractors Payment,93.6,0,COMMERCIAL SUPPLIER
03/05/2022,Adults & Health,London Care Plc,Home Care - Private Contractors Payment,98.28,0,COMMERCIAL SUPPLIER
03/05/2022,Adults & Health,London Care Plc,Home Care - Private Contractors Payment,229.32,0,COMMERCIAL SUPPLIER
03/05/2022,Adults & Health,London Care Plc,Daycare - Private Contractors Payment,93.6,0,COMMERCIAL SUPPLIER
03/05/2022,Adults & Health,London Care Plc,Home Care - Private Contractors Payment,163.8,0,COMMERCIAL SUPPLIER
03/05/2022,Adults & Health,London Care Plc,Home Care - Private Contractors Payment,42.12,0,COMMERCIAL SUPPLIER
03/05/2022,Adults & Health,London Care Plc,Home Care - Private Contractors Payment,28.08,0,COMMERCIAL SUPPLIER
03/05/2022,Adults & Health,London Care Plc,Home Care - Private Contractors Payment,18.72,0,COMMERCIAL SUPPLIER
03/05/2022,Adults & Health,London Care Plc,Home Care - Private Contractors Payment,163.8,0,COMMERCIAL SUPPLIER
03/05/2022,Adults & Health,London Care Plc,Home Care - Private Contractors Payment,37.44,0,COMMERCIAL SUPPLIER
03/05/2022,Adults & Health,London Care Plc,Home Care - Private Contractors Payment,28.08,0,COMMERCIAL SUPPLIER
03/05/2022,Adults & Health,London Care Plc,Home Care - Private Contractors Payment,79.56,0,COMMERCIAL SUPPLIER
03/05/2022,Adults & Health,London Care Plc,Home Care - Private Contractors Payment,327.6,0,COMMERCIAL SUPPLIER
03/05/2022,Adults & Health,London Care Plc,Home Care - Private Contractors Payment,37.44,0,COMMERCIAL SUPPLIER
03/05/2022,Adults & Health,London Care Plc,Home Care - Private Contractors Payment,37.44,0,COMMERCIAL SUPPLIER
03/05/2022,Adults & Health,London Care Plc,Home Care - Private Contractors Payment,37.44,0,COMMERCIAL SUPPLIER
03/05/2022,Adults & Health,London Care Plc,Home Care - Private Contractors Payment,229.32,0,COMMERCIAL SUPPLIER
03/05/2022,Adults & Health,London Care Plc,Home Care - Private Contractors Payment,196.56,0,COMMERCIAL SUPPLIER
03/05/2022,Adults & Health,London Care Plc,Home Care - Private Contractors Payment,18.72,0,COMMERCIAL SUPPLIER
03/05/2022,Adults & Health,London Care Plc,Home Care - Private Contractors Payment,131.04,0,COMMERCIAL SUPPLIER
03/05/2022,Adults & Health,London Care Plc,Respite Care - Private Contractors Payment,224.64,0,COMMERCIAL SUPPLIER
03/05/2022,Adults & Health,London Care Plc,Home Care - Private Contractors Payment,196.56,0,COMMERCIAL SUPPLIER
03/05/2022,Adults & Health,London Care Plc,Home Care - Private Contractors Payment,327.6,0,COMMERCIAL SUPPLIER
03/05/2022,Adults & Health,London Care Plc,Home Care - Private Contractors Payment,74.88,0,COMMERCIAL SUPPLIER
03/05/2022,Adults & Health,London Care Plc,Home Care - Private Contractors Payment,18.72,0,COMMERCIAL SUPPLIER
03/05/2022,Adults & Health,London Care Plc,Home Care - Private Contractors Payment,243.36,0,COMMERCIAL SUPPLIER
03/05/2022,Adults & Health,London Care Plc,Home Care - Private Contractors Payment,98.28,0,COMMERCIAL SUPPLIER
03/05/2022,Adults & Health,London Care Plc,Home Care - Private Contractors Payment,37.44,0,COMMERCIAL SUPPLIER
03/05/2022,Adults & Health,London Care Plc,Daycare - Private Contractors Payment,28.08,0,COMMERCIAL SUPPLIER
03/05/2022,Adults & Health,London Care Plc,Home Care - Private Contractors Payment,243.36,0,COMMERCIAL SUPPLIER
03/05/2022,Adults & Health,London Care Plc,Home Care - Private Contractors Payment,18.72,0,COMMERCIAL SUPPLIER
03/05/2022,Adults & Health,London Care Plc,Home Care - Private Contractors Payment,28.08,0,COMMERCIAL SUPPLIER
03/05/2022,Adults & Health,London Care Plc,Home Care - Private Contractors Payment,196.56,0,COMMERCIAL SUPPLIER
03/05/2022,Adults & Health,London Care Plc,Home Care - Private Contractors Payment,18.72,0,COMMERCIAL SUPPLIER
03/05/2022,Adults & Health,London Care Plc,Home Care - Private Contractors Payment,196.56,0,COMMERCIAL SUPPLIER
03/05/2022,Adults & Health,London Care Plc,Home Care - Private Contractors Payment,262.08,0,COMMERCIAL SUPPLIER
03/05/2022,Adults & Health,London Care Plc,Home Care - Private Contractors Payment,37.44,0,COMMERCIAL SUPPLIER
03/05/2022,Adults & Health,London Care Plc,Home Care - Private Contractors Payment,98.28,0,COMMERCIAL SUPPLIER
03/05/2022,Adults & Health,London Care Plc,Daycare - Private Contractors Payment,37.44,0,COMMERCIAL SUPPLIER
03/05/2022,Adults & Health,London Care Plc,Home Care - Private Contractors Payment,18.72,0,COMMERCIAL SUPPLIER
03/05/2022,Adults & Health,London Care Plc,Home Care - Private Contractors Payment,93.6,0,COMMERCIAL SUPPLIER
03/05/2022,Adults & Health,London Care Plc,Home Care - Private Contractors Payment,104.2,0,COMMERCIAL SUPPLIER
03/05/2022,Adults & Health,London Care Plc,Home Care - Private Contractors Payment,294.84,0,COMMERCIAL SUPPLIER
03/05/2022,Adults & Health,London Care Plc,Home Care - Private Contractors Payment,56.16,0,COMMERCIAL SUPPLIER
03/05/2022,Adults & Health,London Care Plc,Home Care - Private Contractors Payment,18.72,0,COMMERCIAL SUPPLIER
03/05/2022,Adults & Health,London Care Plc,Daycare - Private Contractors Payment,99.53,0,COMMERCIAL SUPPLIER
03/05/2022,Adults & Health,London Care Plc,Home Care - Private Contractors Payment,71.44,0,COMMERCIAL SUPPLIER
03/05/2022,Adults & Health,London Care Plc,Home Care - Private Contractors Payment,31.51,0,COMMERCIAL SUPPLIER
03/05/2022,Adults & Health,London Care Plc,Home Care - Private Contractors Payment,181.59,0,COMMERCIAL SUPPLIER
03/05/2022,Adults & Health,London Care Plc,Daycare - Private Contractors Payment,37.44,0,COMMERCIAL SUPPLIER
03/05/2022,Adults & Health,London Care Plc,Reablement,84.24,0,COMMERCIAL SUPPLIER
03/05/2022,Adults & Health,London Care Plc,Daycare - Private Contractors Payment,37.44,0,COMMERCIAL SUPPLIER
03/05/2022,Adults & Health,London Care Plc,Home Care - Private Contractors Payment,163.8,0,COMMERCIAL SUPPLIER
03/05/2022,Adults & Health,London Care Plc,Home Care - Private Contractors Payment,98.28,0,COMMERCIAL SUPPLIER
03/05/2022,Adults & Health,London Care Plc,Home Care - Private Contractors Payment,425.88,0,COMMERCIAL SUPPLIER
03/05/2022,Adults & Health,London Care Plc,Home Care - Private Contractors Payment,56.16,0,COMMERCIAL SUPPLIER
03/05/2022,Adults & Health,London Care Plc,Home Care - Private Contractors Payment,294.84,0,COMMERCIAL SUPPLIER
03/05/2022,Adults & Health,London Care Plc,Home Care - Private Contractors Payment,229.32,0,COMMERCIAL SUPPLIER
03/05/2022,Adults & Health,London Care Plc,Home Care - Private Contractors Payment,131.04,0,COMMERCIAL SUPPLIER
03/05/2022,Adults & Health,London Care Plc,Respite Care - Private Contractors Payment,93.6,0,COMMERCIAL SUPPLIER
03/05/2022,Adults & Health,London Care Plc,Home Care - Private Contractors Payment,229.32,0,COMMERCIAL SUPPLIER
03/05/2022,Adults & Health,London Care Plc,Home Care - Private Contractors Payment,18.72,0,COMMERCIAL SUPPLIER
03/05/2022,Adults & Health,London Care Plc,Home Care - Private Contractors Payment,18.72,0,COMMERCIAL SUPPLIER
03/05/2022,Adults & Health,London Care Plc,Home Care - Private Contractors Payment,98.28,0,COMMERCIAL SUPPLIER
03/05/2022,Adults & Health,London Care Plc,Home Care - Private Contractors Payment,177.84,0,COMMERCIAL SUPPLIER
03/05/2022,Adults & Health,London Care Plc,Home Care - Private Contractors Payment,393.12,0,COMMERCIAL SUPPLIER
03/05/2022,Adults & Health,London Care Plc,Home Care - Private Contractors Payment,131.04,0,COMMERCIAL SUPPLIER
03/05/2022,Adults & Health,London Care Plc,Daycare - Private Contractors Payment,18.72,0,COMMERCIAL SUPPLIER
03/05/2022,Adults & Health,London Care Plc,Home Care - Private Contractors Payment,98.28,0,COMMERCIAL SUPPLIER
03/05/2022,Adults & Health,London Care Plc,Home Care - Private Contractors Payment,238.68,0,COMMERCIAL SUPPLIER
03/05/2022,Adults & Health,London Care Plc,Home Care - Private Contractors Payment,18.72,0,COMMERCIAL SUPPLIER
03/05/2022,Adults & Health,London Care Plc,Home Care - Private Contractors Payment,327.6,0,COMMERCIAL SUPPLIER
03/05/2022,Adults & Health,London Care Plc,Home Care - Private Contractors Payment,56.16,0,COMMERCIAL SUPPLIER
03/05/2022,Adults & Health,London Care Plc,Home Care - Private Contractors Payment,327.6,0,COMMERCIAL SUPPLIER
03/05/2022,Adults & Health,London Care Plc,Home Care - Private Contractors Payment,196.56,0,COMMERCIAL SUPPLIER
03/05/2022,Adults & Health,London Care Plc,Reablement,70.2,0,COMMERCIAL SUPPLIER
03/05/2022,Adults & Health,London Care Plc,Home Care - Private Contractors Payment,294.84,0,COMMERCIAL SUPPLIER
03/05/2022,Adults & Health,London Care Plc,Home Care - Private Contractors Payment,18.72,0,COMMERCIAL SUPPLIER
03/05/2022,Adults & Health,London Care Plc,Home Care - Private Contractors Payment,84.24,0,COMMERCIAL SUPPLIER
03/05/2022,Adults & Health,London Care Plc,Home Care - Private Contractors Payment,18.72,0,COMMERCIAL SUPPLIER
03/05/2022,Adults & Health,London Care Plc,Home Care - Private Contractors Payment,28.08,0,COMMERCIAL SUPPLIER
03/05/2022,Adults & Health,London Care Plc,Reablement,98.28,0,COMMERCIAL SUPPLIER
03/05/2022,Adults & Health,London Care Plc,Home Care - Private Contractors Payment,93.6,0,COMMERCIAL SUPPLIER
03/05/2022,Adults & Health,London Care Plc,Home Care - Private Contractors Payment,196.56,0,COMMERCIAL SUPPLIER
03/05/2022,Adults & Health,London Care Plc,Home Care - Private Contractors Payment,375.36,0,COMMERCIAL SUPPLIER
03/05/2022,Adults & Health,London Care Plc,Respite Care - Private Contractors Payment,224.64,0,COMMERCIAL SUPPLIER
03/05/2022,Adults & Health,London Care Plc,Home Care - Private Contractors Payment,326.97,0,COMMERCIAL SUPPLIER
03/05/2022,Adults & Health,London Care Plc,Home Care - Private Contractors Payment,506.4,0,COMMERCIAL SUPPLIER
03/05/2022,Adults & Health,London Care Plc,Home Care - Private Contractors Payment,309.84,0,COMMERCIAL SUPPLIER
03/05/2022,Adults & Health,London Care Plc,Home Care - Private Contractors Payment,141.36,0,COMMERCIAL SUPPLIER
03/05/2022,Adults & Health,London Care Plc,Home Care - Private Contractors Payment,37.44,0,COMMERCIAL SUPPLIER
03/05/2022,Adults & Health,London Care Plc,Home Care - Private Contractors Payment,187.2,0,COMMERCIAL SUPPLIER
03/05/2022,Adults & Health,London Care Plc,Home Care - Private Contractors Payment,93.6,0,COMMERCIAL SUPPLIER
03/05/2022,Adults & Health,London Care Plc,Home Care - Private Contractors Payment,37.44,0,COMMERCIAL SUPPLIER
03/05/2022,Adults & Health,London Care Plc,Home Care - Private Contractors Payment,211.56,0,COMMERCIAL SUPPLIER
03/05/2022,Adults & Health,London Care Plc,Home Care - Private Contractors Payment,163.8,0,COMMERCIAL SUPPLIER
03/05/2022,Adults & Health,London Care Plc,Home Care - Private Contractors Payment,42.12,0,COMMERCIAL SUPPLIER
03/05/2022,Adults & Health,London Care Plc,Home Care - Private Contractors Payment,28.08,0,COMMERCIAL SUPPLIER
03/05/2022,Adults & Health,London Care Plc,Home Care - Private Contractors Payment,37.44,0,COMMERCIAL SUPPLIER
03/05/2022,Adults & Health,London Care Plc,Home Care - Private Contractors Payment,196.56,0,COMMERCIAL SUPPLIER
03/05/2022,Adults & Health,London Care Plc,Home Care - Private Contractors Payment,734.74,0,COMMERCIAL SUPPLIER
03/05/2022,Adults & Health,London Care Plc,Daycare - Private Contractors Payment,74.88,0,COMMERCIAL SUPPLIER
03/05/2022,Adults & Health,London Care Plc,Home Care - Private Contractors Payment,37.44,0,COMMERCIAL SUPPLIER
03/05/2022,Adults & Health,London Care Plc,Home Care - Private Contractors Payment,98.28,0,COMMERCIAL SUPPLIER
03/05/2022,Adults & Health,London Care Plc,Home Care - Private Contractors Payment,18.72,0,COMMERCIAL SUPPLIER
03/05/2022,Adults & Health,London Care Plc,Home Care - Private Contractors Payment,56.16,0,COMMERCIAL SUPPLIER
03/05/2022,Adults & Health,London Care Plc,Daycare - Private Contractors Payment,131.04,0,COMMERCIAL SUPPLIER
03/05/2022,Adults & Health,London Care Plc,Home Care - Private Contractors Payment,42.12,0,COMMERCIAL SUPPLIER
03/05/2022,Adults & Health,London Care Plc,Daycare - Private Contractors Payment,74.88,0,COMMERCIAL SUPPLIER
03/05/2022,Adults & Health,London Care Plc,Home Care - Private Contractors Payment,65.52,0,COMMERCIAL SUPPLIER
03/05/2022,Adults & Health,London Care Plc,Home Care - Private Contractors Payment,196.56,0,COMMERCIAL SUPPLIER
03/05/2022,Adults & Health,London Care Plc,Home Care - Private Contractors Payment,112.32,0,COMMERCIAL SUPPLIER
03/05/2022,Adults & Health,London Care Plc,Home Care - Private Contractors Payment,65.52,0,COMMERCIAL SUPPLIER
03/05/2022,Adults & Health,London Care Plc,Home Care - Private Contractors Payment,18.72,0,COMMERCIAL SUPPLIER
03/05/2022,Adults & Health,London Care Plc,Home Care - Private Contractors Payment,98.28,0,COMMERCIAL SUPPLIER
03/05/2022,Adults & Health,London Care Plc,Home Care - Private Contractors Payment,18.72,0,COMMERCIAL SUPPLIER
03/05/2022,Adults & Health,London Care Plc,Home Care - Private Contractors Payment,294.84,0,COMMERCIAL SUPPLIER
03/05/2022,Adults & Health,London Care Plc,Home Care - Private Contractors Payment,163.8,0,COMMERCIAL SUPPLIER
03/05/2022,Adults & Health,London Care Plc,Home Care - Private Contractors Payment,229.32,0,COMMERCIAL SUPPLIER
03/05/2022,Adults & Health,London Care Plc,Home Care - Private Contractors Payment,18.72,0,COMMERCIAL SUPPLIER
03/05/2022,Adults & Health,London Care Plc,Home Care - Private Contractors Payment,93.6,0,COMMERCIAL SUPPLIER
03/05/2022,Adults & Health,London Care Plc,Daycare - Private Contractors Payment,28.08,0,COMMERCIAL SUPPLIER
03/05/2022,Adults & Health,London Care Plc,Home Care - Private Contractors Payment,229.32,0,COMMERCIAL SUPPLIER
03/05/2022,Adults & Health,London Care Plc,Home Care - Private Contractors Payment,65.52,0,COMMERCIAL SUPPLIER
03/05/2022,Adults & Health,London Care Plc,Daycare - Private Contractors Payment,37.44,0,COMMERCIAL SUPPLIER
03/05/2022,Adults & Health,London Care Plc,Daycare - Private Contractors Payment,262.08,0,COMMERCIAL SUPPLIER
03/05/2022,Adults & Health,London Care Plc,Home Care - Private Contractors Payment,229.32,0,COMMERCIAL SUPPLIER
03/05/2022,Adults & Health,London Care Plc,Home Care - Private Contractors Payment,163.8,0,COMMERCIAL SUPPLIER
03/05/2022,Adults & Health,London Care Plc,Home Care - Private Contractors Payment,178.8,0,COMMERCIAL SUPPLIER
03/05/2022,Adults & Health,London Care Plc,Home Care - Private Contractors Payment,163.8,0,COMMERCIAL SUPPLIER
03/05/2022,Adults & Health,London Care Plc,Daycare - Private Contractors Payment,157.19,0,COMMERCIAL SUPPLIER
03/05/2022,Adults & Health,London Care Plc,Home Care - Private Contractors Payment,309.84,0,COMMERCIAL SUPPLIER
03/05/2022,Adults & Health,London Care Plc,Home Care - Private Contractors Payment,93.6,0,COMMERCIAL SUPPLIER
03/05/2022,Adults & Health,London Care Plc,Daycare - Private Contractors Payment,167.86,0,COMMERCIAL SUPPLIER
03/05/2022,Adults & Health,London Care Plc,Home Care - Private Contractors Payment,234,0,COMMERCIAL SUPPLIER
03/05/2022,Adults & Health,London Care Plc,Home Care - Private Contractors Payment,10.92,0,COMMERCIAL SUPPLIER
03/05/2022,Adults & Health,London Care Plc,Home Care - Private Contractors Payment,56.16,0,COMMERCIAL SUPPLIER
03/05/2022,Adults & Health,London Care Plc,Home Care - Private Contractors Payment,327.6,0,COMMERCIAL SUPPLIER
03/05/2022,Adults & Health,London Care Plc,Home Care - Private Contractors Payment,98.28,0,COMMERCIAL SUPPLIER
03/05/2022,Adults & Health,London Care Plc,Home Care - Private Contractors Payment,37.44,0,COMMERCIAL SUPPLIER
03/05/2022,Adults & Health,London Care Plc,Daycare - Private Contractors Payment,56.16,0,COMMERCIAL SUPPLIER
03/05/2022,Adults & Health,London Care Plc,Home Care - Private Contractors Payment,37.44,0,COMMERCIAL SUPPLIER
03/05/2022,Adults & Health,London Care Plc,Home Care - Private Contractors Payment,163.8,0,COMMERCIAL SUPPLIER
03/05/2022,Adults & Health,London Care Plc,Home Care - Private Contractors Payment,720.72,0,COMMERCIAL SUPPLIER
03/05/2022,Adults & Health,London Care Plc,Home Care - Private Contractors Payment,131.04,0,COMMERCIAL SUPPLIER
03/05/2022,Adults & Health,London Care Plc,Home Care - Private Contractors Payment,127.3,0,COMMERCIAL SUPPLIER
03/05/2022,Adults & Health,London Care Plc,Daycare - Private Contractors Payment,18.72,0,COMMERCIAL SUPPLIER
03/05/2022,Adults & Health,London Care Plc,Home Care - Private Contractors Payment,52.42,0,COMMERCIAL SUPPLIER
03/05/2022,Adults & Health,London Care Plc,Home Care - Private Contractors Payment,28.08,0,COMMERCIAL SUPPLIER
03/05/2022,Adults & Health,London Care Plc,Home Care - Private Contractors Payment,244.32,0,COMMERCIAL SUPPLIER
03/05/2022,Adults & Health,London Care Plc,Home Care - Private Contractors Payment,28.08,0,COMMERCIAL SUPPLIER
03/05/2022,Adults & Health,London Care Plc,Home Care - Private Contractors Payment,524.16,0,COMMERCIAL SUPPLIER
03/05/2022,Adults & Health,London Care Plc,Home Care - Private Contractors Payment,18.72,0,COMMERCIAL SUPPLIER
03/05/2022,Adults & Health,London Care Plc,Home Care - Private Contractors Payment,146.04,0,COMMERCIAL SUPPLIER
03/05/2022,Adults & Health,London Care Plc,Home Care - Private Contractors Payment,342.6,0,COMMERCIAL SUPPLIER
03/05/2022,Adults & Health,London Care Plc,Home Care - Private Contractors Payment,42.12,0,COMMERCIAL SUPPLIER
03/05/2022,Adults & Health,London Care Plc,Daycare - Private Contractors Payment,18.72,0,COMMERCIAL SUPPLIER
03/05/2022,Adults & Health,London Care Plc,Home Care - Private Contractors Payment,18.72,0,COMMERCIAL SUPPLIER
03/05/2022,Adults & Health,London Care Plc,Home Care - Private Contractors Payment,126.36,0,COMMERCIAL SUPPLIER
03/05/2022,Adults & Health,London Care Plc,Home Care - Private Contractors Payment,18.72,0,COMMERCIAL SUPPLIER
03/05/2022,Adults & Health,London Care Plc,Home Care - Private Contractors Payment,37.44,0,COMMERCIAL SUPPLIER
03/05/2022,Adults & Health,London Care Plc,Daycare - Private Contractors Payment,18.72,0,COMMERCIAL SUPPLIER
03/05/2022,Adults & Health,London Care Plc,Home Care - Private Contractors Payment,196.56,0,COMMERCIAL SUPPLIER
03/05/2022,Adults & Health,London Care Plc,Daycare - Private Contractors Payment,93.6,0,COMMERCIAL SUPPLIER
03/05/2022,Adults & Health,London Care Plc,Daycare - Private Contractors Payment,252.72,0,COMMERCIAL SUPPLIER
03/05/2022,Adults & Health,London Care Plc,Daycare - Private Contractors Payment,93.6,0,COMMERCIAL SUPPLIER
03/05/2022,Adults & Health,London Care Plc,Daycare - Private Contractors Payment,131.04,0,COMMERCIAL SUPPLIER
03/05/2022,Adults & Health,London Care Plc,Home Care - Private Contractors Payment,393.12,0,COMMERCIAL SUPPLIER
03/05/2022,Adults & Health,London Care Plc,Home Care - Private Contractors Payment,18.72,0,COMMERCIAL SUPPLIER
03/05/2022,Adults & Health,London Care Plc,Daycare - Private Contractors Payment,37.44,0,COMMERCIAL SUPPLIER
03/05/2022,Adults & Health,London Care Plc,Home Care - Private Contractors Payment,258.36,0,COMMERCIAL SUPPLIER
03/05/2022,Adults & Health,London Care Plc,Home Care - Private Contractors Payment,408.12,0,COMMERCIAL SUPPLIER
03/05/2022,Adults & Health,London Care Plc,Daycare - Private Contractors Payment,37.44,0,COMMERCIAL SUPPLIER
03/05/2022,Adults & Health,London Care Plc,Home Care - Private Contractors Payment,262.08,0,COMMERCIAL SUPPLIER
03/05/2022,Adults & Health,London Care Plc,Home Care - Private Contractors Payment,154.44,0,COMMERCIAL SUPPLIER
03/05/2022,Adults & Health,London Care Plc,Home Care - Private Contractors Payment,65.52,0,COMMERCIAL SUPPLIER
03/05/2022,Adults & Health,London Care Plc,Daycare - Private Contractors Payment,37.44,0,COMMERCIAL SUPPLIER
03/05/2022,Adults & Health,London Care Plc,Home Care - Private Contractors Payment,18.72,0,COMMERCIAL SUPPLIER
03/05/2022,Adults & Health,London Care Plc,Home Care - Private Contractors Payment,196.56,0,COMMERCIAL SUPPLIER
03/05/2022,Adults & Health,London Care Plc,Home Care - Private Contractors Payment,28.08,0,COMMERCIAL SUPPLIER
03/05/2022,Adults & Health,London Care Plc,Home Care - Private Contractors Payment,262.08,0,COMMERCIAL SUPPLIER
03/05/2022,Adults & Health,London Care Plc,Home Care - Private Contractors Payment,65.52,0,COMMERCIAL SUPPLIER
03/05/2022,Adults & Health,London Care Plc,Home Care - Private Contractors Payment,28.08,0,COMMERCIAL SUPPLIER
03/05/2022,Adults & Health,London Care Plc,Home Care - Private Contractors Payment,28.08,0,COMMERCIAL SUPPLIER
03/05/2022,Adults & Health,London Care Plc,Home Care - Private Contractors Payment,18.72,0,COMMERCIAL SUPPLIER
03/05/2022,Adults & Health,London Care Plc,Home Care - Private Contractors Payment,37.44,0,COMMERCIAL SUPPLIER
03/05/2022,Adults & Health,London Care Plc,Home Care - Private Contractors Payment,42.12,0,COMMERCIAL SUPPLIER
03/05/2022,Adults & Health,London Care Plc,Home Care - Private Contractors Payment,37.44,0,COMMERCIAL SUPPLIER
03/05/2022,Adults & Health,London Care Plc,Home Care - Private Contractors Payment,196.56,0,COMMERCIAL SUPPLIER
03/05/2022,Adults & Health,London Care Plc,Home Care - Private Contractors Payment,56.16,0,COMMERCIAL SUPPLIER
03/05/2022,Adults & Health,London Care Plc,Home Care - Private Contractors Payment,360.36,0,COMMERCIAL SUPPLIER
03/05/2022,Adults & Health,London Care Plc,Daycare - Private Contractors Payment,37.44,0,COMMERCIAL SUPPLIER
03/05/2022,Adults & Health,London Care Plc,Home Care - Private Contractors Payment,65.52,0,COMMERCIAL SUPPLIER
03/05/2022,Adults & Health,London Care Plc,Home Care - Private Contractors Payment,327.6,0,COMMERCIAL SUPPLIER
03/05/2022,Adults & Health,London Care Plc,Home Care - Private Contractors Payment,229.32,0,COMMERCIAL SUPPLIER
03/05/2022,Adults & Health,London Care Plc,Home Care - Private Contractors Payment,290.16,0,COMMERCIAL SUPPLIER
03/05/2022,Adults & Health,London Care Plc,Home Care - Private Contractors Payment,163.8,0,COMMERCIAL SUPPLIER
03/05/2022,Adults & Health,London Care Plc,Daycare - Private Contractors Payment,93.6,0,COMMERCIAL SUPPLIER
03/05/2022,Adults & Health,London Care Plc,Home Care - Private Contractors Payment,229.32,0,COMMERCIAL SUPPLIER
03/05/2022,Adults & Health,London Care Plc,Home Care - Private Contractors Payment,65.52,0,COMMERCIAL SUPPLIER
03/05/2022,Adults & Health,London Care Plc,Daycare - Private Contractors Payment,46.8,0,COMMERCIAL SUPPLIER
03/05/2022,Adults & Health,London Care Plc,Home Care - Private Contractors Payment,196.56,0,COMMERCIAL SUPPLIER
03/05/2022,Adults & Health,London Care Plc,Home Care - Private Contractors Payment,229.32,0,COMMERCIAL SUPPLIER
03/05/2022,Adults & Health,London Care Plc,Home Care - Private Contractors Payment,18.72,0,COMMERCIAL SUPPLIER
03/05/2022,Adults & Health,London Care Plc,Home Care - Private Contractors Payment,18.72,0,COMMERCIAL SUPPLIER
03/05/2022,Adults & Health,London Care Plc,Home Care - Private Contractors Payment,112.32,0,COMMERCIAL SUPPLIER
03/05/2022,Adults & Health,London Care Plc,Home Care - Private Contractors Payment,163.8,0,COMMERCIAL SUPPLIER
03/05/2022,Adults & Health,London Care Plc,Home Care - Private Contractors Payment,98.28,0,COMMERCIAL SUPPLIER
03/05/2022,Adults & Health,London Care Plc,Home Care - Private Contractors Payment,37.44,0,COMMERCIAL SUPPLIER
03/05/2022,Adults & Health,London Care Plc,Home Care - Private Contractors Payment,65.52,0,COMMERCIAL SUPPLIER
03/05/2022,Adults & Health,London Care Plc,Home Care - Private Contractors Payment,238.68,0,COMMERCIAL SUPPLIER
03/05/2022,Adults & Health,London Care Plc,Daycare - Private Contractors Payment,28.08,0,COMMERCIAL SUPPLIER
03/05/2022,Adults & Health,London Care Plc,Home Care - Private Contractors Payment,154.44,0,COMMERCIAL SUPPLIER
03/05/2022,Adults & Health,London Care Plc,Home Care - Private Contractors Payment,70.2,0,COMMERCIAL SUPPLIER
03/05/2022,Adults & Health,London Care Plc,Home Care - Private Contractors Payment,18.72,0,COMMERCIAL SUPPLIER
03/05/2022,Adults & Health,London Care Plc,Home Care - Private Contractors Payment,9.99,0,COMMERCIAL SUPPLIER
03/05/2022,Adults & Health,London Care Plc,Daycare - Private Contractors Payment,46.8,0,COMMERCIAL SUPPLIER
03/05/2022,Adults & Health,London Care Plc,Home Care - Private Contractors Payment,18.72,0,COMMERCIAL SUPPLIER
03/05/2022,Adults & Health,London Care Plc,Home Care - Private Contractors Payment,163.8,0,COMMERCIAL SUPPLIER
03/05/2022,Adults & Health,London Care Plc,Home Care - Private Contractors Payment,229.32,0,COMMERCIAL SUPPLIER
03/05/2022,Adults & Health,London Care Plc,Home Care - Private Contractors Payment,74.88,0,COMMERCIAL SUPPLIER
03/05/2022,Adults & Health,London Care Plc,Home Care - Private Contractors Payment,196.56,0,COMMERCIAL SUPPLIER
03/05/2022,Adults & Health,London Care Plc,Home Care - Private Contractors Payment,229.32,0,COMMERCIAL SUPPLIER
03/05/2022,Adults & Health,London Care Plc,Daycare - Private Contractors Payment,37.44,0,COMMERCIAL SUPPLIER
03/05/2022,Adults & Health,London Care Plc,Home Care - Private Contractors Payment,687.96,0,COMMERCIAL SUPPLIER
03/05/2022,Adults & Health,London Care Plc,Home Care - Private Contractors Payment,131.04,0,COMMERCIAL SUPPLIER
03/05/2022,Adults & Health,London Care Plc,Home Care - Private Contractors Payment,229.32,0,COMMERCIAL SUPPLIER
03/05/2022,Adults & Health,London Care Plc,Home Care - Private Contractors Payment,360.36,0,COMMERCIAL SUPPLIER
03/05/2022,Adults & Health,London Care Plc,Daycare - Private Contractors Payment,74.88,0,COMMERCIAL SUPPLIER
03/05/2022,Adults & Health,London Care Plc,Home Care - Private Contractors Payment,18.72,0,COMMERCIAL SUPPLIER
03/05/2022,Adults & Health,London Care Plc,Home Care - Private Contractors Payment,56.16,0,COMMERCIAL SUPPLIER
03/05/2022,Adults & Health,London Care Plc,Home Care - Private Contractors Payment,229.32,0,COMMERCIAL SUPPLIER
03/05/2022,Adults & Health,London Care Plc,Home Care - Private Contractors Payment,65.52,0,COMMERCIAL SUPPLIER
03/05/2022,Adults & Health,London Care Plc,Daycare - Private Contractors Payment,28.08,0,COMMERCIAL SUPPLIER
03/05/2022,Adults & Health,London Care Plc,Home Care - Private Contractors Payment,42.12,0,COMMERCIAL SUPPLIER
03/05/2022,Adults & Health,London Care Plc,Home Care - Private Contractors Payment,18.72,0,COMMERCIAL SUPPLIER
03/05/2022,Adults & Health,London Care Plc,Home Care - Private Contractors Payment,28.08,0,COMMERCIAL SUPPLIER
03/05/2022,Adults & Health,London Care Plc,Daycare - Private Contractors Payment,37.44,0,COMMERCIAL SUPPLIER
03/05/2022,Adults & Health,London Care Plc,Home Care - Private Contractors Payment,145.08,0,COMMERCIAL SUPPLIER
03/05/2022,Adults & Health,London Care Plc,Home Care - Private Contractors Payment,425.88,0,COMMERCIAL SUPPLIER
03/05/2022,Adults & Health,London Care Plc,Home Care - Private Contractors Payment,327.6,0,COMMERCIAL SUPPLIER
03/05/2022,Adults & Health,London Care Plc,Home Care - Private Contractors Payment,229.32,0,COMMERCIAL SUPPLIER
03/05/2022,Adults & Health,London Care Plc,Home Care - Private Contractors Payment,425.88,0,COMMERCIAL SUPPLIER
03/05/2022,Adults & Health,London Care Plc,Home Care - Private Contractors Payment,28.08,0,COMMERCIAL SUPPLIER
03/05/2022,Adults & Health,London Care Plc,Home Care - Private Contractors Payment,18.72,0,COMMERCIAL SUPPLIER
03/05/2022,Adults & Health,London Care Plc,Home Care - Private Contractors Payment,18.72,0,COMMERCIAL SUPPLIER
03/05/2022,Adults & Health,London Care Plc,Home Care - Private Contractors Payment,42.12,0,COMMERCIAL SUPPLIER
03/05/2022,Adults & Health,London Care Plc,Home Care - Private Contractors Payment,163.8,0,COMMERCIAL SUPPLIER
03/05/2022,Adults & Health,London Care Plc,Home Care - Private Contractors Payment,163.8,0,COMMERCIAL SUPPLIER
03/05/2022,Adults & Health,London Care Plc,Daycare - Private Contractors Payment,131.04,0,COMMERCIAL SUPPLIER
03/05/2022,Adults & Health,London Care Plc,Home Care - Private Contractors Payment,140.4,0,COMMERCIAL SUPPLIER
03/05/2022,Adults & Health,London Care Plc,Home Care - Private Contractors Payment,163.8,0,COMMERCIAL SUPPLIER
03/05/2022,Adults & Health,London Care Plc,Respite Care - Private Contractors Payment,37.44,0,COMMERCIAL SUPPLIER
03/05/2022,Adults & Health,London Care Plc,Daycare - Private Contractors Payment,37.44,0,COMMERCIAL SUPPLIER
03/05/2022,Adults & Health,London Care Plc,Home Care - Private Contractors Payment,262.08,0,COMMERCIAL SUPPLIER
03/05/2022,Adults & Health,London Care Plc,Home Care - Private Contractors Payment,37.44,0,COMMERCIAL SUPPLIER
03/05/2022,Adults & Health,London Care Plc,Home Care - Private Contractors Payment,131.04,0,COMMERCIAL SUPPLIER
03/05/2022,Adults & Health,London Care Plc,Home Care - Private Contractors Payment,37.44,0,COMMERCIAL SUPPLIER
03/05/2022,Adults & Health,London Care Plc,Home Care - Private Contractors Payment,79.56,0,COMMERCIAL SUPPLIER
03/05/2022,Adults & Health,London Care Plc,Home Care - Private Contractors Payment,311.68,0,COMMERCIAL SUPPLIER
03/05/2022,Adults & Health,London Care Plc,Home Care - Private Contractors Payment,552.24,0,COMMERCIAL SUPPLIER
03/05/2022,Adults & Health,London Care Plc,Home Care - Private Contractors Payment,196.56,0,COMMERCIAL SUPPLIER
03/05/2022,Adults & Health,London Care Plc,Home Care - Private Contractors Payment,89.88,0,COMMERCIAL SUPPLIER
03/05/2022,Adults & Health,London Care Plc,Home Care - Private Contractors Payment,238.68,0,COMMERCIAL SUPPLIER
03/05/2022,Adults & Health,London Care Plc,Home Care - Private Contractors Payment,32.76,0,COMMERCIAL SUPPLIER
03/05/2022,Adults & Health,London Care Plc,Home Care - Private Contractors Payment,172.22,0,COMMERCIAL SUPPLIER
03/05/2022,Adults & Health,London Care Plc,Home Care - Private Contractors Payment,98.28,0,COMMERCIAL SUPPLIER
03/05/2022,Adults & Health,London Care Plc,Home Care - Private Contractors Payment,52.44,0,COMMERCIAL SUPPLIER
03/05/2022,Adults & Health,London Care Plc,Home Care - Private Contractors Payment,84.24,0,COMMERCIAL SUPPLIER
03/05/2022,Adults & Health,London Care Plc,Home Care - Private Contractors Payment,163.8,0,COMMERCIAL SUPPLIER
03/05/2022,Adults & Health,London Care Plc,Home Care - Private Contractors Payment,98.28,0,COMMERCIAL SUPPLIER
03/05/2022,Adults & Health,London Care Plc,Home Care - Private Contractors Payment,211.56,0,COMMERCIAL SUPPLIER
03/05/2022,Adults & Health,London Care Plc,Home Care - Private Contractors Payment,146.04,0,COMMERCIAL SUPPLIER
03/05/2022,Adults & Health,London Care Plc,Home Care - Private Contractors Payment,18.72,0,COMMERCIAL SUPPLIER
03/05/2022,Adults & Health,London Care Plc,Daycare - Private Contractors Payment,18.72,0,COMMERCIAL SUPPLIER
03/05/2022,Adults & Health,London Care Plc,Home Care - Private Contractors Payment,309.84,0,COMMERCIAL SUPPLIER
03/05/2022,Adults & Health,London Care Plc,Home Care - Private Contractors Payment,39,0,COMMERCIAL SUPPLIER
03/05/2022,Adults & Health,London Care Plc,Home Care - Private Contractors Payment,408.12,0,COMMERCIAL SUPPLIER
03/05/2022,Adults & Health,London Care Plc,Home Care - Private Contractors Payment,56.16,0,COMMERCIAL SUPPLIER
03/05/2022,Adults & Health,London Care Plc,Home Care - Private Contractors Payment,18.72,0,COMMERCIAL SUPPLIER
03/05/2022,Adults & Health,London Care Plc,Home Care - Private Contractors Payment,146.04,0,COMMERCIAL SUPPLIER
03/05/2022,Adults & Health,London Care Plc,Home Care - Private Contractors Payment,18.72,0,COMMERCIAL SUPPLIER
03/05/2022,Adults & Health,London Care Plc,Home Care - Private Contractors Payment,177.84,0,COMMERCIAL SUPPLIER
03/05/2022,Adults & Health,London Care Plc,Home Care - Private Contractors Payment,28.08,0,COMMERCIAL SUPPLIER
03/05/2022,Adults & Health,London Care Plc,Home Care - Private Contractors Payment,327.6,0,COMMERCIAL SUPPLIER
03/05/2022,Adults & Health,London Care Plc,Home Care - Private Contractors Payment,262.08,0,COMMERCIAL SUPPLIER
03/05/2022,Adults & Health,London Care Plc,Daycare - Private Contractors Payment,74.88,0,COMMERCIAL SUPPLIER
03/05/2022,Adults & Health,London Care Plc,Home Care - Private Contractors Payment,229.32,0,COMMERCIAL SUPPLIER
03/05/2022,Adults & Health,London Care Plc,Home Care - Private Contractors Payment,37.44,0,COMMERCIAL SUPPLIER
03/05/2022,Adults & Health,London Care Plc,Daycare - Private Contractors Payment,28.08,0,COMMERCIAL SUPPLIER
03/05/2022,Adults & Health,London Care Plc,Home Care - Private Contractors Payment,163.8,0,COMMERCIAL SUPPLIER
03/05/2022,Adults & Health,London Care Plc,Home Care - Private Contractors Payment,65.52,0,COMMERCIAL SUPPLIER
03/05/2022,Adults & Health,London Care Plc,Home Care - Private Contractors Payment,131.04,0,COMMERCIAL SUPPLIER
03/05/2022,Adults & Health,London Care Plc,Daycare - Private Contractors Payment,56.16,0,COMMERCIAL SUPPLIER
03/05/2022,Adults & Health,London Care Plc,Home Care - Private Contractors Payment,360.36,0,COMMERCIAL SUPPLIER
03/05/2022,Adults & Health,London Care Plc,Home Care - Private Contractors Payment,18.72,0,COMMERCIAL SUPPLIER
03/05/2022,Adults & Health,London Care Plc,Home Care - Private Contractors Payment,196.56,0,COMMERCIAL SUPPLIER
03/05/2022,Adults & Health,London Care Plc,Home Care - Private Contractors Payment,28.08,0,COMMERCIAL SUPPLIER
03/05/2022,Adults & Health,London Care Plc,Home Care - Private Contractors Payment,28.08,0,COMMERCIAL SUPPLIER
03/05/2022,Adults & Health,London Care Plc,Home Care - Private Contractors Payment,262.08,0,COMMERCIAL SUPPLIER
03/05/2022,Adults & Health,London Care Plc,Home Care - Private Contractors Payment,163.8,0,COMMERCIAL SUPPLIER
03/05/2022,Adults & Health,London Care Plc,Respite Care - Private Contractors Payment,74.88,0,COMMERCIAL SUPPLIER
03/05/2022,Adults & Health,London Care Plc,Home Care - Private Contractors Payment,18.72,0,COMMERCIAL SUPPLIER
03/05/2022,Adults & Health,London Care Plc,Home Care - Private Contractors Payment,37.44,0,COMMERCIAL SUPPLIER
03/05/2022,Adults & Health,London Care Plc,Home Care - Private Contractors Payment,327.6,0,COMMERCIAL SUPPLIER
03/05/2022,Adults & Health,London Care Plc,Daycare - Private Contractors Payment,37.44,0,COMMERCIAL SUPPLIER
03/05/2022,Adults & Health,London Care Plc,Home Care - Private Contractors Payment,18.72,0,COMMERCIAL SUPPLIER
03/05/2022,Adults & Health,London Care Plc,Home Care - Private Contractors Payment,131.04,0,COMMERCIAL SUPPLIER
03/05/2022,Adults & Health,London Care Plc,Daycare - Private Contractors Payment,56.16,0,COMMERCIAL SUPPLIER
03/05/2022,Adults & Health,London Care Plc,Respite Care - Private Contractors Payment,93.6,0,COMMERCIAL SUPPLIER
03/05/2022,Adults & Health,London Care Plc,Home Care - Private Contractors Payment,425.88,0,COMMERCIAL SUPPLIER
03/05/2022,Adults & Health,London Care Plc,Home Care - Private Contractors Payment,491.4,0,COMMERCIAL SUPPLIER
03/05/2022,Adults & Health,London Care Plc,Home Care - Private Contractors Payment,229.32,0,COMMERCIAL SUPPLIER
03/05/2022,Adults & Health,London Care Plc,Daycare - Private Contractors Payment,131.04,0,COMMERCIAL SUPPLIER
03/05/2022,Adults & Health,London Care Plc,Home Care - Private Contractors Payment,18.72,0,COMMERCIAL SUPPLIER
03/05/2022,Adults & Health,London Care Plc,Home Care - Private Contractors Payment,168.48,0,COMMERCIAL SUPPLIER
03/05/2022,Adults & Health,London Care Plc,Home Care - Private Contractors Payment,18.72,0,COMMERCIAL SUPPLIER
03/05/2022,Adults & Health,London Care Plc,Home Care - Private Contractors Payment,18.72,0,COMMERCIAL SUPPLIER
03/05/2022,Adults & Health,London Care Plc,Home Care - Private Contractors Payment,37.44,0,COMMERCIAL SUPPLIER
03/05/2022,Adults & Health,London Care Plc,Home Care - Private Contractors Payment,342.6,0,COMMERCIAL SUPPLIER
03/05/2022,Adults & Health,London Care Plc,Home Care - Private Contractors Payment,290.47,0,COMMERCIAL SUPPLIER
03/05/2022,Adults & Health,London Care Plc,Daycare - Private Contractors Payment,74.88,0,COMMERCIAL SUPPLIER
03/05/2022,Adults & Health,London Care Plc,Home Care - Private Contractors Payment,211.56,0,COMMERCIAL SUPPLIER
03/05/2022,Adults & Health,London Care Plc,Home Care - Private Contractors Payment,266.76,0,COMMERCIAL SUPPLIER
03/05/2022,Adults & Health,London Care Plc,Home Care - Private Contractors Payment,196.56,0,COMMERCIAL SUPPLIER
03/05/2022,Adults & Health,London Care Plc,Home Care - Private Contractors Payment,37.44,0,COMMERCIAL SUPPLIER
03/05/2022,Adults & Health,London Care Plc,Home Care - Private Contractors Payment,18.72,0,COMMERCIAL SUPPLIER
03/05/2022,Adults & Health,London Care Plc,Home Care - Private Contractors Payment,273.92,0,COMMERCIAL SUPPLIER
03/05/2022,Adults & Health,London Care Plc,Home Care - Private Contractors Payment,211.56,0,COMMERCIAL SUPPLIER
03/05/2022,Adults & Health,London Care Plc,Home Care - Private Contractors Payment,70.2,0,COMMERCIAL SUPPLIER
03/05/2022,Adults & Health,London Care Plc,Home Care - Private Contractors Payment,269.26,0,COMMERCIAL SUPPLIER
03/05/2022,Adults & Health,London Care Plc,Home Care - Private Contractors Payment,163.8,0,COMMERCIAL SUPPLIER
03/05/2022,Adults & Health,London Care Plc,Home Care - Private Contractors Payment,393.12,0,COMMERCIAL SUPPLIER
03/05/2022,Adults & Health,London Care Plc,Daycare - Private Contractors Payment,131.04,0,COMMERCIAL SUPPLIER
03/05/2022,Adults & Health,London Care Plc,Home Care - Private Contractors Payment,98.28,0,COMMERCIAL SUPPLIER
03/05/2022,Adults & Health,London Care Plc,Home Care - Private Contractors Payment,98.28,0,COMMERCIAL SUPPLIER
03/05/2022,Adults & Health,London Care Plc,Home Care - Private Contractors Payment,98.28,0,COMMERCIAL SUPPLIER
03/05/2022,Adults & Health,London Care Plc,Home Care - Private Contractors Payment,28.08,0,COMMERCIAL SUPPLIER
03/05/2022,Adults & Health,London Care Plc,Home Care - Private Contractors Payment,18.72,0,COMMERCIAL SUPPLIER
03/05/2022,Adults & Health,London Care Plc,Home Care - Private Contractors Payment,430.56,0,COMMERCIAL SUPPLIER
03/05/2022,Adults & Health,London Care Plc,Home Care - Private Contractors Payment,37.44,0,COMMERCIAL SUPPLIER
03/05/2022,Adults & Health,London Care Plc,Home Care - Private Contractors Payment,196.56,0,COMMERCIAL SUPPLIER
03/05/2022,Adults & Health,London Care Plc,Home Care - Private Contractors Payment,229.32,0,COMMERCIAL SUPPLIER
03/05/2022,Adults & Health,London Care Plc,Home Care - Private Contractors Payment,98.28,0,COMMERCIAL SUPPLIER
03/05/2022,Adults & Health,London Care Plc,Home Care - Private Contractors Payment,561.6,0,COMMERCIAL SUPPLIER
03/05/2022,Adults & Health,London Care Plc,Home Care - Private Contractors Payment,408.12,0,COMMERCIAL SUPPLIER
03/05/2022,Adults & Health,London Care Plc,Home Care - Private Contractors Payment,18.72,0,COMMERCIAL SUPPLIER
03/05/2022,Adults & Health,London Care Plc,Home Care - Private Contractors Payment,327.6,0,COMMERCIAL SUPPLIER
03/05/2022,Adults & Health,London Care Plc,Home Care - Private Contractors Payment,117,0,COMMERCIAL SUPPLIER
03/05/2022,Adults & Health,London Care Plc,Home Care - Private Contractors Payment,262.08,0,COMMERCIAL SUPPLIER
03/05/2022,Adults & Health,London Care Plc,Home Care - Private Contractors Payment,131.04,0,COMMERCIAL SUPPLIER
03/05/2022,Adults & Health,London Care Plc,Home Care - Private Contractors Payment,37.44,0,COMMERCIAL SUPPLIER
03/05/2022,Adults & Health,London Care Plc,Daycare - Private Contractors Payment,56.16,0,COMMERCIAL SUPPLIER
03/05/2022,Adults & Health,London Care Plc,Home Care - Private Contractors Payment,294.84,0,COMMERCIAL SUPPLIER
03/05/2022,Adults & Health,London Care Plc,Home Care - Private Contractors Payment,196.56,0,COMMERCIAL SUPPLIER
03/05/2022,Adults & Health,London Care Plc,Home Care - Private Contractors Payment,196.56,0,COMMERCIAL SUPPLIER
03/05/2022,Adults & Health,London Care Plc,Daycare - Private Contractors Payment,56.16,0,COMMERCIAL SUPPLIER
03/05/2022,Adults & Health,London Care Plc,Home Care - Private Contractors Payment,154.44,0,COMMERCIAL SUPPLIER
03/05/2022,Adults & Health,London Care Plc,Respite Care - Private Contractors Payment,224.64,0,COMMERCIAL SUPPLIER
03/05/2022,Adults & Health,London Care Plc,Home Care - Private Contractors Payment,229.32,0,COMMERCIAL SUPPLIER
03/05/2022,Adults & Health,London Care Plc,Home Care - Private Contractors Payment,93.6,0,COMMERCIAL SUPPLIER
03/05/2022,Adults & Health,London Care Plc,Home Care - Private Contractors Payment,196.56,0,COMMERCIAL SUPPLIER
03/05/2022,Adults & Health,London Care Plc,Home Care - Private Contractors Payment,262.08,0,COMMERCIAL SUPPLIER
03/05/2022,Adults & Health,London Care Plc,Home Care - Private Contractors Payment,98.28,0,COMMERCIAL SUPPLIER
03/05/2022,Adults & Health,London Care Plc,Home Care - Private Contractors Payment,229.32,0,COMMERCIAL SUPPLIER
03/05/2022,Adults & Health,London Care Plc,Home Care - Private Contractors Payment,65.52,0,COMMERCIAL SUPPLIER
03/05/2022,Adults & Health,London Care Plc,Home Care - Private Contractors Payment,98.28,0,COMMERCIAL SUPPLIER
03/05/2022,Adults & Health,London Care Plc,Home Care - Private Contractors Payment,88.92,0,COMMERCIAL SUPPLIER
03/05/2022,Adults & Health,London Care Plc,Home Care - Private Contractors Payment,88.92,0,COMMERCIAL SUPPLIER
03/05/2022,Adults & Health,London Care Plc,Home Care - Private Contractors Payment,28.08,0,COMMERCIAL SUPPLIER
03/05/2022,Adults & Health,London Care Plc,Home Care - Private Contractors Payment,56.16,0,COMMERCIAL SUPPLIER
03/05/2022,Adults & Health,London Care Plc,Home Care - Private Contractors Payment,37.44,0,COMMERCIAL SUPPLIER
03/05/2022,Adults & Health,London Care Plc,Home Care - Private Contractors Payment,163.8,0,COMMERCIAL SUPPLIER
03/05/2022,Adults & Health,London Care Plc,Home Care - Private Contractors Payment,98.28,0,COMMERCIAL SUPPLIER
03/05/2022,Adults & Health,London Care Plc,Daycare - Private Contractors Payment,37.44,0,COMMERCIAL SUPPLIER
03/05/2022,Adults & Health,London Care Plc,Home Care - Private Contractors Payment,93.6,0,COMMERCIAL SUPPLIER
03/05/2022,Adults & Health,London Care Plc,Daycare - Private Contractors Payment,56.16,0,COMMERCIAL SUPPLIER
03/05/2022,Adults & Health,London Care Plc,Home Care - Private Contractors Payment,262.08,0,COMMERCIAL SUPPLIER
03/05/2022,Adults & Health,London Care Plc,Home Care - Private Contractors Payment,177.84,0,COMMERCIAL SUPPLIER
03/05/2022,Adults & Health,London Care Plc,Home Care - Private Contractors Payment,229.32,0,COMMERCIAL SUPPLIER
03/05/2022,Adults & Health,London Care Plc,Daycare - Private Contractors Payment,37.44,0,COMMERCIAL SUPPLIER
03/05/2022,Adults & Health,London Care Plc,Daycare - Private Contractors Payment,18.72,0,COMMERCIAL SUPPLIER
03/05/2022,Adults & Health,London Care Plc,Daycare - Private Contractors Payment,37.44,0,COMMERCIAL SUPPLIER
03/05/2022,Adults & Health,London Care Plc,Home Care - Private Contractors Payment,42.12,0,COMMERCIAL SUPPLIER
03/05/2022,Adults & Health,London Care Plc,Home Care - Private Contractors Payment,360.36,0,COMMERCIAL SUPPLIER
03/05/2022,Adults & Health,London Care Plc,Home Care - Private Contractors Payment,131.04,0,COMMERCIAL SUPPLIER
03/05/2022,Adults & Health,London Care Plc,Home Care - Private Contractors Payment,131.04,0,COMMERCIAL SUPPLIER
03/05/2022,Adults & Health,London Care Plc,Home Care - Private Contractors Payment,173.16,0,COMMERCIAL SUPPLIER
03/05/2022,Adults & Health,London Care Plc,Home Care - Private Contractors Payment,23.4,0,COMMERCIAL SUPPLIER
03/05/2022,Adults & Health,London Care Plc,Home Care - Private Contractors Payment,37.44,0,COMMERCIAL SUPPLIER
03/05/2022,Adults & Health,London Care Plc,Home Care - Private Contractors Payment,294.84,0,COMMERCIAL SUPPLIER
03/05/2022,Adults & Health,London Care Plc,Home Care - Private Contractors Payment,18.72,0,COMMERCIAL SUPPLIER
03/05/2022,Adults & Health,London Care Plc,Home Care - Private Contractors Payment,37.44,0,COMMERCIAL SUPPLIER
03/05/2022,Adults & Health,London Care Plc,Home Care - Private Contractors Payment,163.8,0,COMMERCIAL SUPPLIER
03/05/2022,Adults & Health,London Care Plc,Home Care - Private Contractors Payment,102.96,0,COMMERCIAL SUPPLIER
03/05/2022,Adults & Health,London Care Plc,Home Care - Private Contractors Payment,93.6,0,COMMERCIAL SUPPLIER
03/05/2022,Adults & Health,London Care Plc,Respite Care - Private Contractors Payment,93.6,0,COMMERCIAL SUPPLIER
03/05/2022,Adults & Health,London Care Plc,Home Care - Private Contractors Payment,294.84,0,COMMERCIAL SUPPLIER
03/05/2022,Adults & Health,London Care Plc,Reablement,37.42,0,COMMERCIAL SUPPLIER
03/05/2022,Adults & Health,London Care Plc,Daycare - Private Contractors Payment,112.32,0,COMMERCIAL SUPPLIER
03/05/2022,Adults & Health,London Care Plc,Home Care - Private Contractors Payment,121.68,0,COMMERCIAL SUPPLIER
03/05/2022,Adults & Health,London Care Plc,Home Care - Private Contractors Payment,524.16,0,COMMERCIAL SUPPLIER
03/05/2022,Adults & Health,London Care Plc,Home Care - Private Contractors Payment,98.28,0,COMMERCIAL SUPPLIER
03/05/2022,Adults & Health,London Care Plc,Home Care - Private Contractors Payment,131.04,0,COMMERCIAL SUPPLIER
03/05/2022,Adults & Health,London Care Plc,Home Care - Private Contractors Payment,18.72,0,COMMERCIAL SUPPLIER
03/05/2022,Adults & Health,London Care Plc,Home Care - Private Contractors Payment,37.44,0,COMMERCIAL SUPPLIER
03/05/2022,Adults & Health,London Care Plc,Home Care - Private Contractors Payment,163.8,0,COMMERCIAL SUPPLIER
03/05/2022,Adults & Health,London Care Plc,Home Care - Private Contractors Payment,130.2,0,COMMERCIAL SUPPLIER
03/05/2022,Adults & Health,London Care Plc,Daycare - Private Contractors Payment,18.72,0,COMMERCIAL SUPPLIER
03/05/2022,Adults & Health,London Care Plc,Daycare - Private Contractors Payment,0.31,0,COMMERCIAL SUPPLIER
03/05/2022,Adults & Health,London Care Plc,Daycare - Private Contractors Payment,37.44,0,COMMERCIAL SUPPLIER
03/05/2022,Adults & Health,London Care Plc,Home Care - Private Contractors Payment,229.32,0,COMMERCIAL SUPPLIER
03/05/2022,Adults & Health,London Care Plc,Home Care - Private Contractors Payment,46.8,0,COMMERCIAL SUPPLIER
03/05/2022,Adults & Health,London Care Plc,Respite Care - Private Contractors Payment,224.64,0,COMMERCIAL SUPPLIER
03/05/2022,Adults & Health,London Care Plc,Home Care - Private Contractors Payment,262.08,0,COMMERCIAL SUPPLIER
03/05/2022,Adults & Health,London Care Plc,Home Care - Private Contractors Payment,196.56,0,COMMERCIAL SUPPLIER
03/05/2022,Adults & Health,London Care Plc,Home Care - Private Contractors Payment,4.68,0,COMMERCIAL SUPPLIER
03/05/2022,Adults & Health,London Care Plc,Home Care - Private Contractors Payment,18.72,0,COMMERCIAL SUPPLIER
03/05/2022,Adults & Health,London Care Plc,Home Care - Private Contractors Payment,98.28,0,COMMERCIAL SUPPLIER
03/05/2022,Adults & Health,London Care Plc,Home Care - Private Contractors Payment,37.44,0,COMMERCIAL SUPPLIER
03/05/2022,Adults & Health,London Care Plc,Home Care - Private Contractors Payment,13.73,0,COMMERCIAL SUPPLIER
03/05/2022,Adults & Health,London Care Plc,Home Care - Private Contractors Payment,524.16,0,COMMERCIAL SUPPLIER
03/05/2022,Adults & Health,London Care Plc,Home Care - Private Contractors Payment,18.72,0,COMMERCIAL SUPPLIER
03/05/2022,Adults & Health,London Care Plc,Home Care - Private Contractors Payment,425.88,0,COMMERCIAL SUPPLIER
03/05/2022,Adults & Health,London Care Plc,Home Care - Private Contractors Payment,196.56,0,COMMERCIAL SUPPLIER
03/05/2022,Adults & Health,London Care Plc,Daycare - Private Contractors Payment,37.44,0,COMMERCIAL SUPPLIER
03/05/2022,Adults & Health,London Care Plc,Home Care - Private Contractors Payment,262.08,0,COMMERCIAL SUPPLIER
03/05/2022,Adults & Health,London Care Plc,Home Care - Private Contractors Payment,229.32,0,COMMERCIAL SUPPLIER
03/05/2022,Adults & Health,London Care Plc,Daycare - Private Contractors Payment,37.44,0,COMMERCIAL SUPPLIER
03/05/2022,Adults & Health,London Care Plc,Home Care - Private Contractors Payment,46.8,0,COMMERCIAL SUPPLIER
03/05/2022,Adults & Health,London Care Plc,Home Care - Private Contractors Payment,65.52,0,COMMERCIAL SUPPLIER
03/05/2022,Adults & Health,London Care Plc,Daycare - Private Contractors Payment,74.88,0,COMMERCIAL SUPPLIER
03/05/2022,Adults & Health,London Care Plc,Home Care - Private Contractors Payment,168.48,0,COMMERCIAL SUPPLIER
03/05/2022,Adults & Health,London Care Plc,Daycare - Private Contractors Payment,56.16,0,COMMERCIAL SUPPLIER
03/05/2022,Adults & Health,London Care Plc,Home Care - Private Contractors Payment,196.56,0,COMMERCIAL SUPPLIER
03/05/2022,Adults & Health,London Care Plc,Daycare - Private Contractors Payment,88.92,0,COMMERCIAL SUPPLIER
03/05/2022,Adults & Health,London Care Plc,Home Care - Private Contractors Payment,112.32,0,COMMERCIAL SUPPLIER
03/05/2022,Adults & Health,London Care Plc,Home Care - Private Contractors Payment,37.44,0,COMMERCIAL SUPPLIER
03/05/2022,Adults & Health,London Care Plc,Home Care - Private Contractors Payment,318.24,0,COMMERCIAL SUPPLIER
03/05/2022,Adults & Health,London Care Plc,Home Care - Private Contractors Payment,18.72,0,COMMERCIAL SUPPLIER
03/05/2022,Adults & Health,London Care Plc,Home Care - Private Contractors Payment,262.08,0,COMMERCIAL SUPPLIER
03/05/2022,Adults & Health,London Care Plc,Home Care - Private Contractors Payment,18.72,0,COMMERCIAL SUPPLIER
03/05/2022,Adults & Health,London Care Plc,Home Care - Private Contractors Payment,28.08,0,COMMERCIAL SUPPLIER
03/05/2022,Adults & Health,London Care Plc,Daycare - Private Contractors Payment,37.44,0,COMMERCIAL SUPPLIER
03/05/2022,Adults & Health,London Care Plc,Daycare - Private Contractors Payment,28.08,0,COMMERCIAL SUPPLIER
03/05/2022,Adults & Health,London Care Plc,Daycare - Private Contractors Payment,16.85,0,COMMERCIAL SUPPLIER
03/05/2022,Adults & Health,London Care Plc,Home Care - Private Contractors Payment,445.56,0,COMMERCIAL SUPPLIER
03/05/2022,Adults & Health,London Care Plc,Daycare - Private Contractors Payment,74.88,0,COMMERCIAL SUPPLIER
03/05/2022,Adults & Health,London Care Plc,Daycare - Private Contractors Payment,28.08,0,COMMERCIAL SUPPLIER
03/05/2022,Adults & Health,London Care Plc,Home Care - Private Contractors Payment,126.36,0,COMMERCIAL SUPPLIER
03/05/2022,Adults & Health,London Care Plc,Home Care - Private Contractors Payment,43.08,0,COMMERCIAL SUPPLIER
03/05/2022,Adults & Health,London Care Plc,Home Care - Private Contractors Payment,173.14,0,COMMERCIAL SUPPLIER
03/05/2022,Adults & Health,London Care Plc,Home Care - Private Contractors Payment,121.68,0,COMMERCIAL SUPPLIER
03/05/2022,Adults & Health,London Care Plc,Home Care - Private Contractors Payment,163.8,0,COMMERCIAL SUPPLIER
03/05/2022,Adults & Health,London Care Plc,Daycare - Private Contractors Payment,37.44,0,COMMERCIAL SUPPLIER
03/05/2022,Adults & Health,London Care Plc,Home Care - Private Contractors Payment,18.72,0,COMMERCIAL SUPPLIER
03/05/2022,Adults & Health,London Care Plc,Daycare - Private Contractors Payment,18.72,0,COMMERCIAL SUPPLIER
03/05/2022,Adults & Health,London Care Plc,Home Care - Private Contractors Payment,262.08,0,COMMERCIAL SUPPLIER
03/05/2022,Adults & Health,London Care Plc,Home Care - Private Contractors Payment,360.36,0,COMMERCIAL SUPPLIER
03/05/2022,Adults & Health,London Care Plc,Home Care - Private Contractors Payment,42.12,0,COMMERCIAL SUPPLIER
03/05/2022,Adults & Health,London Care Plc,Home Care - Private Contractors Payment,65.52,0,COMMERCIAL SUPPLIER
03/05/2022,Adults & Health,London Care Plc,Home Care - Private Contractors Payment,720.72,0,COMMERCIAL SUPPLIER
03/05/2022,Adults & Health,London Care Plc,Home Care - Private Contractors Payment,149.76,0,COMMERCIAL SUPPLIER
03/05/2022,Adults & Health,London Care Plc,Home Care - Private Contractors Payment,44.29,0,COMMERCIAL SUPPLIER
03/05/2022,Adults & Health,London Care Plc,Home Care - Private Contractors Payment,113.28,0,COMMERCIAL SUPPLIER
03/05/2022,Adults & Health,London Care Plc,Home Care - Private Contractors Payment,18.72,0,COMMERCIAL SUPPLIER
03/05/2022,Adults & Health,London Care Plc,Home Care - Private Contractors Payment,76.12,0,COMMERCIAL SUPPLIER
03/05/2022,Adults & Health,London Care Plc,Home Care - Private Contractors Payment,18.72,0,COMMERCIAL SUPPLIER
03/05/2022,Adults & Health,London Care Plc,Home Care - Private Contractors Payment,9.36,0,COMMERCIAL SUPPLIER
03/05/2022,Adults & Health,London Care Plc,Daycare - Private Contractors Payment,74.88,0,COMMERCIAL SUPPLIER
03/05/2022,Adults & Health,London Care Plc,Home Care - Private Contractors Payment,18.72,0,COMMERCIAL SUPPLIER
03/05/2022,Adults & Health,London Care Plc,Home Care - Private Contractors Payment,327.6,0,COMMERCIAL SUPPLIER
03/05/2022,Adults & Health,London Care Plc,Home Care - Private Contractors Payment,210.6,0,COMMERCIAL SUPPLIER
03/05/2022,Adults & Health,London Care Plc,Daycare - Private Contractors Payment,112.32,0,COMMERCIAL SUPPLIER
03/05/2022,Adults & Health,London Care Plc,Home Care - Private Contractors Payment,37.44,0,COMMERCIAL SUPPLIER
03/05/2022,Adults & Health,London Care Plc,Daycare - Private Contractors Payment,56.16,0,COMMERCIAL SUPPLIER
03/05/2022,Adults & Health,London Care Plc,Daycare - Private Contractors Payment,56.16,0,COMMERCIAL SUPPLIER
03/05/2022,Adults & Health,London Care Plc,Home Care - Private Contractors Payment,18.72,0,COMMERCIAL SUPPLIER
03/05/2022,Adults & Health,London Care Plc,Daycare - Private Contractors Payment,112.32,0,COMMERCIAL SUPPLIER
03/05/2022,Adults & Health,London Care Plc,Home Care - Private Contractors Payment,98.28,0,COMMERCIAL SUPPLIER
03/05/2022,Adults & Health,London Care Plc,Home Care - Private Contractors Payment,393.12,0,COMMERCIAL SUPPLIER
03/05/2022,Adults & Health,London Care Plc,Home Care - Private Contractors Payment,98.28,0,COMMERCIAL SUPPLIER
03/05/2022,Adults & Health,London Care Plc,Home Care - Private Contractors Payment,262.08,0,COMMERCIAL SUPPLIER
03/05/2022,Adults & Health,London Care Plc,Home Care - Private Contractors Payment,98.28,0,COMMERCIAL SUPPLIER
03/05/2022,Adults & Health,Floron Residential Home,Residential Placements - Private Contractors Payment,639.53,0,COMMERCIAL SUPPLIER
03/05/2022,Adults & Health,Floron Residential Home,Residential Placements - Private Contractors Payment,602.48,0,COMMERCIAL SUPPLIER
03/05/2022,Adults & Health,Floron Residential Home,Residential Placements - Private Contractors Payment,639.53,0,COMMERCIAL SUPPLIER
03/05/2022,Adults & Health,Floron Residential Home,Residential Placements - Private Contractors Payment,602.48,0,COMMERCIAL SUPPLIER
03/05/2022,Adults & Health,Floron Residential Home,Residential Placements - Private Contractors Payment,639.53,0,COMMERCIAL SUPPLIER
03/05/2022,Adults & Health,Floron Residential Home,Residential Placements - Private Contractors Payment,639.53,0,COMMERCIAL SUPPLIER
03/05/2022,Adults & Health,Floron Residential Home,Residential Placements - Private Contractors Payment,639.53,0,COMMERCIAL SUPPLIER
03/05/2022,Adults & Health,Floron Residential Home,Residential Placements - Private Contractors Payment,639.53,0,COMMERCIAL SUPPLIER
03/05/2022,Adults & Health,Floron Residential Home,Residential Placements - Private Contractors Payment,639.53,0,COMMERCIAL SUPPLIER
03/05/2022,Adults & Health,Floron Residential Home,Residential Placements - Private Contractors Payment,602.48,0,COMMERCIAL SUPPLIER
03/05/2022,Adults & Health,Floron Residential Home,Residential Placements - Private Contractors Payment,639.53,0,COMMERCIAL SUPPLIER
03/05/2022,Adults & Health,Floron Residential Home,Residential Placements - Private Contractors Payment,639.53,0,COMMERCIAL SUPPLIER
03/05/2022,Adults & Health,Floron Residential Home,Residential Placements - Private Contractors Payment,639.53,0,COMMERCIAL SUPPLIER
03/05/2022,Adults & Health,Floron Residential Home,Residential Placements - Private Contractors Payment,602.48,0,COMMERCIAL SUPPLIER
03/05/2022,Adults & Health,Floron Residential Home,Residential Placements - Private Contractors Payment,639.53,0,COMMERCIAL SUPPLIER
03/05/2022,Adults & Health,Floron Residential Home,Residential Placements - Private Contractors Payment,639.53,0,COMMERCIAL SUPPLIER
03/05/2022,Adults & Health,Floron Residential Home,Residential Placements - Private Contractors Payment,639.53,0,COMMERCIAL SUPPLIER
03/05/2022,Adults & Health,Floron Residential Home,Residential Placements - Private Contractors Payment,639.53,0,COMMERCIAL SUPPLIER
03/05/2022,Adults & Health,Floron Residential Home,Residential Placements - Private Contractors Payment,639.53,0,COMMERCIAL SUPPLIER
03/05/2022,Adults & Health,Floron Residential Home,Residential Placements - Private Contractors Payment,639.53,0,COMMERCIAL SUPPLIER
03/05/2022,Adults & Health,A1 Risk Solutions Ltd,Staff Development And Training,540,0,COMMERCIAL SUPPLIER
03/05/2022,Adults & Health,Triumph Care Group Ltd,Home Care - Private Contractors Payment,47.4,0,COMMERCIAL SUPPLIER
03/05/2022,Adults & Health,Triumph Care Group Ltd,Home Care - Private Contractors Payment,31.6,0,COMMERCIAL SUPPLIER
03/05/2022,Adults & Health,Triumph Care Group Ltd,Home Care - Private Contractors Payment,47.4,0,COMMERCIAL SUPPLIER
03/05/2022,Adults & Health,Triumph Care Group Ltd,Home Care - Private Contractors Payment,31.6,0,COMMERCIAL SUPPLIER
03/05/2022,Adults & Health,Triumph Care Group Ltd,Home Care - Private Contractors Payment,47.4,0,COMMERCIAL SUPPLIER
03/05/2022,Adults & Health,Triumph Care Group Ltd,Home Care - Private Contractors Payment,31.6,0,COMMERCIAL SUPPLIER
03/05/2022,Adults & Health,Triumph Care Group Ltd,Home Care - Private Contractors Payment,31.6,0,COMMERCIAL SUPPLIER
03/05/2022,Adults & Health,Triumph Care Group Ltd,Home Care - Private Contractors Payment,47.4,0,COMMERCIAL SUPPLIER
03/05/2022,Dedicated Schools Budget,Personal Information - Redacted,Occupational Health,4030,0,COMMERCIAL SUPPLIER
03/05/2022,Dedicated Schools Budget,Personal Information - Redacted,Occupational Health,2228.6,0,COMMERCIAL SUPPLIER
03/05/2022,RMS,Master Locking Systems Ltd,Private Contractors Payment - Other,55.94,0,COMMERCIAL SUPPLIER
03/05/2022,RMS,Master Locking Systems Ltd,Private Contractors Payment - Other,333.44,0,COMMERCIAL SUPPLIER
03/05/2022,Adults & Health,Futures for Shared Lives Ltd,Adult Placement Scheme - Private Contractors Payment,536.27,0,NON COMMERCIAL SUPPLIER
03/05/2022,Adults & Health,Futures for Shared Lives Ltd,Adult Placement Scheme - Private Contractors Payment,536.27,0,NON COMMERCIAL SUPPLIER
03/05/2022,Adults & Health,Futures for Shared Lives Ltd,Adult Placement Scheme - Private Contractors Payment,766.1,0,NON COMMERCIAL SUPPLIER
03/05/2022,Adults & Health,Futures for Shared Lives Ltd,Adult Placement Scheme - Private Contractors Payment,536.27,0,NON COMMERCIAL SUPPLIER
03/05/2022,Adults & Health,Futures for Shared Lives Ltd,Adult Placement Scheme - Private Contractors Payment,536.27,0,NON COMMERCIAL SUPPLIER
03/05/2022,Adults & Health,Futures for Shared Lives Ltd,Adult Placement Scheme - Private Contractors Payment,536.27,0,NON COMMERCIAL SUPPLIER
03/05/2022,Adults & Health,Futures for Shared Lives Ltd,Adult Placement Scheme - Private Contractors Payment,689.49,0,NON COMMERCIAL SUPPLIER
03/05/2022,Adults & Health,Futures for Shared Lives Ltd,Adult Placement Scheme - Private Contractors Payment,536.27,0,NON COMMERCIAL SUPPLIER
03/05/2022,Environment and Sustainable Transport,Enterprise Flex-E-Rent,Client Transport,547.16,0,COMMERCIAL SUPPLIER
03/05/2022,Environment and Sustainable Transport,Enterprise Flex-E-Rent,Client Transport,547.16,0,COMMERCIAL SUPPLIER
03/05/2022,Environment and Sustainable Transport,Enterprise Flex-E-Rent,Client Transport,248.26,0,COMMERCIAL SUPPLIER
03/05/2022,Environment and Sustainable Transport,Enterprise Flex-E-Rent,Client Transport,395.08,0,COMMERCIAL SUPPLIER
03/05/2022,Environment and Sustainable Transport,Enterprise Flex-E-Rent,Client Transport,395.08,0,COMMERCIAL SUPPLIER
03/05/2022,Environment and Sustainable Transport,Enterprise Flex-E-Rent,Client Transport,395.08,0,COMMERCIAL SUPPLIER
03/05/2022,Environment and Sustainable Transport,Enterprise Flex-E-Rent,Client Transport,395.08,0,COMMERCIAL SUPPLIER
03/05/2022,Environment and Sustainable Transport,Enterprise Flex-E-Rent,Client Transport,395.08,0,COMMERCIAL SUPPLIER
03/05/2022,Environment and Sustainable Transport,Enterprise Flex-E-Rent,Client Transport,248.26,0,COMMERCIAL SUPPLIER
03/05/2022,Environment and Sustainable Transport,Enterprise Flex-E-Rent,Client Transport,395.08,0,COMMERCIAL SUPPLIER
03/05/2022,Environment and Sustainable Transport,Enterprise Flex-E-Rent,Client Transport,760.74,0,COMMERCIAL SUPPLIER
03/05/2022,Environment and Sustainable Transport,Enterprise Flex-E-Rent,Client Transport,633.8,0,COMMERCIAL SUPPLIER
03/05/2022,Environment and Sustainable Transport,Enterprise Flex-E-Rent,Client Transport,1071.42,0,COMMERCIAL SUPPLIER
03/05/2022,Environment and Sustainable Transport,Enterprise Flex-E-Rent,Client Transport,247.9,0,COMMERCIAL SUPPLIER
03/05/2022,Environment and Sustainable Transport,Enterprise Flex-E-Rent,Client Transport,227.36,0,COMMERCIAL SUPPLIER
03/05/2022,Environment and Sustainable Transport,Enterprise Flex-E-Rent,Client Transport,957.98,0,COMMERCIAL SUPPLIER
03/05/2022,Environment and Sustainable Transport,Enterprise Flex-E-Rent,Client Transport,534.5,0,COMMERCIAL SUPPLIER
03/05/2022,Environment and Sustainable Transport,Enterprise Flex-E-Rent,Client Transport,534.5,0,COMMERCIAL SUPPLIER
03/05/2022,Environment and Sustainable Transport,Enterprise Flex-E-Rent,Client Transport,248.26,0,COMMERCIAL SUPPLIER
03/05/2022,Environment and Sustainable Transport,Ford Motor Company Ltd t/a PartsPlus,Highway Services,358.92,0,COMMERCIAL SUPPLIER
03/05/2022,"People, Policy and Performance",David Madden Photography,Design And Photographic Costs,280,0,COMMERCIAL SUPPLIER
03/05/2022,Children and Young People,Network Recruitment Solutions Limited,Contact Costs (Placements),310,0,NON COMMERCIAL SUPPLIER
03/05/2022,Children and Young People,Network Recruitment Solutions Limited,Contact Costs (Placements),465,0,NON COMMERCIAL SUPPLIER
03/05/2022,Children and Young People,Network Recruitment Solutions Limited,Contact Costs (Placements),465,0,NON COMMERCIAL SUPPLIER
03/05/2022,Children and Young People,Network Recruitment Solutions Limited,Contact Costs (Placements),465,0,NON COMMERCIAL SUPPLIER
03/05/2022,Children and Young People,Network Recruitment Solutions Limited,Contact Costs (Placements),465,0,NON COMMERCIAL SUPPLIER
03/05/2022,Children and Young People,Network Recruitment Solutions Limited,Contact Costs (Placements),465,0,NON COMMERCIAL SUPPLIER
03/05/2022,Children and Young People,Network Recruitment Solutions Limited,Contact Costs (Placements),465,0,NON COMMERCIAL SUPPLIER
03/05/2022,Children and Young People,Network Recruitment Solutions Limited,Contact Costs (Placements),310,0,NON COMMERCIAL SUPPLIER
03/05/2022,Children and Young People,Network Recruitment Solutions Limited,Contact Costs (Placements),465,0,NON COMMERCIAL SUPPLIER
03/05/2022,Children and Young People,Network Recruitment Solutions Limited,Contact Costs (Placements),465,0,NON COMMERCIAL SUPPLIER
03/05/2022,Adults & Health,Headway East London,Daycare - Private Contractors Payment,200,0,COMMERCIAL SUPPLIER
03/05/2022,Adults & Health,Headway East London,Payments To Voluntary Sector,113.4,0,COMMERCIAL SUPPLIER
03/05/2022,Adults & Health,Headway East London,Payments To Voluntary Sector,113.4,0,COMMERCIAL SUPPLIER
03/05/2022,Adults & Health,Headway East London,Daycare - Private Contractors Payment,100,0,COMMERCIAL SUPPLIER
03/05/2022,Adults & Health,Headway East London,Payments To Voluntary Sector,56.7,0,COMMERCIAL SUPPLIER
03/05/2022,Adults & Health,Headway East London,Payments To Voluntary Sector,113.4,0,COMMERCIAL SUPPLIER
03/05/2022,Adults & Health,Headway East London,Daycare - Private Contractors Payment,200,0,COMMERCIAL SUPPLIER
03/05/2022,Adults & Health,Headway East London,Daycare - Private Contractors Payment,200,0,COMMERCIAL SUPPLIER
03/05/2022,Adults & Health,Headway East London,Daycare - Private Contractors Payment,100,0,COMMERCIAL SUPPLIER
03/05/2022,Adults & Health,Headway East London,Payments To Voluntary Sector,113.4,0,COMMERCIAL SUPPLIER
03/05/2022,Adults & Health,Headway East London,Daycare - Private Contractors Payment,200,0,COMMERCIAL SUPPLIER
03/05/2022,Adults & Health,Headway East London,Daycare - Private Contractors Payment,200,0,COMMERCIAL SUPPLIER
03/05/2022,Adults & Health,Headway East London,Payments To Voluntary Sector,113.4,0,COMMERCIAL SUPPLIER
03/05/2022,Adults & Health,Headway East London,Daycare - Private Contractors Payment,200,0,COMMERCIAL SUPPLIER
03/05/2022,Adults & Health,Headway East London,Payments To Voluntary Sector,113.4,0,COMMERCIAL SUPPLIER
03/05/2022,Adults & Health,Headway East London,Payments To Voluntary Sector,56.7,0,COMMERCIAL SUPPLIER
03/05/2022,Adults & Health,Headway East London,Daycare - Private Contractors Payment,100,0,COMMERCIAL SUPPLIER
03/05/2022,Adults & Health,Headway East London,Daycare - Private Contractors Payment,100,0,COMMERCIAL SUPPLIER
03/05/2022,Adults & Health,Headway East London,Daycare - Private Contractors Payment,100,0,COMMERCIAL SUPPLIER
03/05/2022,Adults & Health,Headway East London,Daycare - Private Contractors Payment,100,0,COMMERCIAL SUPPLIER
03/05/2022,Adults & Health,Headway East London,Daycare - Private Contractors Payment,100,0,COMMERCIAL SUPPLIER
03/05/2022,Adults & Health,Headway East London,Daycare - Private Contractors Payment,100,0,COMMERCIAL SUPPLIER
03/05/2022,Adults & Health,Headway East London,Daycare - Private Contractors Payment,100,0,COMMERCIAL SUPPLIER
03/05/2022,Adults & Health,Headway East London,Daycare - Private Contractors Payment,100,0,COMMERCIAL SUPPLIER
03/05/2022,Adults & Health,Headway East London,Daycare - Private Contractors Payment,200,0,COMMERCIAL SUPPLIER
03/05/2022,Adults & Health,Headway East London,Daycare - Private Contractors Payment,303,0,COMMERCIAL SUPPLIER
03/05/2022,Adults & Health,Headway East London,Daycare - Private Contractors Payment,200,0,COMMERCIAL SUPPLIER
03/05/2022,Adults & Health,Headway East London,Daycare - Private Contractors Payment,200,0,COMMERCIAL SUPPLIER
03/05/2022,Adults & Health,Headway East London,Daycare - Private Contractors Payment,200,0,COMMERCIAL SUPPLIER
03/05/2022,Adults & Health,Headway East London,Daycare - Private Contractors Payment,200,0,COMMERCIAL SUPPLIER
03/05/2022,Adults & Health,Headway East London,Daycare - Private Contractors Payment,200,0,COMMERCIAL SUPPLIER
03/05/2022,Adults & Health,Headway East London,Daycare - Private Contractors Payment,100,0,COMMERCIAL SUPPLIER
03/05/2022,RMS,Blackburn & CO. Ltd,Private Contractors Payment - Other,3530,0,CIS
03/05/2022,RMS,Blackburn & CO. Ltd,Private Contractors Payment - Other,1750,0,CIS
03/05/2022,Housing Revenue Account,F R Roofing Ltd,"Maintenance - Equipment, Furniture And Materials",320,0,CIS
03/05/2022,Housing Revenue Account,F R Roofing Ltd,"Maintenance - Equipment, Furniture And Materials",420,0,CIS
03/05/2022,Children and Young People,Fusion Fostering,Fostering Agency Placements - Private Contractors Payment,690,0,COMMERCIAL SUPPLIER
03/05/2022,Children and Young People,Fusion Fostering,Fostering Agency Placements - Private Contractors Payment,750,0,COMMERCIAL SUPPLIER
03/05/2022,Children and Young People,Fusion Fostering,Fostering Agency Placements - Private Contractors Payment,750,0,COMMERCIAL SUPPLIER
03/05/2022,Children and Young People,Fusion Fostering,Fostering Agency Placements - Private Contractors Payment,750,0,COMMERCIAL SUPPLIER
03/05/2022,Children and Young People,Fusion Fostering,Fostering Agency Placements - Private Contractors Payment,750,0,COMMERCIAL SUPPLIER
03/05/2022,Children and Young People,Fusion Fostering,Fostering Agency Placements - Private Contractors Payment,750,0,COMMERCIAL SUPPLIER
03/05/2022,Children and Young People,Fusion Fostering,Fostering Agency Placements - Private Contractors Payment,690,0,COMMERCIAL SUPPLIER
03/05/2022,Children and Young People,Fusion Fostering,Fostering Agency Placements - Private Contractors Payment,750,0,COMMERCIAL SUPPLIER
03/05/2022,Children and Young People,Fusion Fostering,Fostering Agency Placements - Private Contractors Payment,863.73,0,COMMERCIAL SUPPLIER
03/05/2022,Children and Young People,Fusion Fostering,Fostering Agency Placements - Private Contractors Payment,863.73,0,COMMERCIAL SUPPLIER
03/05/2022,Children and Young People,Fusion Fostering,Fostering Agency Placements - Private Contractors Payment,863.73,0,COMMERCIAL SUPPLIER
03/05/2022,Children and Young People,Fusion Fostering,Fostering Agency Placements - Private Contractors Payment,461.81,0,COMMERCIAL SUPPLIER
03/05/2022,Environment and Sustainable Transport,London Councils,Private Contractors Payment - Other,71386.03,0,CENTRAL/GOVERNMENT DEPARTMENTS
03/05/2022,Children and Young People,Sayers (Car Hire),Contact Costs (Placements),215,0,VENDOR
03/05/2022,oneSource - Non Shared,British Gas,Electricity,931.61,0,COMMERCIAL SUPPLIER
03/05/2022,RMS,Glass System Ltd,"Purchase - Equipment, Furniture And Materials",565.41,0,COMMERCIAL SUPPLIER
03/05/2022,RMS,Glass System Ltd,"Purchase - Equipment, Furniture And Materials",530.43,0,COMMERCIAL SUPPLIER
03/05/2022,Inclusive Economy & Housing,British Gas Business,Electricity,8254.59,0,COMMERCIAL SUPPLIER
03/05/2022,Adults & Health,Expert Medical Opinion Ltd,Other Social Services Transfer Payments,393,0,COMMERCIAL SUPPLIER
03/05/2022,Adults & Health,Expert Medical Opinion Ltd,Other Social Services Transfer Payments,432,0,COMMERCIAL SUPPLIER
03/05/2022,Environment and Sustainable Transport,Sparshatt Truck & Van Ltd,Highway Services,36.98,0,COMMERCIAL SUPPLIER
03/05/2022,Environment and Sustainable Transport,Sparshatt Truck & Van Ltd,Highway Services,13.2,0,COMMERCIAL SUPPLIER
03/05/2022,Environment and Sustainable Transport,Sparshatt Truck & Van Ltd,Highway Services,44.89,0,COMMERCIAL SUPPLIER
03/05/2022,Environment and Sustainable Transport,Sparshatt Truck & Van Ltd,Highway Services,7.8,0,COMMERCIAL SUPPLIER
03/05/2022,Environment and Sustainable Transport,Sparshatt Truck & Van Ltd,Highway Services,19.18,0,COMMERCIAL SUPPLIER
03/05/2022,Environment and Sustainable Transport,Sparshatt Truck & Van Ltd,Highway Services,45.92,0,COMMERCIAL SUPPLIER
03/05/2022,Environment and Sustainable Transport,Sparshatt Truck & Van Ltd,Highway Services,39.86,0,COMMERCIAL SUPPLIER
03/05/2022,Environment and Sustainable Transport,Sparshatt Truck & Van Ltd,Highway Services,263.72,0,COMMERCIAL SUPPLIER
03/05/2022,Environment and Sustainable Transport,Sparshatt Truck & Van Ltd,Highway Services,133.5,0,COMMERCIAL SUPPLIER
03/05/2022,Environment and Sustainable Transport,Sparshatt Truck & Van Ltd,Highway Services,39.2,0,COMMERCIAL SUPPLIER
03/05/2022,Environment and Sustainable Transport,Sparshatt Truck & Van Ltd,Highway Services,54.8,0,COMMERCIAL SUPPLIER
03/05/2022,Environment and Sustainable Transport,Sparshatt Truck & Van Ltd,Highway Services,68.8,0,COMMERCIAL SUPPLIER
03/05/2022,Environment and Sustainable Transport,Sparshatt Truck & Van Ltd,Highway Services,0.03,0,COMMERCIAL SUPPLIER
03/05/2022,Environment and Sustainable Transport,Sparshatt Truck & Van Ltd,Highway Services,8.64,0,COMMERCIAL SUPPLIER
03/05/2022,Environment and Sustainable Transport,Sparshatt Truck & Van Ltd,Highway Services,16.8,0,COMMERCIAL SUPPLIER
03/05/2022,Environment and Sustainable Transport,Sparshatt Truck & Van Ltd,Highway Services,101.38,0,COMMERCIAL SUPPLIER
03/05/2022,Environment and Sustainable Transport,Sparshatt Truck & Van Ltd,Highway Services,30.29,0,COMMERCIAL SUPPLIER
03/05/2022,Environment and Sustainable Transport,Sparshatt Truck & Van Ltd,Highway Services,12.47,0,COMMERCIAL SUPPLIER
03/05/2022,Environment and Sustainable Transport,Sparshatt Truck & Van Ltd,Highway Services,25.32,0,COMMERCIAL SUPPLIER
03/05/2022,Environment and Sustainable Transport,Sparshatt Truck & Van Ltd,Highway Services,186,0,COMMERCIAL SUPPLIER
03/05/2022,Environment and Sustainable Transport,Sparshatt Truck & Van Ltd,Highway Services,7.2,0,COMMERCIAL SUPPLIER
03/05/2022,Environment and Sustainable Transport,Sparshatt Truck & Van Ltd,Highway Services,65.6,0,COMMERCIAL SUPPLIER
03/05/2022,Environment and Sustainable Transport,Sparshatt Truck & Van Ltd,Highway Services,227.98,0,COMMERCIAL SUPPLIER
03/05/2022,Adults & Health,Sweettree Home Care Services,Daycare - Private Contractors Payment,249.5,0,NON COMMERCIAL SUPPLIER
03/05/2022,Adults & Health,Sweettree Home Care Services,Daycare - Private Contractors Payment,249.5,0,NON COMMERCIAL SUPPLIER
03/05/2022,Adults & Health,Sweettree Home Care Services,Daycare - Private Contractors Payment,249.5,0,NON COMMERCIAL SUPPLIER
03/05/2022,Adults & Health,Sweettree Home Care Services,Daycare - Private Contractors Payment,249.5,0,NON COMMERCIAL SUPPLIER
03/05/2022,Children and Young People,Sayers (Car Hire),Client Expenses - Third Party,402,0,VENDOR
03/05/2022,Housing Revenue Account,Northern Housing Consortium,Ict Maintenance And Support,1275,0,COMMERCIAL SUPPLIER
03/05/2022,Children and Young People,Maldon District Council,Council Tax,2202.44,0,VENDOR
03/05/2022,RMS,Architectural Panels Ltd,"Purchase - Equipment, Furniture And Materials",2640,0,COMMERCIAL SUPPLIER
03/05/2022,RMS,Architectural Panels Ltd,"Purchase - Equipment, Furniture And Materials",120,0,COMMERCIAL SUPPLIER
03/05/2022,Adults & Health,Supreme Care Services Ltd,Home Care - Private Contractors Payment,131.04,0,COMMERCIAL SUPPLIER
03/05/2022,Adults & Health,Supreme Care Services Ltd,Home Care - Private Contractors Payment,131.04,0,COMMERCIAL SUPPLIER
03/05/2022,Adults & Health,Supreme Care Services Ltd,Home Care - Private Contractors Payment,127.68,0,COMMERCIAL SUPPLIER
03/05/2022,Adults & Health,Supreme Care Services Ltd,Home Care - Private Contractors Payment,131.04,0,COMMERCIAL SUPPLIER
03/05/2022,RMS,S & S Plastics Ltd,"Purchase - Equipment, Furniture And Materials",693,0,VENDOR
03/05/2022,RMS,S & S Plastics Ltd,"Purchase - Equipment, Furniture And Materials",57.84,0,VENDOR
03/05/2022,RMS,S & S Plastics Ltd,"Purchase - Equipment, Furniture And Materials",102.84,0,VENDOR
03/05/2022,RMS,S & S Plastics Ltd,"Purchase - Equipment, Furniture And Materials",112.32,0,VENDOR
03/05/2022,RMS,S & S Plastics Ltd,"Purchase - Equipment, Furniture And Materials",39.22,0,VENDOR
03/05/2022,RMS,S & S Plastics Ltd,"Purchase - Equipment, Furniture And Materials",225.24,0,VENDOR
03/05/2022,RMS,S & S Plastics Ltd,"Purchase - Equipment, Furniture And Materials",210.07,0,VENDOR
03/05/2022,RMS,S & S Plastics Ltd,"Purchase - Equipment, Furniture And Materials",44.34,0,VENDOR
03/05/2022,Environment and Sustainable Transport,Certas Energy uk ltd,Transport Fuel,25326.74,0,
03/05/2022,Environment and Sustainable Transport,Certas Energy uk ltd,Transport Fuel,26365.31,0,
03/05/2022,Children and Young People,Dr T Grange & Associates,Legal Fees,693.23,0,COMMERCIAL SUPPLIER
03/05/2022,Environment and Sustainable Transport,Worldline IT Services UK Ltd Re Fuel Genie,Transport Fuel,273.21,0,COMMERCIAL SUPPLIER
03/05/2022,Environment and Sustainable Transport,Worldline IT Services UK Ltd Re Fuel Genie,Transport Fuel,1145.93,0,COMMERCIAL SUPPLIER
03/05/2022,RMS,Rehau Ltd,"Purchase - Equipment, Furniture And Materials",2563.2,0,VENDOR
03/05/2022,Housing Revenue Account,J.A. Steel & Son Ltd,Private Contractors Payment - Other,770,0,COMMERCIAL SUPPLIER
03/05/2022,Housing Revenue Account,J.A. Steel & Son Ltd,Private Contractors Payment - Other,610,0,COMMERCIAL SUPPLIER
03/05/2022,Housing Revenue Account,J.A. Steel & Son Ltd,Private Contractors Payment - Other,1500,0,COMMERCIAL SUPPLIER
03/05/2022,Housing Revenue Account,J.A. Steel & Son Ltd,Private Contractors Payment - Other,1250,0,COMMERCIAL SUPPLIER
03/05/2022,Housing Revenue Account,J.A. Steel & Son Ltd,Private Contractors Payment - Other,600,0,COMMERCIAL SUPPLIER
03/05/2022,Housing Revenue Account,J.A. Steel & Son Ltd,Private Contractors Payment - Other,720,0,COMMERCIAL SUPPLIER
03/05/2022,Inclusive Economy & Housing,Canon (UK) Ltd,Printing,2000,0,COMMERCIAL SUPPLIER
03/05/2022,Children and Young People,Ansacare Fostering Agency Ltd,Fostering Agency Placements - Private Contractors Payment,755.25,0,COMMERCIAL SUPPLIER
03/05/2022,Children and Young People,Ansacare Fostering Agency Ltd,Fostering Agency Placements - Private Contractors Payment,755.25,0,COMMERCIAL SUPPLIER
03/05/2022,Children and Young People,Ansacare Fostering Agency Ltd,Fostering Agency Placements - Private Contractors Payment,755.25,0,COMMERCIAL SUPPLIER
03/05/2022,Children and Young People,Ansacare Fostering Agency Ltd,Fostering Agency Placements - Private Contractors Payment,969.96,0,COMMERCIAL SUPPLIER
03/05/2022,Children and Young People,L B Of Barking & Dagenham,Client Expenses - Third Party,509.72,0,VENDOR
03/05/2022,Children and Young People,Lola's Cuisine Limited,Catering Services,672,0,VENDOR
03/05/2022,oneSource - Non Shared,Building A Future (Newham Schools) Limited,"Maintenance - Equipment, Furniture And Materials",276481.1,0,VENDOR
03/05/2022,oneSource - Non Shared,Building A Future (Newham Schools) Limited,"Maintenance - Equipment, Furniture And Materials",72819.36,0,VENDOR
03/05/2022,oneSource - Non Shared,Building A Future (Newham Schools) Limited,"Maintenance - Equipment, Furniture And Materials",72313.93,0,VENDOR
03/05/2022,oneSource - Non Shared,Newham Learning Partnership (Project Co) Limited,"Maintenance - Equipment, Furniture And Materials",318521.23,0,VENDOR
03/05/2022,oneSource - Non Shared,Newham Learning Partnership (Project Co) Limited,"Maintenance - Equipment, Furniture And Materials",393678.07,0,VENDOR
03/05/2022,oneSource - Non Shared,Newham Learning Partnership (Project Co) Limited,"Maintenance - Equipment, Furniture And Materials",22571,0,VENDOR
03/05/2022,oneSource - Non Shared,Newham Learning Partnership (Project Co) Limited,"Maintenance - Equipment, Furniture And Materials",25213.74,0,VENDOR
03/05/2022,Housing Revenue Account,Moore's (Fencing & Building services Ltd,"Maintenance - Equipment, Furniture And Materials",1603.98,0,COMMERCIAL SUPPLIER
03/05/2022,Children and Young People,IGPP Limited,Non-Staff Training,558,0,NON COMMERCIAL SUPPLIER
03/05/2022,Children and Young People,G-MAP Services,Private Contractors Payment - Other,605,0,COMMERCIAL SUPPLIER
03/05/2022,Children and Young People,G-MAP Services,Private Contractors Payment - Other,605,0,COMMERCIAL SUPPLIER
03/05/2022,Children and Young People,G-MAP Services,Private Contractors Payment - Other,605,0,COMMERCIAL SUPPLIER
03/05/2022,Children and Young People,G-MAP Services,Private Contractors Payment - Other,605,0,COMMERCIAL SUPPLIER
03/05/2022,Children and Young People,G-MAP Services,Private Contractors Payment - Other,605,0,COMMERCIAL SUPPLIER
03/05/2022,Adults & Health,NAS Services Limited,Daycare - Private Contractors Payment,488.1,0,COMMERCIAL SUPPLIER
03/05/2022,Adults & Health,NAS Services Limited,Daycare - Private Contractors Payment,488.1,0,COMMERCIAL SUPPLIER
03/05/2022,Adults & Health,NAS Services Limited,Daycare - Private Contractors Payment,488.1,0,COMMERCIAL SUPPLIER
03/05/2022,Adults & Health,NAS Services Limited,Daycare - Private Contractors Payment,487.98,0,COMMERCIAL SUPPLIER
03/05/2022,Inclusive Economy & Housing,A Team investments Ltd,Legal Fees,1503.15,0,
03/05/2022,RMS,Personal Information - Redacted,Compensation,300,0,INDIVIDUALS
03/05/2022,Children and Young People,MaxiMo House,Supported Other Accommodation - Private Contractors Payment,1150,0,NON COMMERCIAL SUPPLIER
03/05/2022,Children and Young People,MaxiMo House,Supported Other Accommodation - Private Contractors Payment,1150,0,NON COMMERCIAL SUPPLIER
03/05/2022,Children and Young People,MaxiMo House,Supported Other Accommodation - Private Contractors Payment,1150,0,NON COMMERCIAL SUPPLIER
03/05/2022,Children and Young People,MaxiMo House,Supported Other Accommodation - Private Contractors Payment,1150,0,NON COMMERCIAL SUPPLIER
03/05/2022,Housing Revenue Account,ERND Building Services (UK) Ltd,"Maintenance - Equipment, Furniture And Materials",1732.57,0,COMMERCIAL SUPPLIER
03/05/2022,oneSource - Non Shared,The Cumberland School t/a Community Schools Trust,"Maintenance - Equipment, Furniture And Materials",7962.95,0,NON COMMERCIAL SUPPLIER
03/05/2022,Adults & Health,Floron Residential Home,Private Contractors Payment - Other,26576,0,COMMERCIAL SUPPLIER
03/05/2022,Adults & Health,Liberty Centre Ltd,Daycare - Private Contractors Payment,501,0,COMMERCIAL SUPPLIER
03/05/2022,Adults & Health,Liberty Centre Ltd,Daycare - Private Contractors Payment,501,0,COMMERCIAL SUPPLIER
03/05/2022,Adults & Health,Liberty Centre Ltd,Daycare - Private Contractors Payment,501,0,COMMERCIAL SUPPLIER
03/05/2022,Adults & Health,Liberty Centre Ltd,Daycare - Private Contractors Payment,501,0,COMMERCIAL SUPPLIER
03/05/2022,Children and Young People,Help Handz Ltd,Contact Costs (Placements),328,0,INDIVIDUALS
03/05/2022,Children and Young People,Help Handz Ltd,Contact Costs (Placements),327.92,0,INDIVIDUALS
03/05/2022,Children and Young People,Help Handz Ltd,Contact Costs (Placements),328,0,INDIVIDUALS
03/05/2022,Children and Young People,Help Handz Ltd,Contact Costs (Placements),328,0,INDIVIDUALS
03/05/2022,oneSource - Non Shared,London Network for Pest Solutions Ltd,Private Contractors Payment - Other,300,0,COMMERCIAL SUPPLIER
03/05/2022,Inclusive Economy & Housing,adam HTT LTd T/A Adam,Ict Hardware,11250,0,VENDOR
03/05/2022,Adults & Health,Personal Information - Redacted,Professional Services - General,1000,0,VENDOR
03/05/2022,Children and Young People,Personal Information - Redacted,Legal Fees,4345,0,COMMERCIAL SUPPLIER
03/05/2022,Children and Young People,Personal Information - Redacted,Legal Fees,850,0,COMMERCIAL SUPPLIER
03/05/2022,Children and Young People,Personal Information - Redacted,Legal Fees,550,0,COMMERCIAL SUPPLIER
03/05/2022,Children and Young People,Personal Information - Redacted,Legal Fees,700,0,COMMERCIAL SUPPLIER
03/05/2022,Children and Young People,Personal Information - Redacted,Legal Fees,850,0,LEGAL SERVICES
03/05/2022,Inclusive Economy & Housing,Personal Information - Redacted,Legal Fees,277.5,0,COMMERCIAL SUPPLIER
03/05/2022,Children and Young People,Personal Information - Redacted,Legal Fees,667.5,0,INDIVIDUALS
03/05/2022,Adults & Health,Liberty Centre Ltd,Daycare - Private Contractors Payment,356,0,COMMERCIAL SUPPLIER
03/05/2022,Adults & Health,Liberty Centre Ltd,Daycare - Private Contractors Payment,356,0,COMMERCIAL SUPPLIER
03/05/2022,Adults & Health,Liberty Centre Ltd,Daycare - Private Contractors Payment,356,0,COMMERCIAL SUPPLIER
03/05/2022,Adults & Health,Liberty Centre Ltd,Daycare - Private Contractors Payment,356,0,COMMERCIAL SUPPLIER
03/05/2022,Environment and Sustainable Transport,Andrew Pritchard Ltd,Consultancy Fees,5400,0,INDIVIDUALS
03/05/2022,Dedicated Schools Budget,Personal Information - Redacted,"Purchase - Equipment, Furniture And Materials",33.16,0,Employee
03/05/2022,Children and Young People,Personal Information - Redacted,Ict Software,76.66,0,Employee
03/05/2022,Children and Young People,Personal Information - Redacted,Ict Software,6.66,0,Employee
03/05/2022,Dedicated Schools Budget,Personal Information - Redacted,"Purchase - Equipment, Furniture And Materials",33.16,0,Employee
03/05/2022,Dedicated Schools Budget,Personal Information - Redacted,"Purchase - Equipment, Furniture And Materials",33.16,0,Employee
03/05/2022,Housing Revenue Account,Matthews & Co,Private Contractors Payment - Other,6840,0,COMMERCIAL SUPPLIER
03/05/2022,Dedicated Schools Budget,Personal Information - Redacted,Schools - Transfer Payment,12627.08,0,COMMERCIAL SUPPLIER
03/05/2022,Dedicated Schools Budget,Personal Information - Redacted,Schools - Transfer Payment,40224.58,0,COMMERCIAL SUPPLIER
03/05/2022,Dedicated Schools Budget,Personal Information - Redacted,Schools - Transfer Payment,10290,0,COMMERCIAL SUPPLIER
03/05/2022,Dedicated Schools Budget,Personal Information - Redacted,Schools - Transfer Payment,44134.17,0,VENDOR
03/05/2022,Dedicated Schools Budget,Personal Information - Redacted,Schools - Transfer Payment,12246.25,0,VENDOR
03/05/2022,Dedicated Schools Budget,Personal Information - Redacted,Schools - Transfer Payment,9405.42,0,COMMERCIAL SUPPLIER
03/05/2022,Dedicated Schools Budget,Personal Information - Redacted,Professional Services - General,22598.33,0,COMMERCIAL SUPPLIER
03/05/2022,Dedicated Schools Budget,Personal Information - Redacted,Schools - Transfer Payment,52963.75,0,COMMERCIAL SUPPLIER
03/05/2022,Dedicated Schools Budget,Personal Information - Redacted,Schools - Transfer Payment,13272.92,0,COMMERCIAL SUPPLIER
03/05/2022,Dedicated Schools Budget,Personal Information - Redacted,Schools - Transfer Payment,23228.33,0,COMMERCIAL SUPPLIER
03/05/2022,Dedicated Schools Budget,Personal Information - Redacted,Schools - Transfer Payment,26963.33,0,NON COMMERCIAL SUPPLIER
03/05/2022,Dedicated Schools Budget,Personal Information - Redacted,Schools - Transfer Payment,15304.58,0,NON COMMERCIAL SUPPLIER
03/05/2022,Dedicated Schools Budget,Personal Information - Redacted,Schools - Transfer Payment,9660,0,NON COMMERCIAL SUPPLIER
03/05/2022,Dedicated Schools Budget,Personal Information - Redacted,Schools - Transfer Payment,13200.06,0,VENDOR
03/05/2022,Dedicated Schools Budget,Personal Information - Redacted,Schools - Transfer Payment,24221.25,0,COMMERCIAL SUPPLIER
03/05/2022,Dedicated Schools Budget,Personal Information - Redacted,Schools - Transfer Payment,17972.08,0,NON COMMERCIAL SUPPLIER
03/05/2022,Dedicated Schools Budget,Personal Information - Redacted,Schools - Transfer Payment,3797.92,0,VENDOR
03/05/2022,Dedicated Schools Budget,Personal Information - Redacted,Schools - Transfer Payment,18131.25,0,COMMERCIAL SUPPLIER
03/05/2022,Dedicated Schools Budget,Personal Information - Redacted,Schools - Transfer Payment,14093.75,0,COMMERCIAL SUPPLIER
03/05/2022,Dedicated Schools Budget,Personal Information - Redacted,Schools - Transfer Payment,40785.27,0,COMMERCIAL SUPPLIER
03/05/2022,Dedicated Schools Budget,Personal Information - Redacted,Schools - Transfer Payment,41429,0,LOCAL AUTHORITY SERVICES
03/05/2022,Dedicated Schools Budget,Personal Information - Redacted,Schools - Transfer Payment,8175,0,VENDOR
03/05/2022,Dedicated Schools Budget,Personal Information - Redacted,Schools - Transfer Payment,37666.25,0,VENDOR
03/05/2022,Dedicated Schools Budget,Personal Information - Redacted,Schools - Transfer Payment,12960.83,0,COMMERCIAL SUPPLIER
03/05/2022,Dedicated Schools Budget,Personal Information - Redacted,Schools - Transfer Payment,8490,0,COMMERCIAL SUPPLIER
03/05/2022,Dedicated Schools Budget,Personal Information - Redacted,Schools - Transfer Payment,680,0,COMMERCIAL SUPPLIER
03/05/2022,Dedicated Schools Budget,Personal Information - Redacted,Schools - Transfer Payment,25782.92,0,NON COMMERCIAL SUPPLIER
03/05/2022,Dedicated Schools Budget,Personal Information - Redacted,Schools - Transfer Payment,18905.42,0,COMMERCIAL SUPPLIER
03/05/2022,Dedicated Schools Budget,Personal Information - Redacted,Schools - Transfer Payment,18335,0,COMMERCIAL SUPPLIER
03/05/2022,Dedicated Schools Budget,Personal Information - Redacted,Schools - Transfer Payment,37036.11,0,COMMERCIAL SUPPLIER
03/05/2022,Dedicated Schools Budget,Personal Information - Redacted,Schools - Transfer Payment,26698.96,0,VENDOR
03/05/2022,Dedicated Schools Budget,Personal Information - Redacted,Schools - Transfer Payment,14911.25,0,COMMERCIAL SUPPLIER
03/05/2022,Dedicated Schools Budget,Personal Information - Redacted,Schools - Transfer Payment,38557.92,0,COMMERCIAL SUPPLIER
03/05/2022,Dedicated Schools Budget,Personal Information - Redacted,Schools - Transfer Payment,24276.67,0,COMMERCIAL SUPPLIER
03/05/2022,Dedicated Schools Budget,Personal Information - Redacted,Schools - Transfer Payment,24161.67,0,COMMERCIAL SUPPLIER
03/05/2022,Dedicated Schools Budget,Personal Information - Redacted,Schools - Transfer Payment,7459.9,0,INDIVIDUALS
03/05/2022,Dedicated Schools Budget,Personal Information - Redacted,Schools - Transfer Payment,31663.33,0,VENDOR
03/05/2022,Dedicated Schools Budget,Personal Information - Redacted,Schools - Transfer Payment,20139.44,0,NON COMMERCIAL SUPPLIER
03/05/2022,Dedicated Schools Budget,Personal Information - Redacted,Schools - Transfer Payment,20313.44,0,NON COMMERCIAL SUPPLIER
03/05/2022,Dedicated Schools Budget,Personal Information - Redacted,Schools - Transfer Payment,20340.83,0,COMMERCIAL SUPPLIER
03/05/2022,Dedicated Schools Budget,Personal Information - Redacted,Schools - Transfer Payment,45896.11,0,VENDOR
03/05/2022,Dedicated Schools Budget,Personal Information - Redacted,Schools - Transfer Payment,18955.42,0,COMMERCIAL SUPPLIER
03/05/2022,Dedicated Schools Budget,Personal Information - Redacted,Schools - Transfer Payment,8608.33,0,COMMERCIAL SUPPLIER
03/05/2022,Dedicated Schools Budget,Personal Information - Redacted,Schools - Transfer Payment,20372.08,0,NON COMMERCIAL SUPPLIER
03/05/2022,Dedicated Schools Budget,Personal Information - Redacted,Schools - Transfer Payment,39429.17,0,NON COMMERCIAL SUPPLIER
03/05/2022,Dedicated Schools Budget,Personal Information - Redacted,Schools - Transfer Payment,21305.83,0,COMMERCIAL SUPPLIER
03/05/2022,Dedicated Schools Budget,Personal Information - Redacted,Schools - Transfer Payment,15386.67,0,COMMERCIAL SUPPLIER
03/05/2022,Dedicated Schools Budget,Personal Information - Redacted,Schools - Transfer Payment,17215.83,0,INDIVIDUALS
03/05/2022,Dedicated Schools Budget,Personal Information - Redacted,Schools - Transfer Payment,5855.83,0,COMMERCIAL SUPPLIER
03/05/2022,Dedicated Schools Budget,Personal Information - Redacted,Schools - Transfer Payment,47423.75,0,COMMERCIAL SUPPLIER
03/05/2022,Children and Young People,MaxiMo House,Supported Other Accommodation - Private Contractors Payment,1150,0,NON COMMERCIAL SUPPLIER
03/05/2022,Children and Young People,MaxiMo House,Supported Other Accommodation - Private Contractors Payment,1150,0,NON COMMERCIAL SUPPLIER
03/05/2022,Children and Young People,MaxiMo House,Supported Other Accommodation - Private Contractors Payment,1150,0,NON COMMERCIAL SUPPLIER
03/05/2022,Children and Young People,MaxiMo House,Supported Other Accommodation - Private Contractors Payment,1150,0,NON COMMERCIAL SUPPLIER
03/05/2022,Children and Young People,Oak Housing Ltd,Consultancy Fees,3360,0,COMMERCIAL SUPPLIER
03/05/2022,Adults & Health,Liberty Centre Ltd,Daycare - Private Contractors Payment,1272,0,COMMERCIAL SUPPLIER
03/05/2022,Adults & Health,Liberty Centre Ltd,Daycare - Private Contractors Payment,1272,0,COMMERCIAL SUPPLIER
03/05/2022,Adults & Health,Liberty Centre Ltd,Daycare - Private Contractors Payment,1272,0,COMMERCIAL SUPPLIER
03/05/2022,Adults & Health,Liberty Centre Ltd,Daycare - Private Contractors Payment,1272,0,COMMERCIAL SUPPLIER
03/05/2022,Environment and Sustainable Transport,Rigby Taylor Ltd,"Purchase - Equipment, Furniture And Materials",1099.48,0,COMMERCIAL SUPPLIER
03/05/2022,Children and Young People,PFS Prepaid Financial Services,Client Expenses - Third Party,250,0,INDIVIDUALS
03/05/2022,Children and Young People,PFS Prepaid Financial Services,Weekly Allowances - Private Contractors Payment,500,0,INDIVIDUALS
03/05/2022,Children and Young People,PFS Prepaid Financial Services,Equipment & Adaptation - Private Contractors Payment,700,0,INDIVIDUALS
03/05/2022,Children and Young People,PFS Prepaid Financial Services,Payment To Private Sector Landlords (Psl),1020,0,INDIVIDUALS
03/05/2022,Housing Revenue Account,Womble Bond Dickinson (UK) LLP,Facilities Management,9084.43,0,COMMERCIAL SUPPLIER
03/05/2022,Housing Revenue Account,CEL Solicitors,Legal Fees,440,0,COMMERCIAL SUPPLIER
03/05/2022,Adults & Health,Rosy Care Limited,Daycare - Private Contractors Payment,150,0,NON COMMERCIAL SUPPLIER
03/05/2022,Adults & Health,Rosy Care Limited,Daycare - Private Contractors Payment,300,0,NON COMMERCIAL SUPPLIER
03/05/2022,Adults & Health,Rosy Care Limited,Daycare - Private Contractors Payment,300,0,NON COMMERCIAL SUPPLIER
03/05/2022,Adults & Health,Rosy Care Limited,Daycare - Private Contractors Payment,300,0,NON COMMERCIAL SUPPLIER
03/05/2022,Adults & Health,Rosy Care Limited,Daycare - Private Contractors Payment,150,0,NON COMMERCIAL SUPPLIER
03/05/2022,Children and Young People,First Care Lodge Ltd,Supported Other Accommodation - Private Contractors Payment,5223,0,COMMERCIAL SUPPLIER
03/05/2022,Children and Young People,First Care Lodge Ltd,Supported Other Accommodation - Private Contractors Payment,5223,0,COMMERCIAL SUPPLIER
03/05/2022,Children and Young People,First Care Lodge Ltd,Supported Other Accommodation - Private Contractors Payment,5223,0,COMMERCIAL SUPPLIER
03/05/2022,Children and Young People,First Care Lodge Ltd,Supported Other Accommodation - Private Contractors Payment,5223,0,COMMERCIAL SUPPLIER
03/05/2022,Children and Young People,The Association of Directors of Childrens Services Ltd,Private Contractors Payment - Other,875,0,COMMERCIAL SUPPLIER
03/05/2022,oneSource - Non Shared,Bloom Procurement Services Ltd,Agency Staff,5863.16,0,COMMERCIAL SUPPLIER
03/05/2022,Pension Fund,River and Mercantile Investments Ltd,Fund Management Fees,50383.56,0,COMMERCIAL SUPPLIER
03/05/2022,Adults & Health,Liberty Centre Ltd,Daycare - Private Contractors Payment,252,0,COMMERCIAL SUPPLIER
03/05/2022,Adults & Health,Liberty Centre Ltd,Daycare - Private Contractors Payment,698.25,0,COMMERCIAL SUPPLIER
03/05/2022,Adults & Health,Liberty Centre Ltd,Daycare - Private Contractors Payment,126,0,COMMERCIAL SUPPLIER
03/05/2022,Adults & Health,Liberty Centre Ltd,Daycare - Private Contractors Payment,288,0,COMMERCIAL SUPPLIER
03/05/2022,Adults & Health,Liberty Centre Ltd,Daycare - Private Contractors Payment,698.25,0,COMMERCIAL SUPPLIER
03/05/2022,Adults & Health,Liberty Centre Ltd,Daycare - Private Contractors Payment,252,0,COMMERCIAL SUPPLIER
03/05/2022,Adults & Health,Liberty Centre Ltd,Daycare - Private Contractors Payment,126,0,COMMERCIAL SUPPLIER
03/05/2022,Adults & Health,Liberty Centre Ltd,Daycare - Private Contractors Payment,698.25,0,COMMERCIAL SUPPLIER
03/05/2022,Adults & Health,Liberty Centre Ltd,Daycare - Private Contractors Payment,288,0,COMMERCIAL SUPPLIER
03/05/2022,Adults & Health,Liberty Centre Ltd,Daycare - Private Contractors Payment,126,0,COMMERCIAL SUPPLIER
03/05/2022,Adults & Health,Liberty Centre Ltd,Daycare - Private Contractors Payment,252,0,COMMERCIAL SUPPLIER
03/05/2022,Adults & Health,Liberty Centre Ltd,Daycare - Private Contractors Payment,126,0,COMMERCIAL SUPPLIER
03/05/2022,Adults & Health,Liberty Centre Ltd,Daycare - Private Contractors Payment,288,0,COMMERCIAL SUPPLIER
03/05/2022,Adults & Health,Liberty Centre Ltd,Daycare - Private Contractors Payment,698.25,0,COMMERCIAL SUPPLIER
03/05/2022,Adults & Health,Liberty Centre Ltd,Daycare - Private Contractors Payment,288,0,COMMERCIAL SUPPLIER
03/05/2022,Adults & Health,Liberty Centre Ltd,Daycare - Private Contractors Payment,252,0,COMMERCIAL SUPPLIER
03/05/2022,Dedicated Schools Budget,Personal Information - Redacted,Schools - Transfer Payment,11920,0,VENDOR
03/05/2022,Children and Young People,Carter Brown The Expert Service Ltd,Legal Fees,750,0,COMMERCIAL SUPPLIER
03/05/2022,Housing Revenue Account,Swan Housing Group,Professional Services - General,853937.66,0,VENDOR
03/05/2022,Resources,Gallagher Bassett,Insurance (Excl Premises And Transport),100000,0,VENDOR
03/05/2022,Housing Revenue Account,Court Enforcement Services Limited,Legal Fees,440,0,NON COMMERCIAL SUPPLIER
04/05/2022,RMS,Till & Whitehead Ltd T/A UK Fasteners Ltd,"Purchase - Equipment, Furniture And Materials",275.04,0,
04/05/2022,RMS,Till & Whitehead Ltd T/A UK Fasteners Ltd,"Purchase - Equipment, Furniture And Materials",144.75,0,
04/05/2022,RMS,Till & Whitehead Ltd T/A UK Fasteners Ltd,"Purchase - Equipment, Furniture And Materials",483.4,0,
04/05/2022,Inclusive Economy & Housing,Castle Water Ltd,Water And Sewerage,4200.34,0,COMMERCIAL SUPPLIER
04/05/2022,Adults & Health,Medstar Domiciliary Care Services Ltd,Daycare - Private Contractors Payment,929.2,0,COMMERCIAL SUPPLIER
04/05/2022,Adults & Health,Abbots Care Ltd,Home Care - Private Contractors Payment,242,0,NON COMMERCIAL SUPPLIER
04/05/2022,Adults & Health,Abbots Care Ltd,Home Care - Private Contractors Payment,242,0,NON COMMERCIAL SUPPLIER
04/05/2022,Adults & Health,Abbots Care Ltd,Home Care - Private Contractors Payment,242,0,NON COMMERCIAL SUPPLIER
04/05/2022,Adults & Health,Abbots Care Ltd,Home Care - Private Contractors Payment,242,0,NON COMMERCIAL SUPPLIER
04/05/2022,oneSource - Non Shared,Class Affinity Projects Ltd,Mobile Phone Costs,9556,0,COMMERCIAL SUPPLIER
04/05/2022,Children and Young People,Exit Foundation,Weekly Allowances - Private Contractors Payment,3850,0,NON COMMERCIAL SUPPLIER
04/05/2022,RMS,Drain Aid Ltd,Private Contractors Payment - Other,209,0,COMMERCIAL SUPPLIER
04/05/2022,RMS,Drain Aid Ltd,Private Contractors Payment - Other,250,0,COMMERCIAL SUPPLIER
04/05/2022,Dedicated Schools Budget,Personal Information - Redacted,Professional Services - General,388.39,0,COMMERCIAL SUPPLIER
04/05/2022,Environment and Sustainable Transport,Barking Panelcraft,"Purchase - Equipment, Furniture And Materials",1583.66,0,COMMERCIAL SUPPLIER
04/05/2022,Environment and Sustainable Transport,Whitaker & Sawyer (Brushes) Ltd,Highway Services,230.4,0,COMMERCIAL SUPPLIER
04/05/2022,Brighter Futures Director,Redspot Healthcare Services Ltd,Agency Staff,1571.75,0,COMMERCIAL SUPPLIER
04/05/2022,oneSource,London Borough of Waltham Forest,Bailiff Fees Income,2081.85,0,LOCAL AUTHORITY SERVICES
04/05/2022,Environment and Sustainable Transport,O'Hara Bros Surfacing Ltd,"Maintenance - Equipment, Furniture And Materials",35667.46,0,CIS
04/05/2022,Environment and Sustainable Transport,O'Hara Bros Surfacing Ltd,"Maintenance - Equipment, Furniture And Materials",70549.24,0,CIS
04/05/2022,Environment and Sustainable Transport,O'Hara Bros Surfacing Ltd,"Maintenance - Equipment, Furniture And Materials",29511.14,0,CIS
04/05/2022,Environment and Sustainable Transport,O'Hara Bros Surfacing Ltd,"Maintenance - Equipment, Furniture And Materials",25404.59,0,CIS
04/05/2022,Housing Revenue Account,Herts Heritage Building & Roofing Ltd,"Maintenance - Equipment, Furniture And Materials",844.97,0,COMMERCIAL SUPPLIER
04/05/2022,Adults & Health,Deafblind UK.,Daycare - Private Contractors Payment,246,0,COMMERCIAL SUPPLIER
04/05/2022,Adults & Health,Deafblind UK.,Daycare - Private Contractors Payment,246,0,COMMERCIAL SUPPLIER
04/05/2022,Adults & Health,Deafblind UK.,Daycare - Private Contractors Payment,246,0,COMMERCIAL SUPPLIER
04/05/2022,Adults & Health,Deafblind UK.,Daycare - Private Contractors Payment,246,0,COMMERCIAL SUPPLIER
04/05/2022,Housing Revenue Account,Gas Contract Services LTD,Cyclical/Planned Maintenance - Mechanical And Electrical,2749.5,0,LOCAL AUTHORITY SERVICES
04/05/2022,Environment and Sustainable Transport,Ford Motor Company Ltd t/a PartsPlus,Highway Services,143.38,0,COMMERCIAL SUPPLIER
04/05/2022,Environment and Sustainable Transport,Ford Motor Company Ltd t/a PartsPlus,Highway Services,148.38,0,COMMERCIAL SUPPLIER
04/05/2022,Environment and Sustainable Transport,Ford Motor Company Ltd t/a PartsPlus,Highway Services,5.34,0,COMMERCIAL SUPPLIER
04/05/2022,Environment and Sustainable Transport,Ford Motor Company Ltd t/a PartsPlus,Highway Services,14.81,0,COMMERCIAL SUPPLIER
04/05/2022,Environment and Sustainable Transport,Ford Motor Company Ltd t/a PartsPlus,Highway Services,7.86,0,COMMERCIAL SUPPLIER
04/05/2022,Environment and Sustainable Transport,Ford Motor Company Ltd t/a PartsPlus,Highway Services,19.88,0,COMMERCIAL SUPPLIER
04/05/2022,Environment and Sustainable Transport,Ford Motor Company Ltd t/a PartsPlus,Highway Services,27.55,0,COMMERCIAL SUPPLIER
04/05/2022,Environment and Sustainable Transport,Ford Motor Company Ltd t/a PartsPlus,Highway Services,28.98,0,COMMERCIAL SUPPLIER
04/05/2022,Environment and Sustainable Transport,Ford Motor Company Ltd t/a PartsPlus,Highway Services,6.96,0,COMMERCIAL SUPPLIER
04/05/2022,Environment and Sustainable Transport,Ford Motor Company Ltd t/a PartsPlus,Highway Services,6.96,0,COMMERCIAL SUPPLIER
04/05/2022,Environment and Sustainable Transport,Ford Motor Company Ltd t/a PartsPlus,Highway Services,19.9,0,COMMERCIAL SUPPLIER
04/05/2022,Environment and Sustainable Transport,Ford Motor Company Ltd t/a PartsPlus,Highway Services,9.6,0,COMMERCIAL SUPPLIER
04/05/2022,Environment and Sustainable Transport,Ford Motor Company Ltd t/a PartsPlus,Highway Services,27.9,0,COMMERCIAL SUPPLIER
04/05/2022,Inclusive Economy & Housing,Good Homes Alliance,"Maintenance - Equipment, Furniture And Materials",1000,0,COMMERCIAL SUPPLIER
04/05/2022,Inclusive Economy & Housing,15Billion,Private Contractors Payment - Other,16457.5,0,COMMERCIAL SUPPLIER
04/05/2022,Inclusive Economy & Housing,15Billion,Private Contractors Payment - Other,36041.67,0,COMMERCIAL SUPPLIER
04/05/2022,Children and Young People,Potton Kare Services,Respite Care - Private Contractors Payment,372,0,VENDOR
04/05/2022,Adults & Health,Br3Ak Free,Daycare - Private Contractors Payment,310.12,0,VENDOR
04/05/2022,Adults & Health,Br3Ak Free,Payments To Voluntary Sector,40,0,VENDOR
04/05/2022,Adults & Health,Br3Ak Free,Daycare - Private Contractors Payment,310.12,0,VENDOR
04/05/2022,Adults & Health,Br3Ak Free,Payments To Voluntary Sector,40,0,VENDOR
04/05/2022,Adults & Health,Br3Ak Free,Payments To Voluntary Sector,40,0,VENDOR
04/05/2022,Adults & Health,Br3Ak Free,Payments To Voluntary Sector,40,0,VENDOR
04/05/2022,Adults & Health,Br3Ak Free,Daycare - Private Contractors Payment,310.04,0,VENDOR
04/05/2022,Adults & Health,Br3Ak Free,Daycare - Private Contractors Payment,310.12,0,VENDOR
04/05/2022,Adults & Health,Br3Ak Free,Daycare - Private Contractors Payment,350.12,0,VENDOR
04/05/2022,Adults & Health,Br3Ak Free,Daycare - Private Contractors Payment,350.12,0,VENDOR
04/05/2022,Adults & Health,Br3Ak Free,Daycare - Private Contractors Payment,350.12,0,VENDOR
04/05/2022,Adults & Health,Br3Ak Free,Daycare - Private Contractors Payment,174.99,0,VENDOR
04/05/2022,Adults & Health,Br3Ak Free,Daycare - Private Contractors Payment,350,0,VENDOR
04/05/2022,Adults & Health,Br3Ak Free,Daycare - Private Contractors Payment,350,0,VENDOR
04/05/2022,Adults & Health,Br3Ak Free,Daycare - Private Contractors Payment,350,0,VENDOR
04/05/2022,Adults & Health,Br3Ak Free,Daycare - Private Contractors Payment,175.35,0,VENDOR
04/05/2022,Children and Young People,Lextox,Legal Fees,254.33,0,COMMERCIAL SUPPLIER
04/05/2022,oneSource - Non Shared,Crystal Electronics Ltd,Building Alterations And Materials,260,0,COMMERCIAL SUPPLIER
04/05/2022,oneSource - Non Shared,Crystal Electronics Ltd,Building Alterations And Materials,569.17,0,COMMERCIAL SUPPLIER
04/05/2022,"People, Policy and Performance",Personal Information - Redacted,Events,1440,0,COMMERCIAL SUPPLIER
04/05/2022,Children and Young People,The Association of Directors of Childrens Services Ltd,Private Contractors Payment - Other,3653,0,COMMERCIAL SUPPLIER
04/05/2022,Children and Young People,Cansford Laboratories Limited,Legal Fees,304.33,0,COMMERCIAL SUPPLIER
04/05/2022,Environment and Sustainable Transport,London Councils,Payment To Other Local Authorities,1500,0,CENTRAL/GOVERNMENT DEPARTMENTS
04/05/2022,Environment and Sustainable Transport,Rushton Workwear Ltd,Highway Services,220,0,COMMERCIAL SUPPLIER
04/05/2022,Environment and Sustainable Transport,Rushton Workwear Ltd,Highway Services,198,0,COMMERCIAL SUPPLIER
04/05/2022,Environment and Sustainable Transport,Rushton Workwear Ltd,Highway Services,330,0,COMMERCIAL SUPPLIER
04/05/2022,Adults & Health,Blossom House Specialized Care & Support Services Ltd,Daycare - Private Contractors Payment,289.8,0,VENDOR
04/05/2022,Adults & Health,Blossom House Specialized Care & Support Services Ltd,Daycare - Private Contractors Payment,289.8,0,VENDOR
04/05/2022,Adults & Health,Blossom House Specialized Care & Support Services Ltd,Daycare - Private Contractors Payment,289.8,0,VENDOR
04/05/2022,Adults & Health,Blossom House Specialized Care & Support Services Ltd,Daycare - Private Contractors Payment,210.6,0,VENDOR
04/05/2022,Adults & Health,Blossom House Specialized Care & Support Services Ltd,Daycare - Private Contractors Payment,270,0,VENDOR
04/05/2022,Adults & Health,Blossom House Specialized Care & Support Services Ltd,Daycare - Private Contractors Payment,270,0,VENDOR
04/05/2022,Adults & Health,Blossom House Specialized Care & Support Services Ltd,Daycare - Private Contractors Payment,270,0,VENDOR
04/05/2022,Adults & Health,Blossom House Specialized Care & Support Services Ltd,Daycare - Private Contractors Payment,270,0,VENDOR
04/05/2022,Adults & Health,Blossom House Specialized Care & Support Services Ltd,Daycare - Private Contractors Payment,170,0,VENDOR
04/05/2022,Adults & Health,Blossom House Specialized Care & Support Services Ltd,Daycare - Private Contractors Payment,60,0,VENDOR
04/05/2022,Adults & Health,Blossom House Specialized Care & Support Services Ltd,Daycare - Private Contractors Payment,60,0,VENDOR
04/05/2022,Adults & Health,Blossom House Specialized Care & Support Services Ltd,Daycare - Private Contractors Payment,170,0,VENDOR
04/05/2022,Adults & Health,Blossom House Specialized Care & Support Services Ltd,Daycare - Private Contractors Payment,170,0,VENDOR
04/05/2022,Adults & Health,Blossom House Specialized Care & Support Services Ltd,Daycare - Private Contractors Payment,60,0,VENDOR
04/05/2022,Adults & Health,Blossom House Specialized Care & Support Services Ltd,Daycare - Private Contractors Payment,140,0,VENDOR
04/05/2022,Adults & Health,Blossom House Specialized Care & Support Services Ltd,Daycare - Private Contractors Payment,170,0,VENDOR
04/05/2022,Adults & Health,Blossom House Specialized Care & Support Services Ltd,Daycare - Private Contractors Payment,140,0,VENDOR
04/05/2022,Environment and Sustainable Transport,Sparshatt Truck & Van Ltd,Highway Services,25.12,0,COMMERCIAL SUPPLIER
04/05/2022,Environment and Sustainable Transport,Sparshatt Truck & Van Ltd,Highway Services,349.73,0,COMMERCIAL SUPPLIER
04/05/2022,Environment and Sustainable Transport,Sparshatt Truck & Van Ltd,Highway Services,349.73,0,COMMERCIAL SUPPLIER
04/05/2022,Environment and Sustainable Transport,Sparshatt Truck & Van Ltd,Highway Services,142.68,0,COMMERCIAL SUPPLIER
04/05/2022,Environment and Sustainable Transport,Sparshatt Truck & Van Ltd,Highway Services,744.76,0,COMMERCIAL SUPPLIER
04/05/2022,RMS,Travis Perkins Trading Company Ltd,Building Alterations And Materials,172007.33,0,COMMERCIAL SUPPLIER
04/05/2022,RMS,Travis Perkins Trading Company Ltd,Building Alterations And Materials,111426.83,0,COMMERCIAL SUPPLIER
04/05/2022,RMS,Travis Perkins Trading Company Ltd,Building Alterations And Materials,84837.13,0,COMMERCIAL SUPPLIER
04/05/2022,RMS,Travis Perkins Trading Company Ltd,Building Alterations And Materials,89812.03,0,COMMERCIAL SUPPLIER
04/05/2022,Environment and Sustainable Transport,F M Conway Ltd,Highway Services,24541.79,0,COMMERCIAL SUPPLIER
04/05/2022,Environment and Sustainable Transport,F M Conway Ltd,Highway Services,3436.49,0,COMMERCIAL SUPPLIER
04/05/2022,"People, Policy and Performance",F M Conway Ltd,Highway Services,900,0,COMMERCIAL SUPPLIER
04/05/2022,Environment and Sustainable Transport,S & B Commercials Plc,"Purchase - Equipment, Furniture And Materials",2580.04,0,NON COMMERCIAL SUPPLIER
04/05/2022,oneSource - Non Shared,Claremore Mechanical Services Limited,Building Alterations And Materials,395.13,0,CIS
04/05/2022,Environment and Sustainable Transport,Grove Road Tyres Ltd,"Purchase - Equipment, Furniture And Materials",257.5,0,COMMERCIAL SUPPLIER
04/05/2022,Housing Revenue Account,Pennington Choices Limited,Surveys,37918.67,0,COMMERCIAL SUPPLIER
04/05/2022,RMS,Southern Drain Services Ltd,Private Contractors Payment - Other,435,0,COMMERCIAL SUPPLIER
04/05/2022,Adults & Health,Action First Assessments Ltd,Professional Services - General,2840,0,COMMERCIAL SUPPLIER
04/05/2022,Adults & Health,Action First Assessments Ltd,Legal Fees,1200,0,COMMERCIAL SUPPLIER
04/05/2022,RMS,Rehau Ltd,"Purchase - Equipment, Furniture And Materials",8019.32,0,VENDOR
04/05/2022,RMS,Benchmarx Kitchens and Joinery,Private Contractors Payment - Other,890.23,0,COMMERCIAL SUPPLIER
04/05/2022,RMS,Benchmarx Kitchens and Joinery,Private Contractors Payment - Other,0,0,COMMERCIAL SUPPLIER
04/05/2022,RMS,Benchmarx Kitchens and Joinery,Private Contractors Payment - Other,795.37,0,COMMERCIAL SUPPLIER
04/05/2022,RMS,Benchmarx Kitchens and Joinery,Private Contractors Payment - Other,0,0,COMMERCIAL SUPPLIER
04/05/2022,Environment and Sustainable Transport,Terberg Matec Uk Ltd,Highway Services,437.07,0,COMMERCIAL SUPPLIER
04/05/2022,Environment and Sustainable Transport,Floglass Limited,"Purchase - Equipment, Furniture And Materials",317.16,0,COMMERCIAL SUPPLIER
04/05/2022,Dedicated Schools Budget,Personal Information - Redacted,Professional Services - General,8488.2,0,VENDOR
04/05/2022,Children and Young People,Avanti Gas Ltd,Liquid Fuel,1504.48,0,COMMERCIAL SUPPLIER
04/05/2022,Children and Young People,Choice Fostering Ltd,Fostering Agency Placements - Private Contractors Payment,1067.1,0,COMMERCIAL SUPPLIER
04/05/2022,Children and Young People,Choice Fostering Ltd,Fostering Agency Placements - Private Contractors Payment,830,0,COMMERCIAL SUPPLIER
04/05/2022,Children and Young People,Choice Fostering Ltd,Fostering Agency Placements - Private Contractors Payment,830,0,COMMERCIAL SUPPLIER
04/05/2022,Children and Young People,Choice Fostering Ltd,Fostering Agency Placements - Private Contractors Payment,830,0,COMMERCIAL SUPPLIER
04/05/2022,Children and Young People,Choice Fostering Ltd,Fostering Agency Placements - Private Contractors Payment,1067.1,0,COMMERCIAL SUPPLIER
04/05/2022,Children and Young People,Choice Fostering Ltd,Fostering Agency Placements - Private Contractors Payment,830,0,COMMERCIAL SUPPLIER
04/05/2022,Children and Young People,Choice Fostering Ltd,Fostering Agency Placements - Private Contractors Payment,830,0,COMMERCIAL SUPPLIER
04/05/2022,Children and Young People,Choice Fostering Ltd,Fostering Agency Placements - Private Contractors Payment,830,0,COMMERCIAL SUPPLIER
04/05/2022,Children and Young People,Choice Fostering Ltd,Fostering Agency Placements - Private Contractors Payment,1928.7,0,COMMERCIAL SUPPLIER
04/05/2022,Children and Young People,Choice Fostering Ltd,Fostering Agency Placements - Private Contractors Payment,1500,0,COMMERCIAL SUPPLIER
04/05/2022,Children and Young People,Choice Fostering Ltd,Fostering Agency Placements - Private Contractors Payment,1500,0,COMMERCIAL SUPPLIER
04/05/2022,Children and Young People,Choice Fostering Ltd,Fostering Agency Placements - Private Contractors Payment,1500,0,COMMERCIAL SUPPLIER
04/05/2022,Children and Young People,Choice Fostering Ltd,Fostering Agency Placements - Private Contractors Payment,1750,0,COMMERCIAL SUPPLIER
04/05/2022,Children and Young People,Choice Fostering Ltd,Fostering Agency Placements - Private Contractors Payment,1750,0,COMMERCIAL SUPPLIER
04/05/2022,Children and Young People,Choice Fostering Ltd,Fostering Agency Placements - Private Contractors Payment,1750,0,COMMERCIAL SUPPLIER
04/05/2022,Children and Young People,Choice Fostering Ltd,Fostering Agency Placements - Private Contractors Payment,2250,0,COMMERCIAL SUPPLIER
04/05/2022,Children and Young People,White Iris Ltd,Legal Fees,1476.9,0,
04/05/2022,oneSource,Brentwood Borough Council,Bailiff Fees Income,291.64,0,LOCAL AUTHORITY SERVICES
04/05/2022,oneSource,Basildon District Council,Bailiff Fees Income,12956.96,0,LOCAL AUTHORITY SERVICES
04/05/2022,oneSource,Basildon District Council,Bailiff Fees Income,1644.13,0,LOCAL AUTHORITY SERVICES
04/05/2022,oneSource,Stripe OLT,Ict Maintenance And Support,14595,0,VENDOR
04/05/2022,Adults & Health,Matrix Scm,Agency Staff,3789.7,0,
04/05/2022,Adults & Health,Matrix Scm,Agency Staff,2284.35,0,
04/05/2022,Adults & Health,Matrix Scm,Agency Staff,1091.87,0,
04/05/2022,Adults & Health,Matrix Scm,Agency Staff,875.87,0,
04/05/2022,Adults & Health,Matrix Scm,Agency Staff,932.63,0,
04/05/2022,Children and Young People,Matrix Scm,Agency Staff,1361.43,0,
04/05/2022,Children and Young People,Matrix Scm,Agency Staff,945.68,0,
04/05/2022,Children and Young People,Matrix Scm,Agency Staff,1320.92,0,
04/05/2022,Children and Young People,Matrix Scm,Agency Staff,990.9,0,
04/05/2022,Children and Young People,Matrix Scm,Agency Staff,1091.62,0,
04/05/2022,Children and Young People,Matrix Scm,Agency Staff,551.7,0,
04/05/2022,Children and Young People,Matrix Scm,Agency Staff,551.7,0,
04/05/2022,Children and Young People,Matrix Scm,Agency Staff,-456.2,0,
04/05/2022,Children and Young People,Matrix Scm,Agency Staff,495.45,0,
04/05/2022,Children and Young People,Matrix Scm,Agency Staff,856.14,0,
04/05/2022,Children and Young People,Matrix Scm,Agency Staff,1815.7,0,
04/05/2022,Children and Young People,Matrix Scm,Agency Staff,1452.56,0,
04/05/2022,Children and Young People,Matrix Scm,Agency Staff,1452.56,0,
04/05/2022,Children and Young People,Matrix Scm,Agency Staff,1121.04,0,
04/05/2022,Children and Young People,Matrix Scm,Agency Staff,1815.7,0,
04/05/2022,Children and Young People,Matrix Scm,Agency Staff,1861.5,0,
04/05/2022,Children and Young People,Matrix Scm,Agency Staff,318.48,0,
04/05/2022,Children and Young People,Matrix Scm,Agency Staff,1914.45,0,
04/05/2022,Children and Young People,Matrix Scm,Agency Staff,1736.2,0,
04/05/2022,Children and Young People,Matrix Scm,Agency Staff,1377.48,0,
04/05/2022,Children and Young People,Matrix Scm,Agency Staff,856.14,0,
04/05/2022,Children and Young People,Matrix Scm,Agency Staff,1789.05,0,
04/05/2022,Children and Young People,Matrix Scm,Agency Staff,720,0,
04/05/2022,Children and Young People,Matrix Scm,Agency Staff,2319.9,0,
04/05/2022,Children and Young People,Matrix Scm,Agency Staff,1085.95,0,
04/05/2022,Children and Young People,Matrix Scm,Agency Staff,901.2,0,
04/05/2022,Children and Young People,Matrix Scm,Agency Staff,1866.8,0,
04/05/2022,Children and Young People,Matrix Scm,Agency Staff,1800,0,
04/05/2022,Children and Young People,Matrix Scm,Agency Staff,1494.72,0,
04/05/2022,Children and Young People,Matrix Scm,Agency Staff,1499.78,0,
04/05/2022,Children and Young People,Matrix Scm,Agency Staff,816.94,0,
04/05/2022,Children and Young People,Matrix Scm,Agency Staff,816.93,0,
04/05/2022,Children and Young People,Matrix Scm,Agency Staff,993.95,0,
04/05/2022,Children and Young People,Matrix Scm,Agency Staff,1388.51,0,
04/05/2022,Children and Young People,Matrix Scm,Agency Staff,78.66,0,
04/05/2022,Children and Young People,Matrix Scm,Agency Staff,972,0,
04/05/2022,Children and Young People,Matrix Scm,Agency Staff,39.6,0,
04/05/2022,Children and Young People,Matrix Scm,Agency Staff,60.4,0,
04/05/2022,Children and Young People,Matrix Scm,Agency Staff,1014.13,0,
04/05/2022,Children and Young People,Matrix Scm,Agency Staff,972,0,
04/05/2022,Children and Young People,Matrix Scm,Agency Staff,993.96,0,
04/05/2022,Children and Young People,Matrix Scm,Agency Staff,1499.78,0,
04/05/2022,Children and Young People,Matrix Scm,Agency Staff,1388.51,0,
04/05/2022,Children and Young People,Matrix Scm,Agency Staff,28.8,0,
04/05/2022,Children and Young People,Matrix Scm,Agency Staff,1532.51,0,
04/05/2022,Children and Young People,Matrix Scm,Agency Staff,1364.03,0,
04/05/2022,Children and Young People,Matrix Scm,Agency Staff,1419.14,0,
04/05/2022,Children and Young People,Matrix Scm,Agency Staff,1388.16,0,
04/05/2022,Children and Young People,Matrix Scm,Agency Staff,1388.51,0,
04/05/2022,Children and Young People,Matrix Scm,Agency Staff,1354.58,0,
04/05/2022,Children and Young People,Matrix Scm,Agency Staff,1499.4,0,
04/05/2022,Children and Young People,Matrix Scm,Agency Staff,1499.4,0,
04/05/2022,Children and Young People,Matrix Scm,Agency Staff,1759.32,0,
04/05/2022,Children and Young People,Matrix Scm,Agency Staff,1759.32,0,
04/05/2022,Children and Young People,Matrix Scm,Agency Staff,972,0,
04/05/2022,Children and Young People,Matrix Scm,Agency Staff,1388.16,0,
04/05/2022,Children and Young People,Matrix Scm,Agency Staff,993.95,0,
04/05/2022,Children and Young People,Matrix Scm,Agency Staff,1648.45,0,
04/05/2022,Children and Young People,Matrix Scm,Agency Staff,1685.52,0,
04/05/2022,Children and Young People,Matrix Scm,Agency Staff,1388.52,0,
04/05/2022,Children and Young People,Matrix Scm,Agency Staff,1388.51,0,
04/05/2022,Children and Young People,Matrix Scm,Agency Staff,727.23,0,
04/05/2022,Children and Young People,Matrix Scm,Agency Staff,20,0,
04/05/2022,Children and Young People,Matrix Scm,Agency Staff,1388.51,0,
04/05/2022,Children and Young People,Matrix Scm,Agency Staff,1126.08,0,
04/05/2022,Adults & Health,Matrix Scm,Agency Staff,1245.6,0,
04/05/2022,Adults & Health,Matrix Scm,Agency Staff,2841.35,0,
04/05/2022,Adults & Health,Matrix Scm,Agency Staff,799.2,0,
04/05/2022,Adults & Health,Matrix Scm,Agency Staff,735.5,0,
04/05/2022,Adults & Health,Matrix Scm,Agency Staff,1301.76,0,
04/05/2022,Children and Young People,Matrix Scm,Agency Staff,1431.01,0,
04/05/2022,Children and Young People,Matrix Scm,Agency Staff,1327.91,0,
04/05/2022,Children and Young People,Matrix Scm,Agency Staff,1473.48,0,
04/05/2022,Children and Young People,Matrix Scm,Agency Staff,1532.52,0,
04/05/2022,Children and Young People,Matrix Scm,Agency Staff,1532.52,0,
04/05/2022,Children and Young People,Matrix Scm,Agency Staff,1506.24,0,
04/05/2022,Children and Young People,Matrix Scm,Agency Staff,147.87,0,
04/05/2022,Children and Young People,Matrix Scm,Agency Staff,1499.78,0,
04/05/2022,Children and Young People,Matrix Scm,Agency Staff,1394.66,0,
04/05/2022,Children and Young People,Matrix Scm,Agency Staff,1379.7,0,
04/05/2022,Children and Young People,Matrix Scm,Agency Staff,1499.76,0,
04/05/2022,Children and Young People,Matrix Scm,Agency Staff,1786.68,0,
04/05/2022,Children and Young People,Matrix Scm,Agency Staff,1419.12,0,
04/05/2022,Children and Young People,Matrix Scm,Agency Staff,1532.51,0,
04/05/2022,Children and Young People,Matrix Scm,Agency Staff,45,0,
04/05/2022,Children and Young People,Matrix Scm,Agency Staff,7.2,0,
04/05/2022,Children and Young People,Matrix Scm,Agency Staff,144,0,
04/05/2022,Children and Young People,Matrix Scm,Agency Staff,45,0,
04/05/2022,Children and Young People,Matrix Scm,Agency Staff,1234.55,0,
04/05/2022,Children and Young People,Matrix Scm,Agency Staff,1457.28,0,
04/05/2022,Children and Young People,Matrix Scm,Agency Staff,1499.76,0,
04/05/2022,Children and Young People,Matrix Scm,Agency Staff,1532.52,0,
04/05/2022,Children and Young People,Matrix Scm,Agency Staff,1493.28,0,
04/05/2022,Children and Young People,Matrix Scm,Agency Staff,2217.95,0,
04/05/2022,Children and Young People,Matrix Scm,Agency Staff,1425.25,0,
04/05/2022,Children and Young People,Matrix Scm,Agency Staff,1304.44,0,
04/05/2022,Children and Young People,Matrix Scm,Agency Staff,1499.76,0,
04/05/2022,Children and Young People,Matrix Scm,Agency Staff,1208.14,0,
04/05/2022,Children and Young People,Matrix Scm,Agency Staff,1499.78,0,
04/05/2022,Children and Young People,Matrix Scm,Agency Staff,1760.77,0,
04/05/2022,Children and Young People,Matrix Scm,Agency Staff,1499.78,0,
04/05/2022,Adults & Health,Matrix Scm,Agency Staff,1276.19,0,
04/05/2022,Adults & Health,Matrix Scm,Agency Staff,798.85,0,
04/05/2022,Adults & Health,Matrix Scm,Agency Staff,1382.98,0,
04/05/2022,Adults & Health,Matrix Scm,Agency Staff,1002.59,0,
04/05/2022,Adults & Health,Matrix Scm,Agency Staff,1499.76,0,
04/05/2022,Adults & Health,Matrix Scm,Agency Staff,250.5,0,
04/05/2022,Adults & Health,Matrix Scm,Agency Staff,494.74,0,
04/05/2022,Adults & Health,Matrix Scm,Agency Staff,1201.68,0,
04/05/2022,Adults & Health,Matrix Scm,Agency Staff,1346.05,0,
04/05/2022,Adults & Health,Matrix Scm,Agency Staff,939.42,0,
04/05/2022,Adults & Health,Matrix Scm,Agency Staff,906.99,0,
04/05/2022,Adults & Health,Matrix Scm,Agency Staff,9.45,0,
04/05/2022,Adults & Health,Matrix Scm,Agency Staff,1333.08,0,
04/05/2022,Adults & Health,Matrix Scm,Agency Staff,860.42,0,
04/05/2022,Adults & Health,Matrix Scm,Agency Staff,1370.16,0,
04/05/2022,Adults & Health,Matrix Scm,Agency Staff,1061.35,0,
04/05/2022,Adults & Health,Matrix Scm,Agency Staff,636.81,0,
04/05/2022,Adults & Health,Matrix Scm,Agency Staff,693.12,0,
04/05/2022,Adults & Health,Matrix Scm,Agency Staff,281.68,0,
04/05/2022,Adults & Health,Matrix Scm,Agency Staff,1419.14,0,
04/05/2022,Adults & Health,Matrix Scm,Agency Staff,1379.7,0,
04/05/2022,Adults & Health,Matrix Scm,Agency Staff,1494.72,0,
04/05/2022,Adults & Health,Matrix Scm,Agency Staff,1201.7,0,
04/05/2022,Adults & Health,Matrix Scm,Agency Staff,1228.32,0,
04/05/2022,Adults & Health,Matrix Scm,Agency Staff,1228.32,0,
04/05/2022,Children and Young People,Matrix Scm,Agency Staff,1500.12,0,
04/05/2022,Children and Young People,Matrix Scm,Agency Staff,1499.42,0,
04/05/2022,Children and Young People,Matrix Scm,Agency Staff,1506.24,0,
04/05/2022,Children and Young People,Matrix Scm,Agency Staff,1506.24,0,
04/05/2022,Children and Young People,Matrix Scm,Agency Staff,559.26,0,
04/05/2022,Children and Young People,Matrix Scm,Agency Staff,1499.78,0,
04/05/2022,Children and Young People,Matrix Scm,Agency Staff,1499.78,0,
04/05/2022,Children and Young People,Matrix Scm,Agency Staff,1506.24,0,
04/05/2022,Children and Young People,Matrix Scm,Agency Staff,1388.16,0,
04/05/2022,Children and Young People,Matrix Scm,Agency Staff,1388.16,0,
04/05/2022,Children and Young People,Matrix Scm,Agency Staff,1499.78,0,
04/05/2022,Children and Young People,Matrix Scm,Agency Staff,1441.09,0,
04/05/2022,Children and Young People,Matrix Scm,Agency Staff,1473.48,0,
04/05/2022,Children and Young People,Matrix Scm,Agency Staff,1506.24,0,
04/05/2022,Children and Young People,Matrix Scm,Agency Staff,1499.78,0,
04/05/2022,Children and Young People,Matrix Scm,Agency Staff,1499.78,0,
04/05/2022,Children and Young People,Matrix Scm,Agency Staff,6.75,0,
04/05/2022,Children and Young People,Matrix Scm,Agency Staff,60,0,
04/05/2022,Children and Young People,Matrix Scm,Agency Staff,31.5,0,
04/05/2022,Children and Young People,Matrix Scm,Agency Staff,1499.4,0,
04/05/2022,Children and Young People,Matrix Scm,Agency Staff,1499.78,0,
04/05/2022,Children and Young People,Matrix Scm,Agency Staff,1499.78,0,
04/05/2022,Children and Young People,Matrix Scm,Agency Staff,1799.64,0,
04/05/2022,Children and Young People,Matrix Scm,Agency Staff,1388.16,0,
04/05/2022,Environment and Sustainable Transport,Matrix Scm,Agency Staff,468.36,0,
04/05/2022,Environment and Sustainable Transport,Matrix Scm,Agency Staff,190.84,0,
04/05/2022,Environment and Sustainable Transport,Matrix Scm,Agency Staff,206.64,0,
04/05/2022,Environment and Sustainable Transport,Matrix Scm,Agency Staff,427.16,0,
04/05/2022,Environment and Sustainable Transport,Matrix Scm,Agency Staff,530.27,0,
04/05/2022,Environment and Sustainable Transport,Matrix Scm,Agency Staff,45,0,
04/05/2022,Environment and Sustainable Transport,Matrix Scm,Agency Staff,328.65,0,
04/05/2022,Environment and Sustainable Transport,Matrix Scm,Agency Staff,530.27,0,
04/05/2022,Environment and Sustainable Transport,Matrix Scm,Agency Staff,234.32,0,
04/05/2022,Environment and Sustainable Transport,Matrix Scm,Agency Staff,967.68,0,
04/05/2022,Environment and Sustainable Transport,Matrix Scm,Agency Staff,750.47,0,
04/05/2022,Adults & Health,Matrix Scm,Agency Staff,1894.2,0,
04/05/2022,Adults & Health,Matrix Scm,Agency Staff,1350.72,0,
04/05/2022,Adults & Health,Matrix Scm,Agency Staff,1234.52,0,
04/05/2022,Adults & Health,Matrix Scm,Agency Staff,1330.91,0,
04/05/2022,Adults & Health,Matrix Scm,Agency Staff,1457.28,0,
04/05/2022,Adults & Health,Matrix Scm,Agency Staff,895.32,0,
04/05/2022,Environment and Sustainable Transport,Matrix Scm,Agency Staff,704.16,0,
04/05/2022,Environment and Sustainable Transport,Matrix Scm,Agency Staff,922.68,0,
04/05/2022,"People, Policy and Performance",Matrix Scm,Agency Staff,888.13,0,
04/05/2022,"People, Policy and Performance",Matrix Scm,Agency Staff,670.62,0,
04/05/2022,"People, Policy and Performance",Matrix Scm,Agency Staff,720.9,0,
04/05/2022,"People, Policy and Performance",Matrix Scm,Agency Staff,438.6,0,
04/05/2022,"People, Policy and Performance",Matrix Scm,Agency Staff,876.24,0,
04/05/2022,"People, Policy and Performance",Matrix Scm,Agency Staff,618.75,0,
04/05/2022,oneSource,Matrix Scm,Agency Staff,1100.59,0,
04/05/2022,oneSource,Matrix Scm,Agency Staff,2901.4,0,
04/05/2022,oneSource,Matrix Scm,Agency Staff,2273.08,0,
04/05/2022,"People, Policy and Performance",Matrix Scm,Agency Staff,694.18,0,
04/05/2022,"People, Policy and Performance",Matrix Scm,Agency Staff,887.64,0,
04/05/2022,"People, Policy and Performance",Matrix Scm,Agency Staff,140.74,0,
04/05/2022,"People, Policy and Performance",Matrix Scm,Agency Staff,649.22,0,
04/05/2022,oneSource,Matrix Scm,Agency Staff,564.93,0,
04/05/2022,oneSource,Matrix Scm,Agency Staff,589.52,0,
04/05/2022,oneSource,Matrix Scm,Agency Staff,2887.95,0,
04/05/2022,Brighter Futures Director,Matrix Scm,Agency Staff,2297.2,0,
04/05/2022,Adults & Health,Matrix Scm,Agency Staff,1111.32,0,
04/05/2022,Adults & Health,Matrix Scm,Agency Staff,298.1,0,
04/05/2022,Adults & Health,Matrix Scm,Agency Staff,1046.64,0,
04/05/2022,Adults & Health,Matrix Scm,Agency Staff,955.15,0,
04/05/2022,Adults & Health,Matrix Scm,Agency Staff,760.73,0,
04/05/2022,Environment and Sustainable Transport,Matrix Scm,Agency Staff,1251.84,0,
04/05/2022,Environment and Sustainable Transport,Matrix Scm,Agency Staff,1036.68,0,
04/05/2022,Environment and Sustainable Transport,Matrix Scm,Agency Staff,1073.6,0,
04/05/2022,Environment and Sustainable Transport,Matrix Scm,Agency Staff,957.49,0,
04/05/2022,Environment and Sustainable Transport,Matrix Scm,Agency Staff,1268.63,0,
04/05/2022,Environment and Sustainable Transport,Matrix Scm,Agency Staff,427.16,0,
04/05/2022,Environment and Sustainable Transport,Matrix Scm,Agency Staff,467.2,0,
04/05/2022,Environment and Sustainable Transport,Matrix Scm,Agency Staff,530.27,0,
04/05/2022,Environment and Sustainable Transport,Matrix Scm,Agency Staff,94.74,0,
04/05/2022,Environment and Sustainable Transport,Matrix Scm,Agency Staff,115.78,0,
04/05/2022,Environment and Sustainable Transport,Matrix Scm,Agency Staff,533.95,0,
04/05/2022,Environment and Sustainable Transport,Matrix Scm,Agency Staff,95.58,0,
04/05/2022,Environment and Sustainable Transport,Matrix Scm,Agency Staff,530.27,0,
04/05/2022,Environment and Sustainable Transport,Matrix Scm,Agency Staff,423.48,0,
04/05/2022,Environment and Sustainable Transport,Matrix Scm,Agency Staff,528.48,0,
04/05/2022,Environment and Sustainable Transport,Matrix Scm,Agency Staff,350.4,0,
04/05/2022,Environment and Sustainable Transport,Matrix Scm,Agency Staff,111.16,0,
04/05/2022,Environment and Sustainable Transport,Matrix Scm,Agency Staff,115.43,0,
04/05/2022,Environment and Sustainable Transport,Matrix Scm,Agency Staff,528.48,0,
04/05/2022,Environment and Sustainable Transport,Matrix Scm,Agency Staff,528.48,0,
04/05/2022,Environment and Sustainable Transport,Matrix Scm,Agency Staff,565.57,0,
04/05/2022,Environment and Sustainable Transport,Matrix Scm,Agency Staff,530.27,0,
04/05/2022,Environment and Sustainable Transport,Matrix Scm,Agency Staff,347.44,0,
04/05/2022,Environment and Sustainable Transport,Matrix Scm,Agency Staff,425.72,0,
04/05/2022,Environment and Sustainable Transport,Matrix Scm,Agency Staff,530.27,0,
04/05/2022,Housing Revenue Account,Matrix Scm,Agency Staff,1653.4,0,
04/05/2022,Housing Revenue Account,Matrix Scm,Agency Staff,826.7,0,
04/05/2022,Housing Revenue Account,Matrix Scm,Agency Staff,1134.72,0,
04/05/2022,Housing Revenue Account,Matrix Scm,Agency Staff,2558.05,0,
04/05/2022,Housing Revenue Account,Matrix Scm,Agency Staff,2612.1,0,
04/05/2022,Housing Revenue Account,Matrix Scm,Agency Staff,3246.84,0,
04/05/2022,oneSource,Matrix Scm,Agency Staff,1039.7,0,
04/05/2022,oneSource,Matrix Scm,Agency Staff,2271.9,0,
04/05/2022,oneSource,Matrix Scm,Agency Staff,843,0,
04/05/2022,oneSource,Matrix Scm,Agency Staff,1034.28,0,
04/05/2022,Environment and Sustainable Transport,Matrix Scm,Agency Staff,628.19,0,
04/05/2022,Environment and Sustainable Transport,Matrix Scm,Agency Staff,632.55,0,
04/05/2022,Environment and Sustainable Transport,Matrix Scm,Agency Staff,628.85,0,
04/05/2022,Environment and Sustainable Transport,Matrix Scm,Agency Staff,-635.04,0,
04/05/2022,Environment and Sustainable Transport,Matrix Scm,Agency Staff,704.16,0,
04/05/2022,Environment and Sustainable Transport,Matrix Scm,Agency Staff,-734.87,0,
04/05/2022,Environment and Sustainable Transport,Matrix Scm,Agency Staff,841.08,0,
04/05/2022,Environment and Sustainable Transport,Matrix Scm,Agency Staff,-805.46,0,
04/05/2022,Environment and Sustainable Transport,Matrix Scm,Agency Staff,899.76,0,
04/05/2022,Environment and Sustainable Transport,Matrix Scm,Agency Staff,-380.85,0,
04/05/2022,Environment and Sustainable Transport,Matrix Scm,Agency Staff,425.43,0,
04/05/2022,Environment and Sustainable Transport,Matrix Scm,Agency Staff,-630.36,0,
04/05/2022,Environment and Sustainable Transport,Matrix Scm,Agency Staff,704.51,0,
04/05/2022,Environment and Sustainable Transport,Matrix Scm,Agency Staff,704.16,0,
04/05/2022,Environment and Sustainable Transport,Matrix Scm,Agency Staff,-630.37,0,
04/05/2022,Environment and Sustainable Transport,Matrix Scm,Agency Staff,704.16,0,
04/05/2022,Environment and Sustainable Transport,Matrix Scm,Agency Staff,702.36,0,
04/05/2022,Environment and Sustainable Transport,Matrix Scm,Agency Staff,656.54,0,
04/05/2022,Environment and Sustainable Transport,Matrix Scm,Agency Staff,782.4,0,
04/05/2022,Environment and Sustainable Transport,Matrix Scm,Agency Staff,177.52,0,
04/05/2022,Environment and Sustainable Transport,Matrix Scm,Agency Staff,819,0,
04/05/2022,Environment and Sustainable Transport,Matrix Scm,Agency Staff,-630.36,0,
04/05/2022,Environment and Sustainable Transport,Matrix Scm,Agency Staff,704.16,0,
04/05/2022,Environment and Sustainable Transport,Matrix Scm,Agency Staff,-630.36,0,
04/05/2022,Environment and Sustainable Transport,Matrix Scm,Agency Staff,704.16,0,
04/05/2022,Environment and Sustainable Transport,Matrix Scm,Agency Staff,89.44,0,
04/05/2022,Environment and Sustainable Transport,Matrix Scm,Agency Staff,618.85,0,
04/05/2022,Environment and Sustainable Transport,Matrix Scm,Agency Staff,562.63,0,
04/05/2022,Environment and Sustainable Transport,Matrix Scm,Agency Staff,-630.36,0,
04/05/2022,Environment and Sustainable Transport,Matrix Scm,Agency Staff,704.16,0,
04/05/2022,Environment and Sustainable Transport,Matrix Scm,Agency Staff,-630.36,0,
04/05/2022,Environment and Sustainable Transport,Matrix Scm,Agency Staff,704.16,0,
04/05/2022,Environment and Sustainable Transport,Matrix Scm,Agency Staff,-757.33,0,
04/05/2022,Environment and Sustainable Transport,Matrix Scm,Agency Staff,845.97,0,
04/05/2022,Environment and Sustainable Transport,Matrix Scm,Agency Staff,-630.36,0,
04/05/2022,Environment and Sustainable Transport,Matrix Scm,Agency Staff,704.16,0,
04/05/2022,Environment and Sustainable Transport,Matrix Scm,Agency Staff,175.76,0,
04/05/2022,Environment and Sustainable Transport,Matrix Scm,Agency Staff,695.16,0,
04/05/2022,Environment and Sustainable Transport,Matrix Scm,Agency Staff,200.87,0,
04/05/2022,Environment and Sustainable Transport,Matrix Scm,Agency Staff,658.65,0,
04/05/2022,Environment and Sustainable Transport,Matrix Scm,Agency Staff,633.25,0,
04/05/2022,Environment and Sustainable Transport,Matrix Scm,Agency Staff,654.11,0,
04/05/2022,Environment and Sustainable Transport,Matrix Scm,Agency Staff,654.13,0,
04/05/2022,Environment and Sustainable Transport,Matrix Scm,Agency Staff,625.2,0,
04/05/2022,Environment and Sustainable Transport,Matrix Scm,Agency Staff,680.03,0,
04/05/2022,Environment and Sustainable Transport,Matrix Scm,Agency Staff,177.52,0,
04/05/2022,Environment and Sustainable Transport,Matrix Scm,Agency Staff,177.52,0,
04/05/2022,Environment and Sustainable Transport,Matrix Scm,Agency Staff,702.02,0,
04/05/2022,Environment and Sustainable Transport,Matrix Scm,Agency Staff,702,0,
04/05/2022,Environment and Sustainable Transport,Matrix Scm,Agency Staff,266.28,0,
04/05/2022,Environment and Sustainable Transport,Matrix Scm,Agency Staff,477.75,0,
04/05/2022,Environment and Sustainable Transport,Matrix Scm,Agency Staff,654.12,0,
04/05/2022,Housing Revenue Account,Matrix Scm,Agency Staff,1049.76,0,
04/05/2022,Housing Revenue Account,Matrix Scm,Agency Staff,5545.6,0,
04/05/2022,Housing Revenue Account,Matrix Scm,Agency Staff,2612.1,0,
04/05/2022,Housing Revenue Account,Matrix Scm,Agency Staff,2558.1,0,
04/05/2022,Housing Revenue Account,Matrix Scm,Agency Staff,2033.55,0,
04/05/2022,Housing Revenue Account,Matrix Scm,Agency Staff,1991.5,0,
04/05/2022,Housing Revenue Account,Matrix Scm,Agency Staff,2901.4,0,
04/05/2022,Housing Revenue Account,Matrix Scm,Agency Staff,4436.48,0,
04/05/2022,Housing Revenue Account,Matrix Scm,Agency Staff,3481.68,0,
04/05/2022,Housing Revenue Account,Matrix Scm,Agency Staff,2493.36,0,
04/05/2022,Housing Revenue Account,Matrix Scm,Agency Staff,2612.1,0,
04/05/2022,Housing Revenue Account,Matrix Scm,Agency Staff,1403.99,0,
04/05/2022,Housing Revenue Account,Matrix Scm,Agency Staff,24.75,0,
04/05/2022,Housing Revenue Account,Matrix Scm,Agency Staff,2449.62,0,
04/05/2022,Housing Revenue Account,Matrix Scm,Agency Staff,1957.85,0,
04/05/2022,Housing Revenue Account,Matrix Scm,Agency Staff,2274.75,0,
04/05/2022,Housing Revenue Account,Matrix Scm,Agency Staff,3808.55,0,
04/05/2022,Housing Revenue Account,Matrix Scm,Agency Staff,78.16,0,
04/05/2022,Housing Revenue Account,Matrix Scm,Agency Staff,627.64,0,
04/05/2022,Housing Revenue Account,Matrix Scm,Agency Staff,503.88,0,
04/05/2022,Housing Revenue Account,Matrix Scm,Agency Staff,121.73,0,
04/05/2022,Housing Revenue Account,Matrix Scm,Agency Staff,549.64,0,
04/05/2022,Housing Revenue Account,Matrix Scm,Agency Staff,495.32,0,
04/05/2022,Housing Revenue Account,Matrix Scm,Agency Staff,696.87,0,
04/05/2022,Housing Revenue Account,Matrix Scm,Agency Staff,292.04,0,
04/05/2022,Housing Revenue Account,Matrix Scm,Agency Staff,608.65,0,
04/05/2022,Housing Revenue Account,Matrix Scm,Agency Staff,503.5,0,
04/05/2022,Housing Revenue Account,Matrix Scm,Agency Staff,680.56,0,
04/05/2022,Housing Revenue Account,Matrix Scm,Agency Staff,619.15,0,
04/05/2022,Housing Revenue Account,Matrix Scm,Agency Staff,486.92,0,
04/05/2022,Housing Revenue Account,Matrix Scm,Agency Staff,699.16,0,
04/05/2022,Environment and Sustainable Transport,Matrix Scm,Agency Staff,1505.1,0,
04/05/2022,Environment and Sustainable Transport,Matrix Scm,Agency Staff,2508.5,0,
04/05/2022,oneSource,Matrix Scm,Agency Staff,2874.4,0,
04/05/2022,oneSource,Matrix Scm,Agency Staff,2874.4,0,
04/05/2022,Resources,Matrix Scm,Agency Staff,2175.16,0,
04/05/2022,Resources,Matrix Scm,Agency Staff,2718.95,0,
04/05/2022,Resources,Matrix Scm,Agency Staff,1735.2,0,
04/05/2022,Resources,Matrix Scm,Agency Staff,3540.75,0,
04/05/2022,Resources,Matrix Scm,Agency Staff,3368.5,0,
04/05/2022,oneSource,Matrix Scm,Agency Staff,1325.1,0,
04/05/2022,oneSource,Matrix Scm,Agency Staff,2208.5,0,
04/05/2022,oneSource,Matrix Scm,Agency Staff,844.16,0,
04/05/2022,oneSource,Matrix Scm,Agency Staff,3573.45,0,
04/05/2022,oneSource,Matrix Scm,Agency Staff,5243.65,0,
04/05/2022,Environment and Sustainable Transport,Matrix Scm,Agency Staff,757.94,0,
04/05/2022,Environment and Sustainable Transport,Matrix Scm,Agency Staff,1244.51,0,
04/05/2022,Environment and Sustainable Transport,Matrix Scm,Agency Staff,872.99,0,
04/05/2022,Environment and Sustainable Transport,Matrix Scm,Agency Staff,994,0,
04/05/2022,Environment and Sustainable Transport,Matrix Scm,Agency Staff,956.74,0,
04/05/2022,Housing Revenue Account,Matrix Scm,Agency Staff,3611.45,0,
04/05/2022,Housing Revenue Account,Matrix Scm,Agency Staff,360.99,0,
04/05/2022,Housing Revenue Account,Matrix Scm,Agency Staff,1444.58,0,
04/05/2022,Housing Revenue Account,Matrix Scm,Agency Staff,360.99,0,
04/05/2022,Housing Revenue Account,Matrix Scm,Agency Staff,1444.58,0,
04/05/2022,Housing Revenue Account,Matrix Scm,Agency Staff,360.99,0,
04/05/2022,Housing Revenue Account,Matrix Scm,Agency Staff,1444.58,0,
04/05/2022,Housing Revenue Account,Matrix Scm,Agency Staff,826.7,0,
04/05/2022,Brighter Futures Director,Matrix Scm,Agency Staff,1066.64,0,
04/05/2022,Brighter Futures Director,Matrix Scm,Agency Staff,1066.64,0,
04/05/2022,Brighter Futures Director,Matrix Scm,Agency Staff,1066.64,0,
04/05/2022,Brighter Futures Director,Matrix Scm,Agency Staff,799.98,0,
04/05/2022,Brighter Futures Director,Matrix Scm,Agency Staff,266.66,0,
04/05/2022,Brighter Futures Director,Matrix Scm,Agency Staff,1287.3,0,
04/05/2022,Brighter Futures Director,Matrix Scm,Agency Staff,268.83,0,
04/05/2022,Brighter Futures Director,Matrix Scm,Agency Staff,533.32,0,
04/05/2022,Brighter Futures Director,Matrix Scm,Agency Staff,533.32,0,
04/05/2022,Brighter Futures Director,Matrix Scm,Agency Staff,1057.44,0,
04/05/2022,Housing Revenue Account,Matrix Scm,Agency Staff,1036.64,0,
04/05/2022,Housing Revenue Account,Matrix Scm,Agency Staff,400.08,0,
04/05/2022,Housing Revenue Account,Matrix Scm,Agency Staff,802.56,0,
04/05/2022,Housing Revenue Account,Matrix Scm,Agency Staff,601.92,0,
04/05/2022,Housing Revenue Account,Matrix Scm,Agency Staff,601.92,0,
04/05/2022,Housing Revenue Account,Matrix Scm,Agency Staff,1003.2,0,
04/05/2022,Housing Revenue Account,Matrix Scm,Agency Staff,601.92,0,
04/05/2022,Housing Revenue Account,Matrix Scm,Agency Staff,601.92,0,
04/05/2022,Housing Revenue Account,Matrix Scm,Agency Staff,601.92,0,
04/05/2022,Housing Revenue Account,Matrix Scm,Agency Staff,745.65,0,
04/05/2022,Housing Revenue Account,Matrix Scm,Agency Staff,601.92,0,
04/05/2022,Housing Revenue Account,Matrix Scm,Agency Staff,601.92,0,
04/05/2022,oneSource - Non Shared,Matrix Scm,Agency Staff,709.15,0,
04/05/2022,Resources,Matrix Scm,Agency Staff,952,0,
04/05/2022,Resources,Matrix Scm,Agency Staff,2841.35,0,
04/05/2022,Resources,Matrix Scm,Agency Staff,185.15,0,
04/05/2022,Resources,Matrix Scm,Agency Staff,2758.5,0,
04/05/2022,Resources,Matrix Scm,Agency Staff,571.2,0,
04/05/2022,Resources,Matrix Scm,Agency Staff,761.6,0,
04/05/2022,oneSource,Matrix Scm,Agency Staff,1456.5,0,
04/05/2022,Housing Revenue Account,Matrix Scm,Agency Staff,396.27,0,
04/05/2022,Housing Revenue Account,Matrix Scm,Agency Staff,2612.1,0,
04/05/2022,Housing Revenue Account,Matrix Scm,Agency Staff,320.37,0,
04/05/2022,Housing Revenue Account,Matrix Scm,Agency Staff,530.27,0,
04/05/2022,Housing Revenue Account,Matrix Scm,Agency Staff,902.18,0,
04/05/2022,Housing Revenue Account,Matrix Scm,Agency Staff,354.24,0,
04/05/2022,Housing Revenue Account,Matrix Scm,Agency Staff,581.76,0,
04/05/2022,Housing Revenue Account,Matrix Scm,Agency Staff,581.76,0,
04/05/2022,Housing Revenue Account,Matrix Scm,Agency Staff,362.58,0,
04/05/2022,Housing Revenue Account,Matrix Scm,Agency Staff,468.64,0,
04/05/2022,Housing Revenue Account,Matrix Scm,Agency Staff,581.76,0,
04/05/2022,Housing Revenue Account,Matrix Scm,Agency Staff,581.76,0,
04/05/2022,Housing Revenue Account,Matrix Scm,Agency Staff,581.76,0,
04/05/2022,Housing Revenue Account,Matrix Scm,Agency Staff,398.11,0,
04/05/2022,Housing Revenue Account,Matrix Scm,Agency Staff,274.82,0,
04/05/2022,Housing Revenue Account,Matrix Scm,Agency Staff,595.61,0,
04/05/2022,Housing Revenue Account,Matrix Scm,Agency Staff,171.19,0,
04/05/2022,Housing Revenue Account,Matrix Scm,Agency Staff,230.95,0,
04/05/2022,Housing Revenue Account,Matrix Scm,Agency Staff,878.25,0,
04/05/2022,Housing Revenue Account,Matrix Scm,Agency Staff,249,0,
04/05/2022,Housing Revenue Account,Matrix Scm,Agency Staff,70.49,0,
04/05/2022,Housing Revenue Account,Matrix Scm,Agency Staff,274.82,0,
04/05/2022,Housing Revenue Account,Matrix Scm,Agency Staff,137.41,0,
04/05/2022,Housing Revenue Account,Matrix Scm,Agency Staff,422.94,0,
04/05/2022,Housing Revenue Account,Matrix Scm,Agency Staff,274.82,0,
04/05/2022,oneSource,Matrix Scm,Agency Staff,1089.04,0,
04/05/2022,RMS,Matrix Scm,Agency Staff,1185.6,0,
04/05/2022,RMS,Matrix Scm,Agency Staff,1013.2,0,
04/05/2022,RMS,Matrix Scm,Agency Staff,988,0,
04/05/2022,RMS,Matrix Scm,Agency Staff,870.44,0,
04/05/2022,RMS,Matrix Scm,Agency Staff,1186.08,0,
04/05/2022,RMS,Matrix Scm,Agency Staff,1012.8,0,
04/05/2022,RMS,Matrix Scm,Agency Staff,896,0,
04/05/2022,RMS,Matrix Scm,Agency Staff,1120,0,
04/05/2022,Children and Young People,Matrix Scm,Agency Staff,842.4,0,
04/05/2022,Children and Young People,Matrix Scm,Agency Staff,1637,0,
04/05/2022,Children and Young People,Matrix Scm,Agency Staff,947.62,0,
04/05/2022,Children and Young People,Matrix Scm,Agency Staff,852.84,0,
04/05/2022,Dedicated Schools Budget,Personal Information - Redacted,Agency Staff,727.32,0,
04/05/2022,"People, Policy and Performance",Matrix Scm,Agency Staff,693.45,0,
04/05/2022,"People, Policy and Performance",Matrix Scm,Agency Staff,693.45,0,
04/05/2022,"People, Policy and Performance",Matrix Scm,Agency Staff,86.52,0,
04/05/2022,"People, Policy and Performance",Matrix Scm,Agency Staff,3437.65,0,
04/05/2022,Children and Young People,Matrix Scm,Agency Staff,1532.51,0,
04/05/2022,Children and Young People,Matrix Scm,Agency Staff,1448.64,0,
04/05/2022,Children and Young People,Matrix Scm,Agency Staff,1388.53,0,
04/05/2022,Children and Young People,Matrix Scm,Agency Staff,1655.28,0,
04/05/2022,Children and Young People,Matrix Scm,Agency Staff,6.03,0,
04/05/2022,Children and Young People,Matrix Scm,Agency Staff,1425.24,0,
04/05/2022,Children and Young People,Matrix Scm,Agency Staff,1419.12,0,
04/05/2022,Children and Young People,Matrix Scm,Agency Staff,1388.16,0,
04/05/2022,Children and Young People,Matrix Scm,Agency Staff,708.05,0,
04/05/2022,Children and Young People,Matrix Scm,Agency Staff,655.7,0,
04/05/2022,Children and Young People,Matrix Scm,Agency Staff,1388.52,0,
04/05/2022,Children and Young People,Matrix Scm,Agency Staff,1647.36,0,
04/05/2022,Housing Revenue Account,Matrix Scm,Agency Staff,513.8,0,
04/05/2022,Housing Revenue Account,Matrix Scm,Agency Staff,530.28,0,
04/05/2022,"People, Policy and Performance",Matrix Scm,Agency Staff,2841.35,0,
04/05/2022,"People, Policy and Performance",Matrix Scm,Agency Staff,2666.7,0,
04/05/2022,Children and Young People,Matrix Scm,Agency Staff,971.3,0,
04/05/2022,Children and Young People,Matrix Scm,Agency Staff,1388.51,0,
04/05/2022,Adults & Health,Matrix Scm,Agency Staff,541.45,0,
04/05/2022,Adults & Health,Matrix Scm,Agency Staff,541.45,0,
04/05/2022,Brighter Futures Director,Matrix Scm,Agency Staff,939.33,0,
04/05/2022,Inclusive Economy & Housing,Matrix Scm,Agency Staff,183.8,0,
04/05/2022,Inclusive Economy & Housing,Matrix Scm,Agency Staff,74.24,0,
04/05/2022,"People, Policy and Performance",Matrix Scm,Agency Staff,884.92,0,
04/05/2022,Children and Young People,Matrix Scm,Agency Staff,1291.83,0,
04/05/2022,Children and Young People,Matrix Scm,Agency Staff,1035.75,0,
04/05/2022,Children and Young People,Matrix Scm,Agency Staff,1278.8,0,
04/05/2022,Children and Young People,Matrix Scm,Agency Staff,2558.05,0,
04/05/2022,Brighter Futures Director,Matrix Scm,Agency Staff,-1028.36,0,
04/05/2022,Brighter Futures Director,Matrix Scm,Agency Staff,1066.64,0,
04/05/2022,Brighter Futures Director,Matrix Scm,Agency Staff,-1063.52,0,
04/05/2022,Brighter Futures Director,Matrix Scm,Agency Staff,1103.4,0,
04/05/2022,Brighter Futures Director,Matrix Scm,Agency Staff,537.66,0,
04/05/2022,Brighter Futures Director,Matrix Scm,Agency Staff,799.98,0,
04/05/2022,Brighter Futures Director,Matrix Scm,Agency Staff,1066.64,0,
04/05/2022,RMS,Matrix Scm,Agency Staff,1172.4,0,
04/05/2022,RMS,Matrix Scm,Agency Staff,1172.4,0,
04/05/2022,RMS,Matrix Scm,Agency Staff,1318.98,0,
04/05/2022,RMS,Matrix Scm,Agency Staff,1172.4,0,
04/05/2022,RMS,Matrix Scm,Agency Staff,1172.4,0,
04/05/2022,RMS,Matrix Scm,Agency Staff,1143.6,0,
04/05/2022,RMS,Matrix Scm,Agency Staff,629,0,
04/05/2022,RMS,Matrix Scm,Agency Staff,1598.05,0,
04/05/2022,RMS,Matrix Scm,Agency Staff,1223.1,0,
04/05/2022,RMS,Matrix Scm,Agency Staff,1063.9,0,
04/05/2022,RMS,Matrix Scm,Agency Staff,307.5,0,
04/05/2022,RMS,Matrix Scm,Agency Staff,1012.8,0,
04/05/2022,RMS,Matrix Scm,Agency Staff,536.48,0,
04/05/2022,RMS,Matrix Scm,Agency Staff,949.5,0,
04/05/2022,RMS,Matrix Scm,Agency Staff,988,0,
04/05/2022,RMS,Matrix Scm,Agency Staff,858,0,
04/05/2022,RMS,Matrix Scm,Agency Staff,834.75,0,
04/05/2022,RMS,Matrix Scm,Agency Staff,824.4,0,
04/05/2022,RMS,Matrix Scm,Agency Staff,988.4,0,
04/05/2022,RMS,Matrix Scm,Agency Staff,1022.2,0,
04/05/2022,RMS,Matrix Scm,Agency Staff,915.2,0,
04/05/2022,RMS,Matrix Scm,Agency Staff,202.41,0,
04/05/2022,RMS,Matrix Scm,Agency Staff,1324.8,0,
04/05/2022,RMS,Matrix Scm,Agency Staff,1195.1,0,
04/05/2022,RMS,Matrix Scm,Agency Staff,1195.1,0,
04/05/2022,RMS,Matrix Scm,Agency Staff,2726.32,0,
04/05/2022,RMS,Matrix Scm,Agency Staff,2044.74,0,
04/05/2022,RMS,Matrix Scm,Agency Staff,2726.32,0,
04/05/2022,RMS,Matrix Scm,Agency Staff,762.72,0,
04/05/2022,RMS,Matrix Scm,Agency Staff,1563.95,0,
04/05/2022,RMS,Matrix Scm,Agency Staff,2618.5,0,
04/05/2022,RMS,Matrix Scm,Agency Staff,3407.9,0,
04/05/2022,RMS,Matrix Scm,Agency Staff,3124.65,0,
04/05/2022,RMS,Matrix Scm,Agency Staff,2499.72,0,
04/05/2022,RMS,Matrix Scm,Agency Staff,2499.72,0,
04/05/2022,RMS,Matrix Scm,Agency Staff,2499.72,0,
04/05/2022,RMS,Matrix Scm,Agency Staff,677.72,0,
04/05/2022,"People, Policy and Performance",Matrix Scm,Agency Staff,2027.25,0,
04/05/2022,Inclusive Economy & Housing,Matrix Scm,Agency Staff,470.1,0,
04/05/2022,Inclusive Economy & Housing,Matrix Scm,Agency Staff,815.14,0,
04/05/2022,Inclusive Economy & Housing,Matrix Scm,Agency Staff,1196.43,0,
04/05/2022,Inclusive Economy & Housing,Matrix Scm,Agency Staff,1130.7,0,
04/05/2022,RMS,Matrix Scm,Agency Staff,856.8,0,
04/05/2022,RMS,Matrix Scm,Agency Staff,1055.04,0,
04/05/2022,RMS,Matrix Scm,Agency Staff,646.4,0,
04/05/2022,RMS,Matrix Scm,Agency Staff,819.2,0,
04/05/2022,RMS,Matrix Scm,Agency Staff,872.8,0,
04/05/2022,RMS,Matrix Scm,Agency Staff,1028.16,0,
04/05/2022,RMS,Matrix Scm,Agency Staff,1012.8,0,
04/05/2022,RMS,Matrix Scm,Agency Staff,1120,0,
04/05/2022,RMS,Matrix Scm,Agency Staff,1013.2,0,
04/05/2022,RMS,Matrix Scm,Agency Staff,768.18,0,
04/05/2022,RMS,Matrix Scm,Agency Staff,1185.6,0,
04/05/2022,RMS,Matrix Scm,Agency Staff,765.2,0,
04/05/2022,RMS,Matrix Scm,Agency Staff,640.15,0,
04/05/2022,RMS,Matrix Scm,Agency Staff,988,0,
04/05/2022,RMS,Matrix Scm,Agency Staff,765.2,0,
04/05/2022,RMS,Matrix Scm,Agency Staff,1128.8,0,
04/05/2022,RMS,Matrix Scm,Agency Staff,892,0,
04/05/2022,RMS,Matrix Scm,Agency Staff,394.02,0,
04/05/2022,RMS,Matrix Scm,Agency Staff,926.25,0,
04/05/2022,RMS,Matrix Scm,Agency Staff,812.05,0,
04/05/2022,RMS,Matrix Scm,Agency Staff,1084.67,0,
04/05/2022,RMS,Matrix Scm,Agency Staff,942.97,0,
04/05/2022,RMS,Matrix Scm,Agency Staff,-65,0,
04/05/2022,RMS,Matrix Scm,Agency Staff,810.24,0,
04/05/2022,RMS,Matrix Scm,Agency Staff,1107.75,0,
04/05/2022,RMS,Matrix Scm,Agency Staff,1215.36,0,
04/05/2022,RMS,Matrix Scm,Agency Staff,1076.1,0,
04/05/2022,RMS,Matrix Scm,Agency Staff,1012.8,0,
04/05/2022,RMS,Matrix Scm,Agency Staff,992.8,0,
04/05/2022,RMS,Matrix Scm,Agency Staff,592.8,0,
04/05/2022,RMS,Matrix Scm,Agency Staff,942.4,0,
04/05/2022,RMS,Matrix Scm,Agency Staff,736.15,0,
04/05/2022,"People, Policy and Performance",Matrix Scm,Agency Staff,803.4,0,
04/05/2022,"People, Policy and Performance",Matrix Scm,Agency Staff,2008.5,0,
04/05/2022,"People, Policy and Performance",Matrix Scm,Agency Staff,2322.9,0,
04/05/2022,oneSource - Non Shared,Matrix Scm,Agency Staff,1706.82,0,
04/05/2022,Inclusive Economy & Housing,Matrix Scm,Agency Staff,835.2,0,
04/05/2022,Inclusive Economy & Housing,Matrix Scm,Agency Staff,858.24,0,
04/05/2022,Inclusive Economy & Housing,Matrix Scm,Agency Staff,978.48,0,
04/05/2022,Inclusive Economy & Housing,Matrix Scm,Agency Staff,885.6,0,
04/05/2022,Inclusive Economy & Housing,Matrix Scm,Agency Staff,1051.2,0,
04/05/2022,Inclusive Economy & Housing,Matrix Scm,Agency Staff,738,0,
04/05/2022,RMS,Matrix Scm,Agency Staff,1053.6,0,
04/05/2022,RMS,Matrix Scm,Agency Staff,1397.7,0,
04/05/2022,RMS,Matrix Scm,Agency Staff,1397.7,0,
04/05/2022,RMS,Matrix Scm,Agency Staff,1424.03,0,
04/05/2022,Environment and Sustainable Transport,Matrix Scm,Agency Staff,902.18,0,
04/05/2022,Environment and Sustainable Transport,Matrix Scm,Agency Staff,579.97,0,
04/05/2022,Environment and Sustainable Transport,Matrix Scm,Agency Staff,233.87,0,
04/05/2022,Environment and Sustainable Transport,Matrix Scm,Agency Staff,161.55,0,
04/05/2022,Environment and Sustainable Transport,Matrix Scm,Agency Staff,468.64,0,
04/05/2022,Environment and Sustainable Transport,Matrix Scm,Agency Staff,968.77,0,
04/05/2022,Environment and Sustainable Transport,Matrix Scm,Agency Staff,0,0,
04/05/2022,Environment and Sustainable Transport,Matrix Scm,Agency Staff,152.96,0,
04/05/2022,Environment and Sustainable Transport,Matrix Scm,Agency Staff,759.52,0,
04/05/2022,Environment and Sustainable Transport,Matrix Scm,Agency Staff,128.8,0,
04/05/2022,Environment and Sustainable Transport,Matrix Scm,Agency Staff,600.13,0,
04/05/2022,Environment and Sustainable Transport,Matrix Scm,Agency Staff,579.97,0,
04/05/2022,Environment and Sustainable Transport,Matrix Scm,Agency Staff,600.13,0,
04/05/2022,Environment and Sustainable Transport,Matrix Scm,Agency Staff,464.32,0,
04/05/2022,Environment and Sustainable Transport,Matrix Scm,Agency Staff,600.13,0,
04/05/2022,Environment and Sustainable Transport,Matrix Scm,Agency Staff,581.76,0,
04/05/2022,Environment and Sustainable Transport,Matrix Scm,Agency Staff,250.05,0,
04/05/2022,Environment and Sustainable Transport,Matrix Scm,Agency Staff,902.18,0,
04/05/2022,RMS,Matrix Scm,Agency Staff,614.7,0,
04/05/2022,RMS,Matrix Scm,Agency Staff,732.6,0,
04/05/2022,RMS,Matrix Scm,Agency Staff,901.2,0,
04/05/2022,RMS,Matrix Scm,Agency Staff,626.67,0,
04/05/2022,RMS,Matrix Scm,Agency Staff,588.69,0,
04/05/2022,RMS,Matrix Scm,Agency Staff,1107.4,0,
04/05/2022,Inclusive Economy & Housing,Matrix Scm,Agency Staff,1259.93,0,
04/05/2022,RMS,Matrix Scm,Agency Staff,1304,0,
04/05/2022,RMS,Matrix Scm,Agency Staff,1082.43,0,
04/05/2022,RMS,Matrix Scm,Agency Staff,845.25,0,
04/05/2022,RMS,Matrix Scm,Agency Staff,1172.4,0,
04/05/2022,Inclusive Economy & Housing,Matrix Scm,Agency Staff,834.88,0,
04/05/2022,Inclusive Economy & Housing,Matrix Scm,Agency Staff,887.4,0,
04/05/2022,Inclusive Economy & Housing,Matrix Scm,Agency Staff,962.64,0,
04/05/2022,Inclusive Economy & Housing,Matrix Scm,Agency Staff,738,0,
04/05/2022,Environment and Sustainable Transport,Matrix Scm,Agency Staff,710.61,0,
04/05/2022,Environment and Sustainable Transport,Matrix Scm,Agency Staff,464.6,0,
04/05/2022,Environment and Sustainable Transport,Matrix Scm,Agency Staff,581.41,0,
04/05/2022,Environment and Sustainable Transport,Matrix Scm,Agency Staff,423.48,0,
04/05/2022,Environment and Sustainable Transport,Matrix Scm,Agency Staff,530.27,0,
04/05/2022,Environment and Sustainable Transport,Matrix Scm,Agency Staff,581.41,0,
04/05/2022,Environment and Sustainable Transport,Matrix Scm,Agency Staff,812.4,0,
04/05/2022,Environment and Sustainable Transport,Matrix Scm,Agency Staff,164.07,0,
04/05/2022,Environment and Sustainable Transport,Matrix Scm,Agency Staff,573.64,0,
04/05/2022,Environment and Sustainable Transport,Matrix Scm,Agency Staff,530.27,0,
04/05/2022,Environment and Sustainable Transport,Matrix Scm,Agency Staff,569.64,0,
04/05/2022,Environment and Sustainable Transport,Matrix Scm,Agency Staff,702.54,0,
04/05/2022,Environment and Sustainable Transport,Matrix Scm,Agency Staff,530.27,0,
04/05/2022,Environment and Sustainable Transport,Matrix Scm,Agency Staff,565.6,0,
04/05/2022,Environment and Sustainable Transport,Matrix Scm,Agency Staff,530.27,0,
04/05/2022,Environment and Sustainable Transport,Matrix Scm,Agency Staff,729.75,0,
04/05/2022,Environment and Sustainable Transport,Matrix Scm,Agency Staff,1065.96,0,
04/05/2022,Environment and Sustainable Transport,Matrix Scm,Agency Staff,133.84,0,
04/05/2022,Environment and Sustainable Transport,Matrix Scm,Agency Staff,600.13,0,
04/05/2022,Environment and Sustainable Transport,Matrix Scm,Agency Staff,204.6,0,
04/05/2022,Environment and Sustainable Transport,Matrix Scm,Agency Staff,581.76,0,
04/05/2022,Environment and Sustainable Transport,Matrix Scm,Agency Staff,581.76,0,
04/05/2022,Environment and Sustainable Transport,Matrix Scm,Agency Staff,468.64,0,
04/05/2022,Environment and Sustainable Transport,Matrix Scm,Agency Staff,581.76,0,
04/05/2022,Environment and Sustainable Transport,Matrix Scm,Agency Staff,565.57,0,
04/05/2022,Environment and Sustainable Transport,Matrix Scm,Agency Staff,230.67,0,
04/05/2022,Environment and Sustainable Transport,Matrix Scm,Agency Staff,579.97,0,
04/05/2022,Environment and Sustainable Transport,Matrix Scm,Agency Staff,579.97,0,
04/05/2022,Environment and Sustainable Transport,Matrix Scm,Agency Staff,468.64,0,
04/05/2022,Environment and Sustainable Transport,Matrix Scm,Agency Staff,581.76,0,
04/05/2022,Environment and Sustainable Transport,Matrix Scm,Agency Staff,565.57,0,
04/05/2022,Environment and Sustainable Transport,Matrix Scm,Agency Staff,1858.24,0,
04/05/2022,Environment and Sustainable Transport,Matrix Scm,Agency Staff,2322.8,0,
04/05/2022,RMS,Matrix Scm,Agency Staff,772.9,0,
04/05/2022,RMS,Matrix Scm,Agency Staff,1012.8,0,
04/05/2022,RMS,Matrix Scm,Agency Staff,1204.4,0,
04/05/2022,RMS,Matrix Scm,Agency Staff,1012.8,0,
04/05/2022,RMS,Matrix Scm,Agency Staff,810.94,0,
04/05/2022,RMS,Matrix Scm,Agency Staff,1076.55,0,
04/05/2022,RMS,Matrix Scm,Agency Staff,1199.8,0,
04/05/2022,RMS,Matrix Scm,Agency Staff,842.8,0,
04/05/2022,RMS,Matrix Scm,Agency Staff,1076.55,0,
04/05/2022,RMS,Matrix Scm,Agency Staff,892.5,0,
04/05/2022,RMS,Matrix Scm,Agency Staff,875.2,0,
04/05/2022,RMS,Matrix Scm,Agency Staff,1384.25,0,
04/05/2022,Adults & Health,Matrix Scm,Agency Staff,67.56,0,
04/05/2022,Adults & Health,Matrix Scm,Agency Staff,794.15,0,
04/05/2022,Adults & Health,Matrix Scm,Agency Staff,802.55,0,
04/05/2022,Adults & Health,Matrix Scm,Agency Staff,802.55,0,
04/05/2022,Adults & Health,Matrix Scm,Agency Staff,2644.3,0,
04/05/2022,Adults & Health,Matrix Scm,Agency Staff,1201.7,0,
04/05/2022,Adults & Health,Matrix Scm,Agency Staff,1241.28,0,
04/05/2022,Adults & Health,Matrix Scm,Agency Staff,1201.7,0,
04/05/2022,Adults & Health,Matrix Scm,Agency Staff,1228.32,0,
04/05/2022,Adults & Health,Matrix Scm,Agency Staff,159.44,0,
04/05/2022,Adults & Health,Matrix Scm,Agency Staff,216.36,0,
04/05/2022,Children and Young People,Matrix Scm,Agency Staff,1342.44,0,
04/05/2022,Children and Young People,Matrix Scm,Agency Staff,1698.11,0,
04/05/2022,Children and Young People,Matrix Scm,Agency Staff,1675.08,0,
04/05/2022,Children and Young People,Matrix Scm,Agency Staff,1917,0,
04/05/2022,Environment and Sustainable Transport,Matrix Scm,Agency Staff,526.64,0,
04/05/2022,Environment and Sustainable Transport,Matrix Scm,Agency Staff,645.68,0,
04/05/2022,Inclusive Economy & Housing,Matrix Scm,Agency Staff,1549.44,0,
04/05/2022,Inclusive Economy & Housing,Matrix Scm,Agency Staff,1537.56,0,
04/05/2022,Inclusive Economy & Housing,Matrix Scm,Agency Staff,7.2,0,
04/05/2022,Resources,Matrix Scm,Agency Staff,1348.93,0,
04/05/2022,Adults & Health,Matrix Scm,Agency Staff,789.6,0,
04/05/2022,Adults & Health,Matrix Scm,Agency Staff,1340.29,0,
04/05/2022,Adults & Health,Matrix Scm,Agency Staff,1574.66,0,
04/05/2022,Adults & Health,Matrix Scm,Agency Staff,2084.9,0,
04/05/2022,Adults & Health,Matrix Scm,Agency Staff,265.37,0,
04/05/2022,Adults & Health,Matrix Scm,Agency Staff,2322.9,0,
04/05/2022,Adults & Health,Matrix Scm,Agency Staff,2371.45,0,
04/05/2022,Adults & Health,Matrix Scm,Agency Staff,2889.4,0,
04/05/2022,Adults & Health,Matrix Scm,Agency Staff,785.17,0,
04/05/2022,Adults & Health,Matrix Scm,Agency Staff,2068.7,0,
04/05/2022,Adults & Health,Matrix Scm,Agency Staff,567.71,0,
04/05/2022,Adults & Health,Matrix Scm,Agency Staff,857.28,0,
04/05/2022,Environment and Sustainable Transport,Matrix Scm,Agency Staff,587.8,0,
04/05/2022,Environment and Sustainable Transport,Matrix Scm,Agency Staff,1325.24,0,
04/05/2022,Environment and Sustainable Transport,Matrix Scm,Agency Staff,412.44,0,
04/05/2022,Environment and Sustainable Transport,Matrix Scm,Agency Staff,242.44,0,
04/05/2022,Children and Young People,Matrix Scm,Agency Staff,366.74,0,
04/05/2022,Children and Young People,Matrix Scm,Agency Staff,323.2,0,
04/05/2022,Children and Young People,Matrix Scm,Agency Staff,325.2,0,
04/05/2022,Children and Young People,Matrix Scm,Agency Staff,367.6,0,
04/05/2022,Children and Young People,Matrix Scm,Agency Staff,323.2,0,
04/05/2022,Children and Young People,Matrix Scm,Agency Staff,325,0,
04/05/2022,Housing Revenue Account,LNRS Data Services Ltd,Consultancy Fees,330.75,0,COMMERCIAL SUPPLIER
04/05/2022,Children and Young People,Aspire Youth Services ltd,Supported Other Accommodation - Private Contractors Payment,48,0,COMMERCIAL SUPPLIER
04/05/2022,Children and Young People,Aspire Youth Services ltd,Supported Other Accommodation - Private Contractors Payment,48,0,COMMERCIAL SUPPLIER
04/05/2022,Children and Young People,Aspire Youth Services ltd,Supported Other Accommodation - Private Contractors Payment,371,0,COMMERCIAL SUPPLIER
04/05/2022,Children and Young People,Aspire Youth Services ltd,Supported Other Accommodation - Private Contractors Payment,48,0,COMMERCIAL SUPPLIER
04/05/2022,Children and Young People,Aspire Youth Services ltd,Supported Other Accommodation - Private Contractors Payment,371,0,COMMERCIAL SUPPLIER
04/05/2022,Children and Young People,Aspire Youth Services ltd,Supported Other Accommodation - Private Contractors Payment,48,0,COMMERCIAL SUPPLIER
04/05/2022,Children and Young People,Aspire Youth Services ltd,Supported Other Accommodation - Private Contractors Payment,490.71,0,COMMERCIAL SUPPLIER
04/05/2022,Children and Young People,Aspire Youth Services ltd,Supported Other Accommodation - Private Contractors Payment,371,0,COMMERCIAL SUPPLIER
04/05/2022,Children and Young People,Family First Fostering,Fostering Agency Placements - Private Contractors Payment,806.93,0,COMMERCIAL SUPPLIER
04/05/2022,Children and Young People,Family First Fostering,Fostering Agency Placements - Private Contractors Payment,806.93,0,COMMERCIAL SUPPLIER
04/05/2022,Children and Young People,Family First Fostering,Fostering Agency Placements - Private Contractors Payment,806.93,0,COMMERCIAL SUPPLIER
04/05/2022,Children and Young People,Family First Fostering,Fostering Agency Placements - Private Contractors Payment,806.93,0,COMMERCIAL SUPPLIER
04/05/2022,Children and Young People,Family First Fostering,Residential Placements - Private Contractors Payment,862.75,0,COMMERCIAL SUPPLIER
04/05/2022,Children and Young People,Family First Fostering,Residential Placements - Private Contractors Payment,862.75,0,COMMERCIAL SUPPLIER
04/05/2022,Children and Young People,Family First Fostering,Residential Placements - Private Contractors Payment,862.75,0,COMMERCIAL SUPPLIER
04/05/2022,Children and Young People,Family First Fostering,Residential Placements - Private Contractors Payment,862.75,0,COMMERCIAL SUPPLIER
04/05/2022,Children and Young People,Family First Fostering,Fostering Agency Placements - Private Contractors Payment,1300,0,COMMERCIAL SUPPLIER
04/05/2022,Children and Young People,Family First Fostering,Fostering Agency Placements - Private Contractors Payment,1300,0,COMMERCIAL SUPPLIER
04/05/2022,Children and Young People,Family First Fostering,Fostering Agency Placements - Private Contractors Payment,1300,0,COMMERCIAL SUPPLIER
04/05/2022,Children and Young People,Family First Fostering,Fostering Agency Placements - Private Contractors Payment,1300,0,COMMERCIAL SUPPLIER
04/05/2022,Children and Young People,Family First Fostering,Fostering Agency Placements - Private Contractors Payment,862.75,0,COMMERCIAL SUPPLIER
